{"text_format":"1","workbook":"xlsx","n_sheets":6,"sheets":["Info","Trial","Instructions","Setup","Summary","Tracking"],"not_rendered":{"charts":0,"images":2,"macros":1,"external_links":0,"defined_names":17,"comments":0,"pivot_tables":0},"unopened":[],"bounds":{"document_bytes":16777216,"sheet_cells":100000,"rows_first":2000,"rows_last":500,"rows_between":2000,"halvings":0,"cell_chars":16384,"cell_head_chars":4096},"cells_cut":0,"cells_raw":0,"read":"whole","date_system":"1900"}

{"sheet":"Info","index":0,"n_rows":0,"n_cols":0,"rows_kept":0,"cut":false,"hidden":false,"merged":[]}

{"sheet":"Trial","index":1,"n_rows":0,"n_cols":0,"rows_kept":0,"cut":false,"hidden":true,"merged":[]}

{"sheet":"Instructions","index":2,"n_rows":130,"n_cols":1,"rows_kept":130,"cut":false,"hidden":true,"merged":[]}
["Excel Skills | Leave Tracker Template"]
["Instructions"]
["www.excel-skills.com"]
[]
["This template enables users to track the leave that is applied for by all employees and to ensure that there is always adequate staff in each department or for every defined role. All leave that is applied for needs to be recorded on an individual employee basis and is then displayed visually on the Summary sheet. The Summary sheet can also be filtered by department or role to determine whether there are always sufficient resources available."]
[]
["The template includes the following sheets:"]
["Setup - enter the leave tracking start date and specify whether Fridays, Saturdays, Sundays and public holidays should be included as work days for leave purposes. The 60 day leave cycle which is included on the Summary sheet can be rolled forward or back by simply changing the start date on this sheet. The public holidays that need to be taken into account needs to be maintained in the list on this sheet and the maximum & minimum employee levels are only used for conditional formatting purposes to highlight days when these thresholds do not apply."]
["Summary - A complete list of employee codes and names should be added to this sheet. Employees can also be assigned to departments or roles to display leave applications on a departmental or role level. The calculations & formatting from column D onwards are all automated and based on the template setup and the leave dates that need to be entered on the Tracking sheet. Only the columns with yellow column headings require user input."]
["Tracking - Enter the leave application dates of all employees on this sheet. The data that is entered on this sheet is used to update the leave tracking summary on the Summary sheet. The template accommodates an unlimited number of entries & multiple entries for each employee - you therefore do not need to start with a new version of the template for each new financial period."]
[]
["Template Set-up"]
[]
["The first step in customizing the template for your business is to specify the tracking start date in cell B5 on the Setup sheet. The date that is entered in this cell determines the 60 day period that is included on the Summary sheet. You can therefore roll the reporting period on the Summary sheet forward or back by simply changing the tracking start date on the Setup sheet."]
[]
["Note: The template accommodates an unlimited number of employees and an unlimited number of leave dates. You do not need to start a new version of the template for every new financial period and any tracking start date can therefore be used."]
[]
["The next step in the template setup is to specify whether Fridays, Saturdays, Sundays and public holidays need to be included as work days for leave calculation purposes. The list boxes in cell B8 to cell B11 on the Setup sheet can be used for this purpose by simply selecting \"Yes\" if the appropriate days are to be included and \"No\" if the appropriate days are to be excluded."]
[]
["The selection will automatically be updated to the Summary sheet. If the appropriate day selection is not to be included, any leave period that includes this day selection will not be indicated on the Summary sheet and will also not be counted as work days on the Tracking sheet."]
[]
["If you want to use a maximum and minimum employee threshold, these values can be entered in cells E9 and E11 on the Setup sheet. These settings only affect the formatting on the Summary sheet - when the maximum employee setting is exceeded, the number of employees in row 2 on the Summary sheet for the appropriate day will be highlighted in red."]
[]
["Similarly, if the number of employees in row 2 on the Summary sheet is less than the minimum number of employees setting on the Setup sheet, the value for the appropriate day will be highlighted in red."]
[]
["Note: If you do not want to use the minimum and maximum values, you can simply enter values which will never be applicable. For instance, enter 999 as the maximum employee setting if you will never realistically employ this many employees and enter 0 in the minimum setting to effectively turn the setting off."]
[]
["The template also requires users to enter a list of public holidays on the Setup sheet. If any date matches a public holiday date, the appropriate column on the Summary sheet will be highlighted in light blue. If public holidays are included as work days, including a date in this list will also affect whether leave is displayed in the column which relates to the specific date."]
[]
["Note:  A new version of the template does not need to be created for every new financial year. You can therefore simply add the public holidays for the appropriate calendar year at the beginning of a new year to have them displayed on the Summary sheet. If you are only using the template for future planning, the public holidays for the previous calendar year can simply be replaced by the public holiday dates for the new calendar year."]
[]
["Days can be added to the public holiday list on the Setup sheet by inserting a new row anywhere between the first date and the \"End of list\" entry. All the dates added are automatically included in the calculations on the Summary and Tracking sheets."]
[]
["Adding Employees"]
[]
["All employees need to be added to the template in order to include their leave dates on the Summary sheet. The Summary sheet has the following user input columns (columns with yellow column headings):"]
["Employee Code - a unique employee code should be entered for each employee in column A. We recommend that you use the employee number as per your payroll system for this purpose. If your payroll system does not include unique employee numbers, you can use any unique numbering system."]
["Employee Name - enter the name of the employee in column B."]
["Department / Role - enter the department or role of each employee in this column. The template can be used for individual departments or if it is a small business, for individual roles."]
[]
["It is important to consider the department or role column carefully - you basically want to use this column in order to group employees together in order to ascertain whether sufficient resources are available when a lot of staff members are applying for leave over the same period. The template enables users to filter the Summary sheet by department or role in order to display the leave applications for the selected department or role only. You therefore need to use a unique department or role for each business function where a minimum number of employees always need to be in attendance."]
[]
["Note: All the columns on the Summary sheet have been included in an Excel table. This feature is extremely useful when entering data in a table format because the formulas that are included in calculated columns (the columns with a light blue column heading) are automatically copied when new rows are inserted into the table or when data is entered into the first blank row below the table. You can therefore add a new employee to the Summary sheet by simply entering a new employee code in the first blank cell in column A - the table will then automatically be extended to include the new employee."]
[]
["Note: All the column headings on the Summary sheet contain a filter selection arrow - this feature indicates that a Filter has been applied to the table data. This Excel feature is very useful when you need to filter the data that forms part of a table based on one of the filter criteria that are available after clicking the selection arrow. For the purpose of this template, it is especially useful to filter the Summary sheet by the department / role column in order to only analyse the leave applications for a specific department or role."]
[]
["Note: The calculations at the top of the Summary sheet are all automatically updated when the sheet is filtered. These calculations and the formatting on the Summary sheet are covered later on in these instructions under the Template Calculations & Formatting section."]
[]
["Recording Leave Application Dates"]
[]
["When an employee applies for leave, the employee code of the employee, date from which leave will be taken and the date to which leave will be taken need to be recorded on the Tracking sheet. This sheet includes the following user input columns:"]
[]
["Employee Code - select the appropriate employee code from the list box in column A. All employee codes that have been included on the Summary sheet are included in the list box. For new employees, you need to add the appropriate employee code to the Summary sheet before it will be available for selection from this list box."]
["From Date - enter the first day of the leave application date range."]
["To Date - enter the last day of the leave application date range."]
[]
["Note: The from and to dates do not need to be workdays and the date range does not need to only include workdays - the template automatically only takes workdays into account based on the day settings that are included on the Setup sheet."]
[]
["The Tracking sheet also includes the following calculated columns (with light blue column headings):"]
["Work Days - the number of workdays that are included in the date range that is formed by the From and To Dates in columns B and C are displayed in this column."]
["Error Code - this column will contain an error code if there is a problem with the input in any of the user input columns. All the error codes that are displayed in this column should therefore be corrected in order to ensure that all the template calculations remain accurate. Refer to the Error Codes section of these instructions for more information about the reasons for an error code and how to resolve it."]
[]
["Note: All the columns on the Tracking sheet have been included in an Excel table. This feature is extremely useful when entering data in a table format because the formulas that are included in the calculated columns (the columns with light blue column headings) are automatically copied when new rows are inserted into the table or when data is entered into the first blank row below the table. You can therefore add a new entry to the Tracking sheet by simply entering a new employee code in the first blank cell in column A - the table will then automatically be extended to include the new entry."]
[]
["All the leave tracking dates that are added to the Tracking sheet are automatically included in the calculations and formatting on the Summary sheet. Multiple entries can be added for each employee and there is no limit on the number of entries which can be included on the Tracking sheet."]
[]
["Template Calculations & Formatting"]
[]
["All the leave date ranges that are added to the Tracking sheet will be displayed next to the employee code, employee name and department / role on the Summary sheet. The display is in the form of orange highlighting which will be included for all days where the employee will be on leave."]
[]
["The orange highlighting will only be applied to work days and the classification of a work day depends on the settings which have been applied to the Setup sheet. All public holidays will be highlighted in light blue and all weekend days will be highlighted in grey. The orange highlighting will therefore clearly indicate which employees will be on leave on any day that is included in the date range on the Summary sheet."]
[]
["Note: The date range that is included from column D on the Summary sheet starts on the Tracking Start Date which has been specified on the Setup sheet and includes a period of 60 days."]
[]
["If you want to extend the 60 day default period, we suggest completing the following steps in the sequence in which they are provided:"]
["■ Select the cell with D60 as the column heading."]
["■ Insert the required number of additional columns - one column for each day that you want to add to the 60 day period. Remember that the template automatically updates when you change the Tracking Start Date on the Setup sheet and that it is therefore very easy to roll the tracking period forward or back. The number of days that you include on the Summary sheet should therefore only be the window in which you would like to review leave and not an entire period to monitor."]
["■ Select the two column headings immediately before the columns that you inserted (these columns will have data above the column headings at this point)."]
["■ Hover your mouse over the bottom right corner of the second column heading (mouse cursor should change to a +) then left click & drag the mouse to the last column heading. All the column headings should now be in a numerical sequence of D60, D61, D62, etc."]
["■ Select the first cell below the D59 column heading and copy this cell to all the cells below the column headings which have been added to the sheet by inserting new columns. You should copy from the first row up to the end of the table (last row that contains data)."]
["■ Select the cells in the first 5 rows above the D59 column heading and copy this cell range to all the cells above the column headings which do not contain data. Before pasting the copied data, select the Paste Special feature and elect to only paste formulas. This will ensure that the conditional formatting rules that are used to display the leave dates are not duplicated unnecessarily."]
[]
["Note: The main purpose of completing the above steps in this sequence is to ensure that the conditional formatting rules that are used to indicate leave, remain accurate."]
[]
["Note: If you want reduce the number of days that are included in the tracking period, you can simply select the appropriate number of columns and delete them. These columns need to be selected from the end of the 60 day date range."]
[]
["The Summary sheet also includes information above the column headings which are used in the conditional formatting rules that highlight leave days. The following information is included:"]
["Workday Status - this row indicates whether the appropriate day is workday or not. A \"Y\" is displayed for a workday and a \"N\" for off days. The classification of workdays depends largely on the settings that have been included on the Setup sheet."]
["Number of Employees Present - this calculation indicates the total number of employees that are NOT on leave on the appropriate day."]
["Public Holiday Indicator - indicates whether the appropriate day is a public holiday. \"Y\" for public holiday and \"N\" if not applicable. Public holidays are defined by including the appropriate dates in the list on the Setup sheet."]
["Weekday - displays the weekday name for the appropriate date."]
["Date - displays the date. The first day that is included in the 60 day tracking range is based on the tracking start date which is specified on the Setup sheet. All subsequent dates are determined by adding a day to this date."]
[]
["Note: All the calculations in the rows above the column headings are updated automatically when you filter a column. This is especially useful if you filter the department / role column based on a specific department or role selection. All the calculations will be updated automatically and the total number of employees that are present will be adjusted automatically."]
[]
["Error Codes"]
[]
["The following error codes may result from inaccurate input on the Tracking sheet and will be displayed in the Error Code column."]
[]
["■ E1 - this error code means that from date that has been specified in the appropriate row is before the to date. Fix the error by entering the correct date range."]
["■ E2 - this error code means that the employee code that has been selected in column A on the Tracking sheet is invalid. All the employee codes that have been entered on the Summary sheet will be included in the list boxes in column A and the error can therefore be rectified by simply selecting a valid employee code from the list box. New employee codes must be created on the Summary sheet before being available for selection."]
[]
["Note: Input errors may result in inaccurate template calculations and it is therefore imperative that all errors are resolved before reviewing the leave data on the Summary sheet."]
[]
["Troubleshooting Formatting Errors"]
[]
["The accuracy of the template is dependent on the conditional formatting rules that have been implemented in order to display when employees are on leave and to indicate weekends and public holidays. If you follow the template instructions to the letter, these rules will always function as they should."]
[]
["In some instances, you may however inadvertently break some of these rules mainly by way of not inserting data as per our instructions or copying data into the template in such a way that some of the conditional formatting rules are replaced."]
[]
["If you therefore find that an employee's leave is not indicated correctly on the Summary sheet, we suggest completing the following steps before you contact our Support department for assistance:"]
["■ Go to the Tracking sheet and check whether the date inputs for the appropriate employee are correct and that both the from and to dates have been entered or copied as valid dates (no error code)."]
["■ Select the Conditional Formatting feature from the Home tab on the ribbon. Then select the Manage Rules feature before selecting the This Worksheet option at the top of the window."]
["■ There should only be 6 unique conditional formatting rules - two that are applied to row 2 and four that are applied to all the cells that form part of the Excel table on the Summary sheet. If there are more than 6 rules, it probably means that some of the default rules have been duplicated."]
["■ Identify the rules that are duplicates of the default rules (which start from a cell range containing cell D7) - it will basically be the same rules but just applied to different cell ranges. Delete all the duplicated rules."]
["■ Determine the location of the first cell in column D below the column heading (should be cell D7 if no columns or rows were inserted before column D and row 7). Then determine the location of the last cell in the Excel table on the Summary sheet. The last cell should be in the last row that contains data and in the last column with a column heading. There should also be a small triangle in the bottom right corner of the cell. Make a note of the cell location (something like cell BK18)."]
["■ Now return to the Manage Rules feature and replace the cell range of the 4 rules that do not refer to row 2 with the cell range between the first and last cells that form part of the table as per the previous two steps. Then click OK to save your changes."]
["■ Re-open the Name Manager feature and review the two rules that are applied to row 2. These two rules only affect the use of minimum & maximum staff totals and can be deleted if you are not using these settings. If the red highlighting is missing from some cells in row 2, check that all columns form part of the cell range to which these rules are applied."]
[]
["Note: Existing conditional formatting rules that are not duplicated should not be deleted otherwise the template will not function as it has been designed."]
[]
["Note: If you want to change the default colours that are being used for leave days, public holidays or weekends, open the Conditional Formatting - Manage Rules feature (Home tab on ribbon), double click the appropriate rule (based on the colour that is displayed next to the rule), click the Format feature and change the formatting accordingly. Background colours are applied with the Fill formatting features."]
[]
["Help & Customization"]
[]
["If you experience any difficulty while using this template and you are not able to find the appropriate guidance in these instructions, please e-mail us at support@excel-skills.com for assistance. This template has been designed with flexibility in mind to ensure that it can be used in most business environments. If however you need an Excel based template that is customized specifically for your business requirements, please e-mail our Support function and provide a brief explanation of your requirements."]
[]
["© Copyright"]
[]
["This template remains the intellectual property of www.excel-skills.com and is protected by international copyright laws. Any publication or distribution of this template outside the scope of the permitted use of the template is expressly prohibited. In terms of the permitted use of this template, only the distribution of the template to persons within the same organisation as the registered user or persons outside the organisation who can reasonably be expected to require access to the template as a direct result of the use of the template by the registered user is allowed. Subsequent distribution of the template by parties outside of the organisation is however expressly prohibited and represents an infringement of international copyright laws."]

{"sheet":"Setup","index":3,"n_rows":29,"n_cols":5,"rows_kept":29,"cut":false,"hidden":true,"merged":[]}
["Leave Tracker"]
["Setup"]
["© www.excel-skills.com"]
[]
["Tracking Start Date","2021-03-29"]
[]
["Include:"]
["Fridays","Yes",{"$f":"IF(B8=\"Yes\",1,0)","v":1}]
["Saturdays","No",{"$f":"IF(B9=\"Yes\",1,0)","v":0},"Maximum Employees",999]
["Sundays","No",{"$f":"IF(B10=\"Yes\",1,0)","v":0}]
["Public Holidays","No",0,"Minimum Employees",1]
[]
["Public Holiday Dates"]
["2021-01-01"]
["2021-03-21"]
["2021-03-22"]
["2021-04-02"]
["2021-04-05"]
["2021-04-27"]
["2021-05-01"]
["2021-06-16"]
["2021-08-09"]
["2021-09-24"]
["2021-12-16"]
["2021-12-25"]
["2021-12-26"]
["2021-12-27"]
["2022-01-01"]
["End of list"]

{"sheet":"Summary","index":4,"n_rows":18,"n_cols":63,"rows_kept":18,"cut":false,"hidden":true,"merged":[]}
["Leave Tracker",null,"Workday Status: ",{"$f":"IF(AND(Setup!$C$8=0,D$4=\"Fri\"),\"N\",IF(AND(Setup!$C$9=0,D$4=\"Sat\"),\"N\",IF(AND(Setup!$C$10=0,D$4=\"Sun\"),\"N\",IF(AND(Setup!$C$11=0,D$3=\"Y\"),\"N\",\"Y\"))))","v":"Y"},{"$f":"IF(AND(Setup!$C$8=0,E$4=\"Fri\"),\"N\",IF(AND(Setup!$C$9=0,E$4=\"Sat\"),\"N\",IF(AND(Setup!$C$10=0,E$4=\"Sun\"),\"N\",IF(AND(Setup!$C$11=0,E$3=\"Y\"),\"N\",\"Y\"))))","v":"Y"},{"$f":"IF(AND(Setup!$C$8=0,F$4=\"Fri\"),\"N\",IF(AND(Setup!$C$9=0,F$4=\"Sat\"),\"N\",IF(AND(Setup!$C$10=0,F$4=\"Sun\"),\"N\",IF(AND(Setup!$C$11=0,F$3=\"Y\"),\"N\",\"Y\"))))","v":"Y"},{"$f":"IF(AND(Setup!$C$8=0,G$4=\"Fri\"),\"N\",IF(AND(Setup!$C$9=0,G$4=\"Sat\"),\"N\",IF(AND(Setup!$C$10=0,G$4=\"Sun\"),\"N\",IF(AND(Setup!$C$11=0,G$3=\"Y\"),\"N\",\"Y\"))))","v":"Y"},{"$f":"IF(AND(Setup!$C$8=0,H$4=\"Fri\"),\"N\",IF(AND(Setup!$C$9=0,H$4=\"Sat\"),\"N\",IF(AND(Setup!$C$10=0,H$4=\"Sun\"),\"N\",IF(AND(Setup!$C$11=0,H$3=\"Y\"),\"N\",\"Y\"))))","v":"N"},{"$f":"IF(AND(Setup!$C$8=0,I$4=\"Fri\"),\"N\",IF(AND(Setup!$C$9=0,I$4=\"Sat\"),\"N\",IF(AND(Setup!$C$10=0,I$4=\"Sun\"),\"N\",IF(AND(Setup!$C$11=0,I$3=\"Y\"),\"N\",\"Y\"))))","v":"N"},{"$f":"IF(AND(Setup!$C$8=0,J$4=\"Fri\"),\"N\",IF(AND(Setup!$C$9=0,J$4=\"Sat\"),\"N\",IF(AND(Setup!$C$10=0,J$4=\"Sun\"),\"N\",IF(AND(Setup!$C$11=0,J$3=\"Y\"),\"N\",\"Y\"))))","v":"N"},{"$f":"IF(AND(Setup!$C$8=0,K$4=\"Fri\"),\"N\",IF(AND(Setup!$C$9=0,K$4=\"Sat\"),\"N\",IF(AND(Setup!$C$10=0,K$4=\"Sun\"),\"N\",IF(AND(Setup!$C$11=0,K$3=\"Y\"),\"N\",\"Y\"))))","v":"N"},{"$f":"IF(AND(Setup!$C$8=0,L$4=\"Fri\"),\"N\",IF(AND(Setup!$C$9=0,L$4=\"Sat\"),\"N\",IF(AND(Setup!$C$10=0,L$4=\"Sun\"),\"N\",IF(AND(Setup!$C$11=0,L$3=\"Y\"),\"N\",\"Y\"))))","v":"Y"},{"$f":"IF(AND(Setup!$C$8=0,M$4=\"Fri\"),\"N\",IF(AND(Setup!$C$9=0,M$4=\"Sat\"),\"N\",IF(AND(Setup!$C$10=0,M$4=\"Sun\"),\"N\",IF(AND(Setup!$C$11=0,M$3=\"Y\"),\"N\",\"Y\"))))","v":"Y"},{"$f":"IF(AND(Setup!$C$8=0,N$4=\"Fri\"),\"N\",IF(AND(Setup!$C$9=0,N$4=\"Sat\"),\"N\",IF(AND(Setup!$C$10=0,N$4=\"Sun\"),\"N\",IF(AND(Setup!$C$11=0,N$3=\"Y\"),\"N\",\"Y\"))))","v":"Y"},{"$f":"IF(AND(Setup!$C$8=0,O$4=\"Fri\"),\"N\",IF(AND(Setup!$C$9=0,O$4=\"Sat\"),\"N\",IF(AND(Setup!$C$10=0,O$4=\"Sun\"),\"N\",IF(AND(Setup!$C$11=0,O$3=\"Y\"),\"N\",\"Y\"))))","v":"Y"},{"$f":"IF(AND(Setup!$C$8=0,P$4=\"Fri\"),\"N\",IF(AND(Setup!$C$9=0,P$4=\"Sat\"),\"N\",IF(AND(Setup!$C$10=0,P$4=\"Sun\"),\"N\",IF(AND(Setup!$C$11=0,P$3=\"Y\"),\"N\",\"Y\"))))","v":"N"},{"$f":"IF(AND(Setup!$C$8=0,Q$4=\"Fri\"),\"N\",IF(AND(Setup!$C$9=0,Q$4=\"Sat\"),\"N\",IF(AND(Setup!$C$10=0,Q$4=\"Sun\"),\"N\",IF(AND(Setup!$C$11=0,Q$3=\"Y\"),\"N\",\"Y\"))))","v":"N"},{"$f":"IF(AND(Setup!$C$8=0,R$4=\"Fri\"),\"N\",IF(AND(Setup!$C$9=0,R$4=\"Sat\"),\"N\",IF(AND(Setup!$C$10=0,R$4=\"Sun\"),\"N\",IF(AND(Setup!$C$11=0,R$3=\"Y\"),\"N\",\"Y\"))))","v":"Y"},{"$f":"IF(AND(Setup!$C$8=0,S$4=\"Fri\"),\"N\",IF(AND(Setup!$C$9=0,S$4=\"Sat\"),\"N\",IF(AND(Setup!$C$10=0,S$4=\"Sun\"),\"N\",IF(AND(Setup!$C$11=0,S$3=\"Y\"),\"N\",\"Y\"))))","v":"Y"},{"$f":"IF(AND(Setup!$C$8=0,T$4=\"Fri\"),\"N\",IF(AND(Setup!$C$9=0,T$4=\"Sat\"),\"N\",IF(AND(Setup!$C$10=0,T$4=\"Sun\"),\"N\",IF(AND(Setup!$C$11=0,T$3=\"Y\"),\"N\",\"Y\"))))","v":"Y"},{"$f":"IF(AND(Setup!$C$8=0,U$4=\"Fri\"),\"N\",IF(AND(Setup!$C$9=0,U$4=\"Sat\"),\"N\",IF(AND(Setup!$C$10=0,U$4=\"Sun\"),\"N\",IF(AND(Setup!$C$11=0,U$3=\"Y\"),\"N\",\"Y\"))))","v":"Y"},{"$f":"IF(AND(Setup!$C$8=0,V$4=\"Fri\"),\"N\",IF(AND(Setup!$C$9=0,V$4=\"Sat\"),\"N\",IF(AND(Setup!$C$10=0,V$4=\"Sun\"),\"N\",IF(AND(Setup!$C$11=0,V$3=\"Y\"),\"N\",\"Y\"))))","v":"Y"},{"$f":"IF(AND(Setup!$C$8=0,W$4=\"Fri\"),\"N\",IF(AND(Setup!$C$9=0,W$4=\"Sat\"),\"N\",IF(AND(Setup!$C$10=0,W$4=\"Sun\"),\"N\",IF(AND(Setup!$C$11=0,W$3=\"Y\"),\"N\",\"Y\"))))","v":"N"},{"$f":"IF(AND(Setup!$C$8=0,X$4=\"Fri\"),\"N\",IF(AND(Setup!$C$9=0,X$4=\"Sat\"),\"N\",IF(AND(Setup!$C$10=0,X$4=\"Sun\"),\"N\",IF(AND(Setup!$C$11=0,X$3=\"Y\"),\"N\",\"Y\"))))","v":"N"},{"$f":"IF(AND(Setup!$C$8=0,Y$4=\"Fri\"),\"N\",IF(AND(Setup!$C$9=0,Y$4=\"Sat\"),\"N\",IF(AND(Setup!$C$10=0,Y$4=\"Sun\"),\"N\",IF(AND(Setup!$C$11=0,Y$3=\"Y\"),\"N\",\"Y\"))))","v":"Y"},{"$f":"IF(AND(Setup!$C$8=0,Z$4=\"Fri\"),\"N\",IF(AND(Setup!$C$9=0,Z$4=\"Sat\"),\"N\",IF(AND(Setup!$C$10=0,Z$4=\"Sun\"),\"N\",IF(AND(Setup!$C$11=0,Z$3=\"Y\"),\"N\",\"Y\"))))","v":"Y"},{"$f":"IF(AND(Setup!$C$8=0,AA$4=\"Fri\"),\"N\",IF(AND(Setup!$C$9=0,AA$4=\"Sat\"),\"N\",IF(AND(Setup!$C$10=0,AA$4=\"Sun\"),\"N\",IF(AND(Setup!$C$11=0,AA$3=\"Y\"),\"N\",\"Y\"))))","v":"Y"},{"$f":"IF(AND(Setup!$C$8=0,AB$4=\"Fri\"),\"N\",IF(AND(Setup!$C$9=0,AB$4=\"Sat\"),\"N\",IF(AND(Setup!$C$10=0,AB$4=\"Sun\"),\"N\",IF(AND(Setup!$C$11=0,AB$3=\"Y\"),\"N\",\"Y\"))))","v":"Y"},{"$f":"IF(AND(Setup!$C$8=0,AC$4=\"Fri\"),\"N\",IF(AND(Setup!$C$9=0,AC$4=\"Sat\"),\"N\",IF(AND(Setup!$C$10=0,AC$4=\"Sun\"),\"N\",IF(AND(Setup!$C$11=0,AC$3=\"Y\"),\"N\",\"Y\"))))","v":"Y"},{"$f":"IF(AND(Setup!$C$8=0,AD$4=\"Fri\"),\"N\",IF(AND(Setup!$C$9=0,AD$4=\"Sat\"),\"N\",IF(AND(Setup!$C$10=0,AD$4=\"Sun\"),\"N\",IF(AND(Setup!$C$11=0,AD$3=\"Y\"),\"N\",\"Y\"))))","v":"N"},{"$f":"IF(AND(Setup!$C$8=0,AE$4=\"Fri\"),\"N\",IF(AND(Setup!$C$9=0,AE$4=\"Sat\"),\"N\",IF(AND(Setup!$C$10=0,AE$4=\"Sun\"),\"N\",IF(AND(Setup!$C$11=0,AE$3=\"Y\"),\"N\",\"Y\"))))","v":"N"},{"$f":"IF(AND(Setup!$C$8=0,AF$4=\"Fri\"),\"N\",IF(AND(Setup!$C$9=0,AF$4=\"Sat\"),\"N\",IF(AND(Setup!$C$10=0,AF$4=\"Sun\"),\"N\",IF(AND(Setup!$C$11=0,AF$3=\"Y\"),\"N\",\"Y\"))))","v":"Y"},{"$f":"IF(AND(Setup!$C$8=0,AG$4=\"Fri\"),\"N\",IF(AND(Setup!$C$9=0,AG$4=\"Sat\"),\"N\",IF(AND(Setup!$C$10=0,AG$4=\"Sun\"),\"N\",IF(AND(Setup!$C$11=0,AG$3=\"Y\"),\"N\",\"Y\"))))","v":"N"},{"$f":"IF(AND(Setup!$C$8=0,AH$4=\"Fri\"),\"N\",IF(AND(Setup!$C$9=0,AH$4=\"Sat\"),\"N\",IF(AND(Setup!$C$10=0,AH$4=\"Sun\"),\"N\",IF(AND(Setup!$C$11=0,AH$3=\"Y\"),\"N\",\"Y\"))))","v":"Y"},{"$f":"IF(AND(Setup!$C$8=0,AI$4=\"Fri\"),\"N\",IF(AND(Setup!$C$9=0,AI$4=\"Sat\"),\"N\",IF(AND(Setup!$C$10=0,AI$4=\"Sun\"),\"N\",IF(AND(Setup!$C$11=0,AI$3=\"Y\"),\"N\",\"Y\"))))","v":"Y"},{"$f":"IF(AND(Setup!$C$8=0,AJ$4=\"Fri\"),\"N\",IF(AND(Setup!$C$9=0,AJ$4=\"Sat\"),\"N\",IF(AND(Setup!$C$10=0,AJ$4=\"Sun\"),\"N\",IF(AND(Setup!$C$11=0,AJ$3=\"Y\"),\"N\",\"Y\"))))","v":"Y"},{"$f":"IF(AND(Setup!$C$8=0,AK$4=\"Fri\"),\"N\",IF(AND(Setup!$C$9=0,AK$4=\"Sat\"),\"N\",IF(AND(Setup!$C$10=0,AK$4=\"Sun\"),\"N\",IF(AND(Setup!$C$11=0,AK$3=\"Y\"),\"N\",\"Y\"))))","v":"N"},{"$f":"IF(AND(Setup!$C$8=0,AL$4=\"Fri\"),\"N\",IF(AND(Setup!$C$9=0,AL$4=\"Sat\"),\"N\",IF(AND(Setup!$C$10=0,AL$4=\"Sun\"),\"N\",IF(AND(Setup!$C$11=0,AL$3=\"Y\"),\"N\",\"Y\"))))","v":"N"},{"$f":"IF(AND(Setup!$C$8=0,AM$4=\"Fri\"),\"N\",IF(AND(Setup!$C$9=0,AM$4=\"Sat\"),\"N\",IF(AND(Setup!$C$10=0,AM$4=\"Sun\"),\"N\",IF(AND(Setup!$C$11=0,AM$3=\"Y\"),\"N\",\"Y\"))))","v":"Y"},{"$f":"IF(AND(Setup!$C$8=0,AN$4=\"Fri\"),\"N\",IF(AND(Setup!$C$9=0,AN$4=\"Sat\"),\"N\",IF(AND(Setup!$C$10=0,AN$4=\"Sun\"),\"N\",IF(AND(Setup!$C$11=0,AN$3=\"Y\"),\"N\",\"Y\"))))","v":"Y"},{"$f":"IF(AND(Setup!$C$8=0,AO$4=\"Fri\"),\"N\",IF(AND(Setup!$C$9=0,AO$4=\"Sat\"),\"N\",IF(AND(Setup!$C$10=0,AO$4=\"Sun\"),\"N\",IF(AND(Setup!$C$11=0,AO$3=\"Y\"),\"N\",\"Y\"))))","v":"Y"},{"$f":"IF(AND(Setup!$C$8=0,AP$4=\"Fri\"),\"N\",IF(AND(Setup!$C$9=0,AP$4=\"Sat\"),\"N\",IF(AND(Setup!$C$10=0,AP$4=\"Sun\"),\"N\",IF(AND(Setup!$C$11=0,AP$3=\"Y\"),\"N\",\"Y\"))))","v":"Y"},{"$f":"IF(AND(Setup!$C$8=0,AQ$4=\"Fri\"),\"N\",IF(AND(Setup!$C$9=0,AQ$4=\"Sat\"),\"N\",IF(AND(Setup!$C$10=0,AQ$4=\"Sun\"),\"N\",IF(AND(Setup!$C$11=0,AQ$3=\"Y\"),\"N\",\"Y\"))))","v":"Y"},{"$f":"IF(AND(Setup!$C$8=0,AR$4=\"Fri\"),\"N\",IF(AND(Setup!$C$9=0,AR$4=\"Sat\"),\"N\",IF(AND(Setup!$C$10=0,AR$4=\"Sun\"),\"N\",IF(AND(Setup!$C$11=0,AR$3=\"Y\"),\"N\",\"Y\"))))","v":"N"},{"$f":"IF(AND(Setup!$C$8=0,AS$4=\"Fri\"),\"N\",IF(AND(Setup!$C$9=0,AS$4=\"Sat\"),\"N\",IF(AND(Setup!$C$10=0,AS$4=\"Sun\"),\"N\",IF(AND(Setup!$C$11=0,AS$3=\"Y\"),\"N\",\"Y\"))))","v":"N"},{"$f":"IF(AND(Setup!$C$8=0,AT$4=\"Fri\"),\"N\",IF(AND(Setup!$C$9=0,AT$4=\"Sat\"),\"N\",IF(AND(Setup!$C$10=0,AT$4=\"Sun\"),\"N\",IF(AND(Setup!$C$11=0,AT$3=\"Y\"),\"N\",\"Y\"))))","v":"Y"},{"$f":"IF(AND(Setup!$C$8=0,AU$4=\"Fri\"),\"N\",IF(AND(Setup!$C$9=0,AU$4=\"Sat\"),\"N\",IF(AND(Setup!$C$10=0,AU$4=\"Sun\"),\"N\",IF(AND(Setup!$C$11=0,AU$3=\"Y\"),\"N\",\"Y\"))))","v":"Y"},{"$f":"IF(AND(Setup!$C$8=0,AV$4=\"Fri\"),\"N\",IF(AND(Setup!$C$9=0,AV$4=\"Sat\"),\"N\",IF(AND(Setup!$C$10=0,AV$4=\"Sun\"),\"N\",IF(AND(Setup!$C$11=0,AV$3=\"Y\"),\"N\",\"Y\"))))","v":"Y"},{"$f":"IF(AND(Setup!$C$8=0,AW$4=\"Fri\"),\"N\",IF(AND(Setup!$C$9=0,AW$4=\"Sat\"),\"N\",IF(AND(Setup!$C$10=0,AW$4=\"Sun\"),\"N\",IF(AND(Setup!$C$11=0,AW$3=\"Y\"),\"N\",\"Y\"))))","v":"Y"},{"$f":"IF(AND(Setup!$C$8=0,AX$4=\"Fri\"),\"N\",IF(AND(Setup!$C$9=0,AX$4=\"Sat\"),\"N\",IF(AND(Setup!$C$10=0,AX$4=\"Sun\"),\"N\",IF(AND(Setup!$C$11=0,AX$3=\"Y\"),\"N\",\"Y\"))))","v":"Y"},{"$f":"IF(AND(Setup!$C$8=0,AY$4=\"Fri\"),\"N\",IF(AND(Setup!$C$9=0,AY$4=\"Sat\"),\"N\",IF(AND(Setup!$C$10=0,AY$4=\"Sun\"),\"N\",IF(AND(Setup!$C$11=0,AY$3=\"Y\"),\"N\",\"Y\"))))","v":"N"},{"$f":"IF(AND(Setup!$C$8=0,AZ$4=\"Fri\"),\"N\",IF(AND(Setup!$C$9=0,AZ$4=\"Sat\"),\"N\",IF(AND(Setup!$C$10=0,AZ$4=\"Sun\"),\"N\",IF(AND(Setup!$C$11=0,AZ$3=\"Y\"),\"N\",\"Y\"))))","v":"N"},{"$f":"IF(AND(Setup!$C$8=0,BA$4=\"Fri\"),\"N\",IF(AND(Setup!$C$9=0,BA$4=\"Sat\"),\"N\",IF(AND(Setup!$C$10=0,BA$4=\"Sun\"),\"N\",IF(AND(Setup!$C$11=0,BA$3=\"Y\"),\"N\",\"Y\"))))","v":"Y"},{"$f":"IF(AND(Setup!$C$8=0,BB$4=\"Fri\"),\"N\",IF(AND(Setup!$C$9=0,BB$4=\"Sat\"),\"N\",IF(AND(Setup!$C$10=0,BB$4=\"Sun\"),\"N\",IF(AND(Setup!$C$11=0,BB$3=\"Y\"),\"N\",\"Y\"))))","v":"Y"},{"$f":"IF(AND(Setup!$C$8=0,BC$4=\"Fri\"),\"N\",IF(AND(Setup!$C$9=0,BC$4=\"Sat\"),\"N\",IF(AND(Setup!$C$10=0,BC$4=\"Sun\"),\"N\",IF(AND(Setup!$C$11=0,BC$3=\"Y\"),\"N\",\"Y\"))))","v":"Y"},{"$f":"IF(AND(Setup!$C$8=0,BD$4=\"Fri\"),\"N\",IF(AND(Setup!$C$9=0,BD$4=\"Sat\"),\"N\",IF(AND(Setup!$C$10=0,BD$4=\"Sun\"),\"N\",IF(AND(Setup!$C$11=0,BD$3=\"Y\"),\"N\",\"Y\"))))","v":"Y"},{"$f":"IF(AND(Setup!$C$8=0,BE$4=\"Fri\"),\"N\",IF(AND(Setup!$C$9=0,BE$4=\"Sat\"),\"N\",IF(AND(Setup!$C$10=0,BE$4=\"Sun\"),\"N\",IF(AND(Setup!$C$11=0,BE$3=\"Y\"),\"N\",\"Y\"))))","v":"Y"},{"$f":"IF(AND(Setup!$C$8=0,BF$4=\"Fri\"),\"N\",IF(AND(Setup!$C$9=0,BF$4=\"Sat\"),\"N\",IF(AND(Setup!$C$10=0,BF$4=\"Sun\"),\"N\",IF(AND(Setup!$C$11=0,BF$3=\"Y\"),\"N\",\"Y\"))))","v":"N"},{"$f":"IF(AND(Setup!$C$8=0,BG$4=\"Fri\"),\"N\",IF(AND(Setup!$C$9=0,BG$4=\"Sat\"),\"N\",IF(AND(Setup!$C$10=0,BG$4=\"Sun\"),\"N\",IF(AND(Setup!$C$11=0,BG$3=\"Y\"),\"N\",\"Y\"))))","v":"N"},{"$f":"IF(AND(Setup!$C$8=0,BH$4=\"Fri\"),\"N\",IF(AND(Setup!$C$9=0,BH$4=\"Sat\"),\"N\",IF(AND(Setup!$C$10=0,BH$4=\"Sun\"),\"N\",IF(AND(Setup!$C$11=0,BH$3=\"Y\"),\"N\",\"Y\"))))","v":"Y"},{"$f":"IF(AND(Setup!$C$8=0,BI$4=\"Fri\"),\"N\",IF(AND(Setup!$C$9=0,BI$4=\"Sat\"),\"N\",IF(AND(Setup!$C$10=0,BI$4=\"Sun\"),\"N\",IF(AND(Setup!$C$11=0,BI$3=\"Y\"),\"N\",\"Y\"))))","v":"Y"},{"$f":"IF(AND(Setup!$C$8=0,BJ$4=\"Fri\"),\"N\",IF(AND(Setup!$C$9=0,BJ$4=\"Sat\"),\"N\",IF(AND(Setup!$C$10=0,BJ$4=\"Sun\"),\"N\",IF(AND(Setup!$C$11=0,BJ$3=\"Y\"),\"N\",\"Y\"))))","v":"Y"},{"$f":"IF(AND(Setup!$C$8=0,BK$4=\"Fri\"),\"N\",IF(AND(Setup!$C$9=0,BK$4=\"Sat\"),\"N\",IF(AND(Setup!$C$10=0,BK$4=\"Sun\"),\"N\",IF(AND(Setup!$C$11=0,BK$3=\"Y\"),\"N\",\"Y\"))))","v":"Y"}]
["Summary",null,"Number of Employees Present: ",{"$f":"IF(D$1=\"N\",0,$A$5-SUBTOTAL(109,OFFSET(D$6,1,0,EmpCount,1)))","v":11},{"$f":"IF(E$1=\"N\",0,$A$5-SUBTOTAL(109,OFFSET(E$6,1,0,EmpCount,1)))","v":11},{"$f":"IF(F$1=\"N\",0,$A$5-SUBTOTAL(109,OFFSET(F$6,1,0,EmpCount,1)))","v":11},{"$f":"IF(G$1=\"N\",0,$A$5-SUBTOTAL(109,OFFSET(G$6,1,0,EmpCount,1)))","v":11},{"$f":"IF(H$1=\"N\",0,$A$5-SUBTOTAL(109,OFFSET(H$6,1,0,EmpCount,1)))","v":0},{"$f":"IF(I$1=\"N\",0,$A$5-SUBTOTAL(109,OFFSET(I$6,1,0,EmpCount,1)))","v":0},{"$f":"IF(J$1=\"N\",0,$A$5-SUBTOTAL(109,OFFSET(J$6,1,0,EmpCount,1)))","v":0},{"$f":"IF(K$1=\"N\",0,$A$5-SUBTOTAL(109,OFFSET(K$6,1,0,EmpCount,1)))","v":0},{"$f":"IF(L$1=\"N\",0,$A$5-SUBTOTAL(109,OFFSET(L$6,1,0,EmpCount,1)))","v":8},{"$f":"IF(M$1=\"N\",0,$A$5-SUBTOTAL(109,OFFSET(M$6,1,0,EmpCount,1)))","v":8},{"$f":"IF(N$1=\"N\",0,$A$5-SUBTOTAL(109,OFFSET(N$6,1,0,EmpCount,1)))","v":8},{"$f":"IF(O$1=\"N\",0,$A$5-SUBTOTAL(109,OFFSET(O$6,1,0,EmpCount,1)))","v":8},{"$f":"IF(P$1=\"N\",0,$A$5-SUBTOTAL(109,OFFSET(P$6,1,0,EmpCount,1)))","v":0},{"$f":"IF(Q$1=\"N\",0,$A$5-SUBTOTAL(109,OFFSET(Q$6,1,0,EmpCount,1)))","v":0},{"$f":"IF(R$1=\"N\",0,$A$5-SUBTOTAL(109,OFFSET(R$6,1,0,EmpCount,1)))","v":12},{"$f":"IF(S$1=\"N\",0,$A$5-SUBTOTAL(109,OFFSET(S$6,1,0,EmpCount,1)))","v":12},{"$f":"IF(T$1=\"N\",0,$A$5-SUBTOTAL(109,OFFSET(T$6,1,0,EmpCount,1)))","v":12},{"$f":"IF(U$1=\"N\",0,$A$5-SUBTOTAL(109,OFFSET(U$6,1,0,EmpCount,1)))","v":12},{"$f":"IF(V$1=\"N\",0,$A$5-SUBTOTAL(109,OFFSET(V$6,1,0,EmpCount,1)))","v":12},{"$f":"IF(W$1=\"N\",0,$A$5-SUBTOTAL(109,OFFSET(W$6,1,0,EmpCount,1)))","v":0},{"$f":"IF(X$1=\"N\",0,$A$5-SUBTOTAL(109,OFFSET(X$6,1,0,EmpCount,1)))","v":0},{"$f":"IF(Y$1=\"N\",0,$A$5-SUBTOTAL(109,OFFSET(Y$6,1,0,EmpCount,1)))","v":11},{"$f":"IF(Z$1=\"N\",0,$A$5-SUBTOTAL(109,OFFSET(Z$6,1,0,EmpCount,1)))","v":11},{"$f":"IF(AA$1=\"N\",0,$A$5-SUBTOTAL(109,OFFSET(AA$6,1,0,EmpCount,1)))","v":11},{"$f":"IF(AB$1=\"N\",0,$A$5-SUBTOTAL(109,OFFSET(AB$6,1,0,EmpCount,1)))","v":9},{"$f":"IF(AC$1=\"N\",0,$A$5-SUBTOTAL(109,OFFSET(AC$6,1,0,EmpCount,1)))","v":9},{"$f":"IF(AD$1=\"N\",0,$A$5-SUBTOTAL(109,OFFSET(AD$6,1,0,EmpCount,1)))","v":0},{"$f":"IF(AE$1=\"N\",0,$A$5-SUBTOTAL(109,OFFSET(AE$6,1,0,EmpCount,1)))","v":0},{"$f":"IF(AF$1=\"N\",0,$A$5-SUBTOTAL(109,OFFSET(AF$6,1,0,EmpCount,1)))","v":4},{"$f":"IF(AG$1=\"N\",0,$A$5-SUBTOTAL(109,OFFSET(AG$6,1,0,EmpCount,1)))","v":0},{"$f":"IF(AH$1=\"N\",0,$A$5-SUBTOTAL(109,OFFSET(AH$6,1,0,EmpCount,1)))","v":5},{"$f":"IF(AI$1=\"N\",0,$A$5-SUBTOTAL(109,OFFSET(AI$6,1,0,EmpCount,1)))","v":5},{"$f":"IF(AJ$1=\"N\",0,$A$5-SUBTOTAL(109,OFFSET(AJ$6,1,0,EmpCount,1)))","v":5},{"$f":"IF(AK$1=\"N\",0,$A$5-SUBTOTAL(109,OFFSET(AK$6,1,0,EmpCount,1)))","v":0},{"$f":"IF(AL$1=\"N\",0,$A$5-SUBTOTAL(109,OFFSET(AL$6,1,0,EmpCount,1)))","v":0},{"$f":"IF(AM$1=\"N\",0,$A$5-SUBTOTAL(109,OFFSET(AM$6,1,0,EmpCount,1)))","v":12},{"$f":"IF(AN$1=\"N\",0,$A$5-SUBTOTAL(109,OFFSET(AN$6,1,0,EmpCount,1)))","v":12},{"$f":"IF(AO$1=\"N\",0,$A$5-SUBTOTAL(109,OFFSET(AO$6,1,0,EmpCount,1)))","v":12},{"$f":"IF(AP$1=\"N\",0,$A$5-SUBTOTAL(109,OFFSET(AP$6,1,0,EmpCount,1)))","v":12},{"$f":"IF(AQ$1=\"N\",0,$A$5-SUBTOTAL(109,OFFSET(AQ$6,1,0,EmpCount,1)))","v":12},{"$f":"IF(AR$1=\"N\",0,$A$5-SUBTOTAL(109,OFFSET(AR$6,1,0,EmpCount,1)))","v":0},{"$f":"IF(AS$1=\"N\",0,$A$5-SUBTOTAL(109,OFFSET(AS$6,1,0,EmpCount,1)))","v":0},{"$f":"IF(AT$1=\"N\",0,$A$5-SUBTOTAL(109,OFFSET(AT$6,1,0,EmpCount,1)))","v":12},{"$f":"IF(AU$1=\"N\",0,$A$5-SUBTOTAL(109,OFFSET(AU$6,1,0,EmpCount,1)))","v":12},{"$f":"IF(AV$1=\"N\",0,$A$5-SUBTOTAL(109,OFFSET(AV$6,1,0,EmpCount,1)))","v":12},{"$f":"IF(AW$1=\"N\",0,$A$5-SUBTOTAL(109,OFFSET(AW$6,1,0,EmpCount,1)))","v":12},{"$f":"IF(AX$1=\"N\",0,$A$5-SUBTOTAL(109,OFFSET(AX$6,1,0,EmpCount,1)))","v":12},{"$f":"IF(AY$1=\"N\",0,$A$5-SUBTOTAL(109,OFFSET(AY$6,1,0,EmpCount,1)))","v":0},{"$f":"IF(AZ$1=\"N\",0,$A$5-SUBTOTAL(109,OFFSET(AZ$6,1,0,EmpCount,1)))","v":0},{"$f":"IF(BA$1=\"N\",0,$A$5-SUBTOTAL(109,OFFSET(BA$6,1,0,EmpCount,1)))","v":12},{"$f":"IF(BB$1=\"N\",0,$A$5-SUBTOTAL(109,OFFSET(BB$6,1,0,EmpCount,1)))","v":12},{"$f":"IF(BC$1=\"N\",0,$A$5-SUBTOTAL(109,OFFSET(BC$6,1,0,EmpCount,1)))","v":12},{"$f":"IF(BD$1=\"N\",0,$A$5-SUBTOTAL(109,OFFSET(BD$6,1,0,EmpCount,1)))","v":12},{"$f":"IF(BE$1=\"N\",0,$A$5-SUBTOTAL(109,OFFSET(BE$6,1,0,EmpCount,1)))","v":12},{"$f":"IF(BF$1=\"N\",0,$A$5-SUBTOTAL(109,OFFSET(BF$6,1,0,EmpCount,1)))","v":0},{"$f":"IF(BG$1=\"N\",0,$A$5-SUBTOTAL(109,OFFSET(BG$6,1,0,EmpCount,1)))","v":0},{"$f":"IF(BH$1=\"N\",0,$A$5-SUBTOTAL(109,OFFSET(BH$6,1,0,EmpCount,1)))","v":12},{"$f":"IF(BI$1=\"N\",0,$A$5-SUBTOTAL(109,OFFSET(BI$6,1,0,EmpCount,1)))","v":12},{"$f":"IF(BJ$1=\"N\",0,$A$5-SUBTOTAL(109,OFFSET(BJ$6,1,0,EmpCount,1)))","v":12},{"$f":"IF(BK$1=\"N\",0,$A$5-SUBTOTAL(109,OFFSET(BK$6,1,0,EmpCount,1)))","v":12}]
["© www.excel-skills.com",null,"Public Holiday Indicator: ",{"$f":"IF(ISNA(VLOOKUP(D5,PublicRange,1,0)),\"-\",\"Y\")","v":"-"},{"$f":"IF(ISNA(VLOOKUP(E5,PublicRange,1,0)),\"-\",\"Y\")","v":"-"},{"$f":"IF(ISNA(VLOOKUP(F5,PublicRange,1,0)),\"-\",\"Y\")","v":"-"},{"$f":"IF(ISNA(VLOOKUP(G5,PublicRange,1,0)),\"-\",\"Y\")","v":"-"},{"$f":"IF(ISNA(VLOOKUP(H5,PublicRange,1,0)),\"-\",\"Y\")","v":"Y"},{"$f":"IF(ISNA(VLOOKUP(I5,PublicRange,1,0)),\"-\",\"Y\")","v":"-"},{"$f":"IF(ISNA(VLOOKUP(J5,PublicRange,1,0)),\"-\",\"Y\")","v":"-"},{"$f":"IF(ISNA(VLOOKUP(K5,PublicRange,1,0)),\"-\",\"Y\")","v":"Y"},{"$f":"IF(ISNA(VLOOKUP(L5,PublicRange,1,0)),\"-\",\"Y\")","v":"-"},{"$f":"IF(ISNA(VLOOKUP(M5,PublicRange,1,0)),\"-\",\"Y\")","v":"-"},{"$f":"IF(ISNA(VLOOKUP(N5,PublicRange,1,0)),\"-\",\"Y\")","v":"-"},{"$f":"IF(ISNA(VLOOKUP(O5,PublicRange,1,0)),\"-\",\"Y\")","v":"-"},{"$f":"IF(ISNA(VLOOKUP(P5,PublicRange,1,0)),\"-\",\"Y\")","v":"-"},{"$f":"IF(ISNA(VLOOKUP(Q5,PublicRange,1,0)),\"-\",\"Y\")","v":"-"},{"$f":"IF(ISNA(VLOOKUP(R5,PublicRange,1,0)),\"-\",\"Y\")","v":"-"},{"$f":"IF(ISNA(VLOOKUP(S5,PublicRange,1,0)),\"-\",\"Y\")","v":"-"},{"$f":"IF(ISNA(VLOOKUP(T5,PublicRange,1,0)),\"-\",\"Y\")","v":"-"},{"$f":"IF(ISNA(VLOOKUP(U5,PublicRange,1,0)),\"-\",\"Y\")","v":"-"},{"$f":"IF(ISNA(VLOOKUP(V5,PublicRange,1,0)),\"-\",\"Y\")","v":"-"},{"$f":"IF(ISNA(VLOOKUP(W5,PublicRange,1,0)),\"-\",\"Y\")","v":"-"},{"$f":"IF(ISNA(VLOOKUP(X5,PublicRange,1,0)),\"-\",\"Y\")","v":"-"},{"$f":"IF(ISNA(VLOOKUP(Y5,PublicRange,1,0)),\"-\",\"Y\")","v":"-"},{"$f":"IF(ISNA(VLOOKUP(Z5,PublicRange,1,0)),\"-\",\"Y\")","v":"-"},{"$f":"IF(ISNA(VLOOKUP(AA5,PublicRange,1,0)),\"-\",\"Y\")","v":"-"},{"$f":"IF(ISNA(VLOOKUP(AB5,PublicRange,1,0)),\"-\",\"Y\")","v":"-"},{"$f":"IF(ISNA(VLOOKUP(AC5,PublicRange,1,0)),\"-\",\"Y\")","v":"-"},{"$f":"IF(ISNA(VLOOKUP(AD5,PublicRange,1,0)),\"-\",\"Y\")","v":"-"},{"$f":"IF(ISNA(VLOOKUP(AE5,PublicRange,1,0)),\"-\",\"Y\")","v":"-"},{"$f":"IF(ISNA(VLOOKUP(AF5,PublicRange,1,0)),\"-\",\"Y\")","v":"-"},{"$f":"IF(ISNA(VLOOKUP(AG5,PublicRange,1,0)),\"-\",\"Y\")","v":"Y"},{"$f":"IF(ISNA(VLOOKUP(AH5,PublicRange,1,0)),\"-\",\"Y\")","v":"-"},{"$f":"IF(ISNA(VLOOKUP(AI5,PublicRange,1,0)),\"-\",\"Y\")","v":"-"},{"$f":"IF(ISNA(VLOOKUP(AJ5,PublicRange,1,0)),\"-\",\"Y\")","v":"-"},{"$f":"IF(ISNA(VLOOKUP(AK5,PublicRange,1,0)),\"-\",\"Y\")","v":"Y"},{"$f":"IF(ISNA(VLOOKUP(AL5,PublicRange,1,0)),\"-\",\"Y\")","v":"-"},{"$f":"IF(ISNA(VLOOKUP(AM5,PublicRange,1,0)),\"-\",\"Y\")","v":"-"},{"$f":"IF(ISNA(VLOOKUP(AN5,PublicRange,1,0)),\"-\",\"Y\")","v":"-"},{"$f":"IF(ISNA(VLOOKUP(AO5,PublicRange,1,0)),\"-\",\"Y\")","v":"-"},{"$f":"IF(ISNA(VLOOKUP(AP5,PublicRange,1,0)),\"-\",\"Y\")","v":"-"},{"$f":"IF(ISNA(VLOOKUP(AQ5,PublicRange,1,0)),\"-\",\"Y\")","v":"-"},{"$f":"IF(ISNA(VLOOKUP(AR5,PublicRange,1,0)),\"-\",\"Y\")","v":"-"},{"$f":"IF(ISNA(VLOOKUP(AS5,PublicRange,1,0)),\"-\",\"Y\")","v":"-"},{"$f":"IF(ISNA(VLOOKUP(AT5,PublicRange,1,0)),\"-\",\"Y\")","v":"-"},{"$f":"IF(ISNA(VLOOKUP(AU5,PublicRange,1,0)),\"-\",\"Y\")","v":"-"},{"$f":"IF(ISNA(VLOOKUP(AV5,PublicRange,1,0)),\"-\",\"Y\")","v":"-"},{"$f":"IF(ISNA(VLOOKUP(AW5,PublicRange,1,0)),\"-\",\"Y\")","v":"-"},{"$f":"IF(ISNA(VLOOKUP(AX5,PublicRange,1,0)),\"-\",\"Y\")","v":"-"},{"$f":"IF(ISNA(VLOOKUP(AY5,PublicRange,1,0)),\"-\",\"Y\")","v":"-"},{"$f":"IF(ISNA(VLOOKUP(AZ5,PublicRange,1,0)),\"-\",\"Y\")","v":"-"},{"$f":"IF(ISNA(VLOOKUP(BA5,PublicRange,1,0)),\"-\",\"Y\")","v":"-"},{"$f":"IF(ISNA(VLOOKUP(BB5,PublicRange,1,0)),\"-\",\"Y\")","v":"-"},{"$f":"IF(ISNA(VLOOKUP(BC5,PublicRange,1,0)),\"-\",\"Y\")","v":"-"},{"$f":"IF(ISNA(VLOOKUP(BD5,PublicRange,1,0)),\"-\",\"Y\")","v":"-"},{"$f":"IF(ISNA(VLOOKUP(BE5,PublicRange,1,0)),\"-\",\"Y\")","v":"-"},{"$f":"IF(ISNA(VLOOKUP(BF5,PublicRange,1,0)),\"-\",\"Y\")","v":"-"},{"$f":"IF(ISNA(VLOOKUP(BG5,PublicRange,1,0)),\"-\",\"Y\")","v":"-"},{"$f":"IF(ISNA(VLOOKUP(BH5,PublicRange,1,0)),\"-\",\"Y\")","v":"-"},{"$f":"IF(ISNA(VLOOKUP(BI5,PublicRange,1,0)),\"-\",\"Y\")","v":"-"},{"$f":"IF(ISNA(VLOOKUP(BJ5,PublicRange,1,0)),\"-\",\"Y\")","v":"-"},{"$f":"IF(ISNA(VLOOKUP(BK5,PublicRange,1,0)),\"-\",\"Y\")","v":"-"}]
[null,null,"Weekday: ",{"$f":"TEXT(D5,\"ddd\")","v":"Mon"},{"$f":"TEXT(E5,\"ddd\")","v":"Tue"},"Wed","Thu","Fri","Sat","Sun","Mon","Tue","Wed","Thu","Fri","Sat","Sun","Mon","Tue","Wed","Thu","Fri","Sat","Sun","Mon","Tue","Wed","Thu","Fri","Sat","Sun","Mon","Tue","Wed","Thu","Fri","Sat","Sun",{"$f":"TEXT(AM5,\"ddd\")","v":"Mon"},{"$f":"TEXT(AN5,\"ddd\")","v":"Tue"},{"$f":"TEXT(AO5,\"ddd\")","v":"Wed"},{"$f":"TEXT(AP5,\"ddd\")","v":"Thu"},{"$f":"TEXT(AQ5,\"ddd\")","v":"Fri"},{"$f":"TEXT(AR5,\"ddd\")","v":"Sat"},{"$f":"TEXT(AS5,\"ddd\")","v":"Sun"},{"$f":"TEXT(AT5,\"ddd\")","v":"Mon"},{"$f":"TEXT(AU5,\"ddd\")","v":"Tue"},{"$f":"TEXT(AV5,\"ddd\")","v":"Wed"},{"$f":"TEXT(AW5,\"ddd\")","v":"Thu"},{"$f":"TEXT(AX5,\"ddd\")","v":"Fri"},{"$f":"TEXT(AY5,\"ddd\")","v":"Sat"},{"$f":"TEXT(AZ5,\"ddd\")","v":"Sun"},{"$f":"TEXT(BA5,\"ddd\")","v":"Mon"},{"$f":"TEXT(BB5,\"ddd\")","v":"Tue"},{"$f":"TEXT(BC5,\"ddd\")","v":"Wed"},{"$f":"TEXT(BD5,\"ddd\")","v":"Thu"},{"$f":"TEXT(BE5,\"ddd\")","v":"Fri"},{"$f":"TEXT(BF5,\"ddd\")","v":"Sat"},{"$f":"TEXT(BG5,\"ddd\")","v":"Sun"},{"$f":"TEXT(BH5,\"ddd\")","v":"Mon"},{"$f":"TEXT(BI5,\"ddd\")","v":"Tue"},{"$f":"TEXT(BJ5,\"ddd\")","v":"Wed"},"Thu"]
[{"$f":"SUBTOTAL(103,EmpCode)","v":12},null,"Date: ",{"$f":"Setup!$B$5","v":"2021-03-29"},{"$f":"D5+1","v":"2021-03-30"},{"$f":"E5+1","v":"2021-03-31"},"2021-04-01","2021-04-02","2021-04-03","2021-04-04","2021-04-05","2021-04-06","2021-04-07","2021-04-08","2021-04-09","2021-04-10","2021-04-11","2021-04-12","2021-04-13","2021-04-14","2021-04-15","2021-04-16","2021-04-17","2021-04-18","2021-04-19","2021-04-20","2021-04-21","2021-04-22","2021-04-23","2021-04-24","2021-04-25","2021-04-26","2021-04-27","2021-04-28","2021-04-29","2021-04-30","2021-05-01","2021-05-02",{"$f":"AL5+1","v":"2021-05-03"},{"$f":"AM5+1","v":"2021-05-04"},{"$f":"AN5+1","v":"2021-05-05"},{"$f":"AO5+1","v":"2021-05-06"},{"$f":"AP5+1","v":"2021-05-07"},{"$f":"AQ5+1","v":"2021-05-08"},{"$f":"AR5+1","v":"2021-05-09"},{"$f":"AS5+1","v":"2021-05-10"},{"$f":"AT5+1","v":"2021-05-11"},{"$f":"AU5+1","v":"2021-05-12"},{"$f":"AV5+1","v":"2021-05-13"},{"$f":"AW5+1","v":"2021-05-14"},{"$f":"AX5+1","v":"2021-05-15"},{"$f":"AY5+1","v":"2021-05-16"},{"$f":"AZ5+1","v":"2021-05-17"},{"$f":"BA5+1","v":"2021-05-18"},{"$f":"BB5+1","v":"2021-05-19"},{"$f":"BC5+1","v":"2021-05-20"},{"$f":"BD5+1","v":"2021-05-21"},{"$f":"BE5+1","v":"2021-05-22"},{"$f":"BF5+1","v":"2021-05-23"},{"$f":"BG5+1","v":"2021-05-24"},{"$f":"BH5+1","v":"2021-05-25"},{"$f":"BI5+1","v":"2021-05-26"},{"$f":"BJ5+1","v":"2021-05-27"}]
["Employee Code","Employee Name","Department / Role","D1","D2","D3","D4","D5","D6","D7","D8","D9","D10","D11","D12","D13","D14","D15","D16","D17","D18","D19","D20","D21","D22","D23","D24","D25","D26","D27","D28","D29","D30","D31","D32","D33","D34","D35","D36","D37","D38","D39","D40","D41","D42","D43","D44","D45","D46","D47","D48","D49","D50","D51","D52","D53","D54","D55","D56","D57","D58","D59","D60"]
[1001,"Employee 1","Management",{"$f":"IF(D$1=\"N\",0,COUNTIFS(TrackCode,$A7,TrackFrom,\"<=\"&D$5,TrackTo,\">=\"&D$5))","v":1},{"$f":"IF(E$1=\"N\",0,COUNTIFS(TrackCode,$A7,TrackFrom,\"<=\"&E$5,TrackTo,\">=\"&E$5))","v":1},{"$f":"IF(F$1=\"N\",0,COUNTIFS(TrackCode,$A7,TrackFrom,\"<=\"&F$5,TrackTo,\">=\"&F$5))","v":1},{"$f":"IF(G$1=\"N\",0,COUNTIFS(TrackCode,$A7,TrackFrom,\"<=\"&G$5,TrackTo,\">=\"&G$5))","v":1},{"$f":"IF(H$1=\"N\",0,COUNTIFS(TrackCode,$A7,TrackFrom,\"<=\"&H$5,TrackTo,\">=\"&H$5))","v":0},{"$f":"IF(I$1=\"N\",0,COUNTIFS(TrackCode,$A7,TrackFrom,\"<=\"&I$5,TrackTo,\">=\"&I$5))","v":0},{"$f":"IF(J$1=\"N\",0,COUNTIFS(TrackCode,$A7,TrackFrom,\"<=\"&J$5,TrackTo,\">=\"&J$5))","v":0},{"$f":"IF(K$1=\"N\",0,COUNTIFS(TrackCode,$A7,TrackFrom,\"<=\"&K$5,TrackTo,\">=\"&K$5))","v":0},{"$f":"IF(L$1=\"N\",0,COUNTIFS(TrackCode,$A7,TrackFrom,\"<=\"&L$5,TrackTo,\">=\"&L$5))","v":0},{"$f":"IF(M$1=\"N\",0,COUNTIFS(TrackCode,$A7,TrackFrom,\"<=\"&M$5,TrackTo,\">=\"&M$5))","v":0},{"$f":"IF(N$1=\"N\",0,COUNTIFS(TrackCode,$A7,TrackFrom,\"<=\"&N$5,TrackTo,\">=\"&N$5))","v":0},{"$f":"IF(O$1=\"N\",0,COUNTIFS(TrackCode,$A7,TrackFrom,\"<=\"&O$5,TrackTo,\">=\"&O$5))","v":0},{"$f":"IF(P$1=\"N\",0,COUNTIFS(TrackCode,$A7,TrackFrom,\"<=\"&P$5,TrackTo,\">=\"&P$5))","v":0},{"$f":"IF(Q$1=\"N\",0,COUNTIFS(TrackCode,$A7,TrackFrom,\"<=\"&Q$5,TrackTo,\">=\"&Q$5))","v":0},{"$f":"IF(R$1=\"N\",0,COUNTIFS(TrackCode,$A7,TrackFrom,\"<=\"&R$5,TrackTo,\">=\"&R$5))","v":0},{"$f":"IF(S$1=\"N\",0,COUNTIFS(TrackCode,$A7,TrackFrom,\"<=\"&S$5,TrackTo,\">=\"&S$5))","v":0},{"$f":"IF(T$1=\"N\",0,COUNTIFS(TrackCode,$A7,TrackFrom,\"<=\"&T$5,TrackTo,\">=\"&T$5))","v":0},{"$f":"IF(U$1=\"N\",0,COUNTIFS(TrackCode,$A7,TrackFrom,\"<=\"&U$5,TrackTo,\">=\"&U$5))","v":0},{"$f":"IF(V$1=\"N\",0,COUNTIFS(TrackCode,$A7,TrackFrom,\"<=\"&V$5,TrackTo,\">=\"&V$5))","v":0},{"$f":"IF(W$1=\"N\",0,COUNTIFS(TrackCode,$A7,TrackFrom,\"<=\"&W$5,TrackTo,\">=\"&W$5))","v":0},{"$f":"IF(X$1=\"N\",0,COUNTIFS(TrackCode,$A7,TrackFrom,\"<=\"&X$5,TrackTo,\">=\"&X$5))","v":0},{"$f":"IF(Y$1=\"N\",0,COUNTIFS(TrackCode,$A7,TrackFrom,\"<=\"&Y$5,TrackTo,\">=\"&Y$5))","v":0},{"$f":"IF(Z$1=\"N\",0,COUNTIFS(TrackCode,$A7,TrackFrom,\"<=\"&Z$5,TrackTo,\">=\"&Z$5))","v":0},{"$f":"IF(AA$1=\"N\",0,COUNTIFS(TrackCode,$A7,TrackFrom,\"<=\"&AA$5,TrackTo,\">=\"&AA$5))","v":0},{"$f":"IF(AB$1=\"N\",0,COUNTIFS(TrackCode,$A7,TrackFrom,\"<=\"&AB$5,TrackTo,\">=\"&AB$5))","v":0},{"$f":"IF(AC$1=\"N\",0,COUNTIFS(TrackCode,$A7,TrackFrom,\"<=\"&AC$5,TrackTo,\">=\"&AC$5))","v":0},{"$f":"IF(AD$1=\"N\",0,COUNTIFS(TrackCode,$A7,TrackFrom,\"<=\"&AD$5,TrackTo,\">=\"&AD$5))","v":0},{"$f":"IF(AE$1=\"N\",0,COUNTIFS(TrackCode,$A7,TrackFrom,\"<=\"&AE$5,TrackTo,\">=\"&AE$5))","v":0},{"$f":"IF(AF$1=\"N\",0,COUNTIFS(TrackCode,$A7,TrackFrom,\"<=\"&AF$5,TrackTo,\">=\"&AF$5))","v":0},{"$f":"IF(AG$1=\"N\",0,COUNTIFS(TrackCode,$A7,TrackFrom,\"<=\"&AG$5,TrackTo,\">=\"&AG$5))","v":0},{"$f":"IF(AH$1=\"N\",0,COUNTIFS(TrackCode,$A7,TrackFrom,\"<=\"&AH$5,TrackTo,\">=\"&AH$5))","v":0},{"$f":"IF(AI$1=\"N\",0,COUNTIFS(TrackCode,$A7,TrackFrom,\"<=\"&AI$5,TrackTo,\">=\"&AI$5))","v":0},{"$f":"IF(AJ$1=\"N\",0,COUNTIFS(TrackCode,$A7,TrackFrom,\"<=\"&AJ$5,TrackTo,\">=\"&AJ$5))","v":0},{"$f":"IF(AK$1=\"N\",0,COUNTIFS(TrackCode,$A7,TrackFrom,\"<=\"&AK$5,TrackTo,\">=\"&AK$5))","v":0},{"$f":"IF(AL$1=\"N\",0,COUNTIFS(TrackCode,$A7,TrackFrom,\"<=\"&AL$5,TrackTo,\">=\"&AL$5))","v":0},{"$f":"IF(AM$1=\"N\",0,COUNTIFS(TrackCode,$A7,TrackFrom,\"<=\"&AM$5,TrackTo,\">=\"&AM$5))","v":0},{"$f":"IF(AN$1=\"N\",0,COUNTIFS(TrackCode,$A7,TrackFrom,\"<=\"&AN$5,TrackTo,\">=\"&AN$5))","v":0},{"$f":"IF(AO$1=\"N\",0,COUNTIFS(TrackCode,$A7,TrackFrom,\"<=\"&AO$5,TrackTo,\">=\"&AO$5))","v":0},{"$f":"IF(AP$1=\"N\",0,COUNTIFS(TrackCode,$A7,TrackFrom,\"<=\"&AP$5,TrackTo,\">=\"&AP$5))","v":0},{"$f":"IF(AQ$1=\"N\",0,COUNTIFS(TrackCode,$A7,TrackFrom,\"<=\"&AQ$5,TrackTo,\">=\"&AQ$5))","v":0},{"$f":"IF(AR$1=\"N\",0,COUNTIFS(TrackCode,$A7,TrackFrom,\"<=\"&AR$5,TrackTo,\">=\"&AR$5))","v":0},{"$f":"IF(AS$1=\"N\",0,COUNTIFS(TrackCode,$A7,TrackFrom,\"<=\"&AS$5,TrackTo,\">=\"&AS$5))","v":0},{"$f":"IF(AT$1=\"N\",0,COUNTIFS(TrackCode,$A7,TrackFrom,\"<=\"&AT$5,TrackTo,\">=\"&AT$5))","v":0},{"$f":"IF(AU$1=\"N\",0,COUNTIFS(TrackCode,$A7,TrackFrom,\"<=\"&AU$5,TrackTo,\">=\"&AU$5))","v":0},{"$f":"IF(AV$1=\"N\",0,COUNTIFS(TrackCode,$A7,TrackFrom,\"<=\"&AV$5,TrackTo,\">=\"&AV$5))","v":0},{"$f":"IF(AW$1=\"N\",0,COUNTIFS(TrackCode,$A7,TrackFrom,\"<=\"&AW$5,TrackTo,\">=\"&AW$5))","v":0},{"$f":"IF(AX$1=\"N\",0,COUNTIFS(TrackCode,$A7,TrackFrom,\"<=\"&AX$5,TrackTo,\">=\"&AX$5))","v":0},{"$f":"IF(AY$1=\"N\",0,COUNTIFS(TrackCode,$A7,TrackFrom,\"<=\"&AY$5,TrackTo,\">=\"&AY$5))","v":0},{"$f":"IF(AZ$1=\"N\",0,COUNTIFS(TrackCode,$A7,TrackFrom,\"<=\"&AZ$5,TrackTo,\">=\"&AZ$5))","v":0},{"$f":"IF(BA$1=\"N\",0,COUNTIFS(TrackCode,$A7,TrackFrom,\"<=\"&BA$5,TrackTo,\">=\"&BA$5))","v":0},{"$f":"IF(BB$1=\"N\",0,COUNTIFS(TrackCode,$A7,TrackFrom,\"<=\"&BB$5,TrackTo,\">=\"&BB$5))","v":0},{"$f":"IF(BC$1=\"N\",0,COUNTIFS(TrackCode,$A7,TrackFrom,\"<=\"&BC$5,TrackTo,\">=\"&BC$5))","v":0},{"$f":"IF(BD$1=\"N\",0,COUNTIFS(TrackCode,$A7,TrackFrom,\"<=\"&BD$5,TrackTo,\">=\"&BD$5))","v":0},{"$f":"IF(BE$1=\"N\",0,COUNTIFS(TrackCode,$A7,TrackFrom,\"<=\"&BE$5,TrackTo,\">=\"&BE$5))","v":0},{"$f":"IF(BF$1=\"N\",0,COUNTIFS(TrackCode,$A7,TrackFrom,\"<=\"&BF$5,TrackTo,\">=\"&BF$5))","v":0},{"$f":"IF(BG$1=\"N\",0,COUNTIFS(TrackCode,$A7,TrackFrom,\"<=\"&BG$5,TrackTo,\">=\"&BG$5))","v":0},{"$f":"IF(BH$1=\"N\",0,COUNTIFS(TrackCode,$A7,TrackFrom,\"<=\"&BH$5,TrackTo,\">=\"&BH$5))","v":0},{"$f":"IF(BI$1=\"N\",0,COUNTIFS(TrackCode,$A7,TrackFrom,\"<=\"&BI$5,TrackTo,\">=\"&BI$5))","v":0},{"$f":"IF(BJ$1=\"N\",0,COUNTIFS(TrackCode,$A7,TrackFrom,\"<=\"&BJ$5,TrackTo,\">=\"&BJ$5))","v":0},{"$f":"IF(BK$1=\"N\",0,COUNTIFS(TrackCode,$A7,TrackFrom,\"<=\"&BK$5,TrackTo,\">=\"&BK$5))","v":0}]
[1002,"Employee 2","Admin",{"$f":"IF(D$1=\"N\",0,COUNTIFS(TrackCode,$A8,TrackFrom,\"<=\"&D$5,TrackTo,\">=\"&D$5))","v":0},{"$f":"IF(E$1=\"N\",0,COUNTIFS(TrackCode,$A8,TrackFrom,\"<=\"&E$5,TrackTo,\">=\"&E$5))","v":0},{"$f":"IF(F$1=\"N\",0,COUNTIFS(TrackCode,$A8,TrackFrom,\"<=\"&F$5,TrackTo,\">=\"&F$5))","v":0},{"$f":"IF(G$1=\"N\",0,COUNTIFS(TrackCode,$A8,TrackFrom,\"<=\"&G$5,TrackTo,\">=\"&G$5))","v":0},{"$f":"IF(H$1=\"N\",0,COUNTIFS(TrackCode,$A8,TrackFrom,\"<=\"&H$5,TrackTo,\">=\"&H$5))","v":0},{"$f":"IF(I$1=\"N\",0,COUNTIFS(TrackCode,$A8,TrackFrom,\"<=\"&I$5,TrackTo,\">=\"&I$5))","v":0},{"$f":"IF(J$1=\"N\",0,COUNTIFS(TrackCode,$A8,TrackFrom,\"<=\"&J$5,TrackTo,\">=\"&J$5))","v":0},{"$f":"IF(K$1=\"N\",0,COUNTIFS(TrackCode,$A8,TrackFrom,\"<=\"&K$5,TrackTo,\">=\"&K$5))","v":0},{"$f":"IF(L$1=\"N\",0,COUNTIFS(TrackCode,$A8,TrackFrom,\"<=\"&L$5,TrackTo,\">=\"&L$5))","v":0},{"$f":"IF(M$1=\"N\",0,COUNTIFS(TrackCode,$A8,TrackFrom,\"<=\"&M$5,TrackTo,\">=\"&M$5))","v":0},{"$f":"IF(N$1=\"N\",0,COUNTIFS(TrackCode,$A8,TrackFrom,\"<=\"&N$5,TrackTo,\">=\"&N$5))","v":0},{"$f":"IF(O$1=\"N\",0,COUNTIFS(TrackCode,$A8,TrackFrom,\"<=\"&O$5,TrackTo,\">=\"&O$5))","v":0},{"$f":"IF(P$1=\"N\",0,COUNTIFS(TrackCode,$A8,TrackFrom,\"<=\"&P$5,TrackTo,\">=\"&P$5))","v":0},{"$f":"IF(Q$1=\"N\",0,COUNTIFS(TrackCode,$A8,TrackFrom,\"<=\"&Q$5,TrackTo,\">=\"&Q$5))","v":0},{"$f":"IF(R$1=\"N\",0,COUNTIFS(TrackCode,$A8,TrackFrom,\"<=\"&R$5,TrackTo,\">=\"&R$5))","v":0},{"$f":"IF(S$1=\"N\",0,COUNTIFS(TrackCode,$A8,TrackFrom,\"<=\"&S$5,TrackTo,\">=\"&S$5))","v":0},{"$f":"IF(T$1=\"N\",0,COUNTIFS(TrackCode,$A8,TrackFrom,\"<=\"&T$5,TrackTo,\">=\"&T$5))","v":0},{"$f":"IF(U$1=\"N\",0,COUNTIFS(TrackCode,$A8,TrackFrom,\"<=\"&U$5,TrackTo,\">=\"&U$5))","v":0},{"$f":"IF(V$1=\"N\",0,COUNTIFS(TrackCode,$A8,TrackFrom,\"<=\"&V$5,TrackTo,\">=\"&V$5))","v":0},{"$f":"IF(W$1=\"N\",0,COUNTIFS(TrackCode,$A8,TrackFrom,\"<=\"&W$5,TrackTo,\">=\"&W$5))","v":0},{"$f":"IF(X$1=\"N\",0,COUNTIFS(TrackCode,$A8,TrackFrom,\"<=\"&X$5,TrackTo,\">=\"&X$5))","v":0},{"$f":"IF(Y$1=\"N\",0,COUNTIFS(TrackCode,$A8,TrackFrom,\"<=\"&Y$5,TrackTo,\">=\"&Y$5))","v":1},{"$f":"IF(Z$1=\"N\",0,COUNTIFS(TrackCode,$A8,TrackFrom,\"<=\"&Z$5,TrackTo,\">=\"&Z$5))","v":1},{"$f":"IF(AA$1=\"N\",0,COUNTIFS(TrackCode,$A8,TrackFrom,\"<=\"&AA$5,TrackTo,\">=\"&AA$5))","v":1},{"$f":"IF(AB$1=\"N\",0,COUNTIFS(TrackCode,$A8,TrackFrom,\"<=\"&AB$5,TrackTo,\">=\"&AB$5))","v":1},{"$f":"IF(AC$1=\"N\",0,COUNTIFS(TrackCode,$A8,TrackFrom,\"<=\"&AC$5,TrackTo,\">=\"&AC$5))","v":1},{"$f":"IF(AD$1=\"N\",0,COUNTIFS(TrackCode,$A8,TrackFrom,\"<=\"&AD$5,TrackTo,\">=\"&AD$5))","v":0},{"$f":"IF(AE$1=\"N\",0,COUNTIFS(TrackCode,$A8,TrackFrom,\"<=\"&AE$5,TrackTo,\">=\"&AE$5))","v":0},{"$f":"IF(AF$1=\"N\",0,COUNTIFS(TrackCode,$A8,TrackFrom,\"<=\"&AF$5,TrackTo,\">=\"&AF$5))","v":1},{"$f":"IF(AG$1=\"N\",0,COUNTIFS(TrackCode,$A8,TrackFrom,\"<=\"&AG$5,TrackTo,\">=\"&AG$5))","v":0},{"$f":"IF(AH$1=\"N\",0,COUNTIFS(TrackCode,$A8,TrackFrom,\"<=\"&AH$5,TrackTo,\">=\"&AH$5))","v":0},{"$f":"IF(AI$1=\"N\",0,COUNTIFS(TrackCode,$A8,TrackFrom,\"<=\"&AI$5,TrackTo,\">=\"&AI$5))","v":0},{"$f":"IF(AJ$1=\"N\",0,COUNTIFS(TrackCode,$A8,TrackFrom,\"<=\"&AJ$5,TrackTo,\">=\"&AJ$5))","v":0},{"$f":"IF(AK$1=\"N\",0,COUNTIFS(TrackCode,$A8,TrackFrom,\"<=\"&AK$5,TrackTo,\">=\"&AK$5))","v":0},{"$f":"IF(AL$1=\"N\",0,COUNTIFS(TrackCode,$A8,TrackFrom,\"<=\"&AL$5,TrackTo,\">=\"&AL$5))","v":0},{"$f":"IF(AM$1=\"N\",0,COUNTIFS(TrackCode,$A8,TrackFrom,\"<=\"&AM$5,TrackTo,\">=\"&AM$5))","v":0},{"$f":"IF(AN$1=\"N\",0,COUNTIFS(TrackCode,$A8,TrackFrom,\"<=\"&AN$5,TrackTo,\">=\"&AN$5))","v":0},{"$f":"IF(AO$1=\"N\",0,COUNTIFS(TrackCode,$A8,TrackFrom,\"<=\"&AO$5,TrackTo,\">=\"&AO$5))","v":0},{"$f":"IF(AP$1=\"N\",0,COUNTIFS(TrackCode,$A8,TrackFrom,\"<=\"&AP$5,TrackTo,\">=\"&AP$5))","v":0},{"$f":"IF(AQ$1=\"N\",0,COUNTIFS(TrackCode,$A8,TrackFrom,\"<=\"&AQ$5,TrackTo,\">=\"&AQ$5))","v":0},{"$f":"IF(AR$1=\"N\",0,COUNTIFS(TrackCode,$A8,TrackFrom,\"<=\"&AR$5,TrackTo,\">=\"&AR$5))","v":0},{"$f":"IF(AS$1=\"N\",0,COUNTIFS(TrackCode,$A8,TrackFrom,\"<=\"&AS$5,TrackTo,\">=\"&AS$5))","v":0},{"$f":"IF(AT$1=\"N\",0,COUNTIFS(TrackCode,$A8,TrackFrom,\"<=\"&AT$5,TrackTo,\">=\"&AT$5))","v":0},{"$f":"IF(AU$1=\"N\",0,COUNTIFS(TrackCode,$A8,TrackFrom,\"<=\"&AU$5,TrackTo,\">=\"&AU$5))","v":0},{"$f":"IF(AV$1=\"N\",0,COUNTIFS(TrackCode,$A8,TrackFrom,\"<=\"&AV$5,TrackTo,\">=\"&AV$5))","v":0},{"$f":"IF(AW$1=\"N\",0,COUNTIFS(TrackCode,$A8,TrackFrom,\"<=\"&AW$5,TrackTo,\">=\"&AW$5))","v":0},{"$f":"IF(AX$1=\"N\",0,COUNTIFS(TrackCode,$A8,TrackFrom,\"<=\"&AX$5,TrackTo,\">=\"&AX$5))","v":0},{"$f":"IF(AY$1=\"N\",0,COUNTIFS(TrackCode,$A8,TrackFrom,\"<=\"&AY$5,TrackTo,\">=\"&AY$5))","v":0},{"$f":"IF(AZ$1=\"N\",0,COUNTIFS(TrackCode,$A8,TrackFrom,\"<=\"&AZ$5,TrackTo,\">=\"&AZ$5))","v":0},{"$f":"IF(BA$1=\"N\",0,COUNTIFS(TrackCode,$A8,TrackFrom,\"<=\"&BA$5,TrackTo,\">=\"&BA$5))","v":0},{"$f":"IF(BB$1=\"N\",0,COUNTIFS(TrackCode,$A8,TrackFrom,\"<=\"&BB$5,TrackTo,\">=\"&BB$5))","v":0},{"$f":"IF(BC$1=\"N\",0,COUNTIFS(TrackCode,$A8,TrackFrom,\"<=\"&BC$5,TrackTo,\">=\"&BC$5))","v":0},{"$f":"IF(BD$1=\"N\",0,COUNTIFS(TrackCode,$A8,TrackFrom,\"<=\"&BD$5,TrackTo,\">=\"&BD$5))","v":0},{"$f":"IF(BE$1=\"N\",0,COUNTIFS(TrackCode,$A8,TrackFrom,\"<=\"&BE$5,TrackTo,\">=\"&BE$5))","v":0},{"$f":"IF(BF$1=\"N\",0,COUNTIFS(TrackCode,$A8,TrackFrom,\"<=\"&BF$5,TrackTo,\">=\"&BF$5))","v":0},{"$f":"IF(BG$1=\"N\",0,COUNTIFS(TrackCode,$A8,TrackFrom,\"<=\"&BG$5,TrackTo,\">=\"&BG$5))","v":0},{"$f":"IF(BH$1=\"N\",0,COUNTIFS(TrackCode,$A8,TrackFrom,\"<=\"&BH$5,TrackTo,\">=\"&BH$5))","v":0},{"$f":"IF(BI$1=\"N\",0,COUNTIFS(TrackCode,$A8,TrackFrom,\"<=\"&BI$5,TrackTo,\">=\"&BI$5))","v":0},{"$f":"IF(BJ$1=\"N\",0,COUNTIFS(TrackCode,$A8,TrackFrom,\"<=\"&BJ$5,TrackTo,\">=\"&BJ$5))","v":0},{"$f":"IF(BK$1=\"N\",0,COUNTIFS(TrackCode,$A8,TrackFrom,\"<=\"&BK$5,TrackTo,\">=\"&BK$5))","v":0}]
[1003,"Employee 3","Support",{"$f":"IF(D$1=\"N\",0,COUNTIFS(TrackCode,$A9,TrackFrom,\"<=\"&D$5,TrackTo,\">=\"&D$5))","v":0},{"$f":"IF(E$1=\"N\",0,COUNTIFS(TrackCode,$A9,TrackFrom,\"<=\"&E$5,TrackTo,\">=\"&E$5))","v":0},{"$f":"IF(F$1=\"N\",0,COUNTIFS(TrackCode,$A9,TrackFrom,\"<=\"&F$5,TrackTo,\">=\"&F$5))","v":0},{"$f":"IF(G$1=\"N\",0,COUNTIFS(TrackCode,$A9,TrackFrom,\"<=\"&G$5,TrackTo,\">=\"&G$5))","v":0},{"$f":"IF(H$1=\"N\",0,COUNTIFS(TrackCode,$A9,TrackFrom,\"<=\"&H$5,TrackTo,\">=\"&H$5))","v":0},{"$f":"IF(I$1=\"N\",0,COUNTIFS(TrackCode,$A9,TrackFrom,\"<=\"&I$5,TrackTo,\">=\"&I$5))","v":0},{"$f":"IF(J$1=\"N\",0,COUNTIFS(TrackCode,$A9,TrackFrom,\"<=\"&J$5,TrackTo,\">=\"&J$5))","v":0},{"$f":"IF(K$1=\"N\",0,COUNTIFS(TrackCode,$A9,TrackFrom,\"<=\"&K$5,TrackTo,\">=\"&K$5))","v":0},{"$f":"IF(L$1=\"N\",0,COUNTIFS(TrackCode,$A9,TrackFrom,\"<=\"&L$5,TrackTo,\">=\"&L$5))","v":0},{"$f":"IF(M$1=\"N\",0,COUNTIFS(TrackCode,$A9,TrackFrom,\"<=\"&M$5,TrackTo,\">=\"&M$5))","v":0},{"$f":"IF(N$1=\"N\",0,COUNTIFS(TrackCode,$A9,TrackFrom,\"<=\"&N$5,TrackTo,\">=\"&N$5))","v":0},{"$f":"IF(O$1=\"N\",0,COUNTIFS(TrackCode,$A9,TrackFrom,\"<=\"&O$5,TrackTo,\">=\"&O$5))","v":0},{"$f":"IF(P$1=\"N\",0,COUNTIFS(TrackCode,$A9,TrackFrom,\"<=\"&P$5,TrackTo,\">=\"&P$5))","v":0},{"$f":"IF(Q$1=\"N\",0,COUNTIFS(TrackCode,$A9,TrackFrom,\"<=\"&Q$5,TrackTo,\">=\"&Q$5))","v":0},{"$f":"IF(R$1=\"N\",0,COUNTIFS(TrackCode,$A9,TrackFrom,\"<=\"&R$5,TrackTo,\">=\"&R$5))","v":0},{"$f":"IF(S$1=\"N\",0,COUNTIFS(TrackCode,$A9,TrackFrom,\"<=\"&S$5,TrackTo,\">=\"&S$5))","v":0},{"$f":"IF(T$1=\"N\",0,COUNTIFS(TrackCode,$A9,TrackFrom,\"<=\"&T$5,TrackTo,\">=\"&T$5))","v":0},{"$f":"IF(U$1=\"N\",0,COUNTIFS(TrackCode,$A9,TrackFrom,\"<=\"&U$5,TrackTo,\">=\"&U$5))","v":0},{"$f":"IF(V$1=\"N\",0,COUNTIFS(TrackCode,$A9,TrackFrom,\"<=\"&V$5,TrackTo,\">=\"&V$5))","v":0},{"$f":"IF(W$1=\"N\",0,COUNTIFS(TrackCode,$A9,TrackFrom,\"<=\"&W$5,TrackTo,\">=\"&W$5))","v":0},{"$f":"IF(X$1=\"N\",0,COUNTIFS(TrackCode,$A9,TrackFrom,\"<=\"&X$5,TrackTo,\">=\"&X$5))","v":0},{"$f":"IF(Y$1=\"N\",0,COUNTIFS(TrackCode,$A9,TrackFrom,\"<=\"&Y$5,TrackTo,\">=\"&Y$5))","v":0},{"$f":"IF(Z$1=\"N\",0,COUNTIFS(TrackCode,$A9,TrackFrom,\"<=\"&Z$5,TrackTo,\">=\"&Z$5))","v":0},{"$f":"IF(AA$1=\"N\",0,COUNTIFS(TrackCode,$A9,TrackFrom,\"<=\"&AA$5,TrackTo,\">=\"&AA$5))","v":0},{"$f":"IF(AB$1=\"N\",0,COUNTIFS(TrackCode,$A9,TrackFrom,\"<=\"&AB$5,TrackTo,\">=\"&AB$5))","v":0},{"$f":"IF(AC$1=\"N\",0,COUNTIFS(TrackCode,$A9,TrackFrom,\"<=\"&AC$5,TrackTo,\">=\"&AC$5))","v":0},{"$f":"IF(AD$1=\"N\",0,COUNTIFS(TrackCode,$A9,TrackFrom,\"<=\"&AD$5,TrackTo,\">=\"&AD$5))","v":0},{"$f":"IF(AE$1=\"N\",0,COUNTIFS(TrackCode,$A9,TrackFrom,\"<=\"&AE$5,TrackTo,\">=\"&AE$5))","v":0},{"$f":"IF(AF$1=\"N\",0,COUNTIFS(TrackCode,$A9,TrackFrom,\"<=\"&AF$5,TrackTo,\">=\"&AF$5))","v":1},{"$f":"IF(AG$1=\"N\",0,COUNTIFS(TrackCode,$A9,TrackFrom,\"<=\"&AG$5,TrackTo,\">=\"&AG$5))","v":0},{"$f":"IF(AH$1=\"N\",0,COUNTIFS(TrackCode,$A9,TrackFrom,\"<=\"&AH$5,TrackTo,\">=\"&AH$5))","v":1},{"$f":"IF(AI$1=\"N\",0,COUNTIFS(TrackCode,$A9,TrackFrom,\"<=\"&AI$5,TrackTo,\">=\"&AI$5))","v":1},{"$f":"IF(AJ$1=\"N\",0,COUNTIFS(TrackCode,$A9,TrackFrom,\"<=\"&AJ$5,TrackTo,\">=\"&AJ$5))","v":1},{"$f":"IF(AK$1=\"N\",0,COUNTIFS(TrackCode,$A9,TrackFrom,\"<=\"&AK$5,TrackTo,\">=\"&AK$5))","v":0},{"$f":"IF(AL$1=\"N\",0,COUNTIFS(TrackCode,$A9,TrackFrom,\"<=\"&AL$5,TrackTo,\">=\"&AL$5))","v":0},{"$f":"IF(AM$1=\"N\",0,COUNTIFS(TrackCode,$A9,TrackFrom,\"<=\"&AM$5,TrackTo,\">=\"&AM$5))","v":0},{"$f":"IF(AN$1=\"N\",0,COUNTIFS(TrackCode,$A9,TrackFrom,\"<=\"&AN$5,TrackTo,\">=\"&AN$5))","v":0},{"$f":"IF(AO$1=\"N\",0,COUNTIFS(TrackCode,$A9,TrackFrom,\"<=\"&AO$5,TrackTo,\">=\"&AO$5))","v":0},{"$f":"IF(AP$1=\"N\",0,COUNTIFS(TrackCode,$A9,TrackFrom,\"<=\"&AP$5,TrackTo,\">=\"&AP$5))","v":0},{"$f":"IF(AQ$1=\"N\",0,COUNTIFS(TrackCode,$A9,TrackFrom,\"<=\"&AQ$5,TrackTo,\">=\"&AQ$5))","v":0},{"$f":"IF(AR$1=\"N\",0,COUNTIFS(TrackCode,$A9,TrackFrom,\"<=\"&AR$5,TrackTo,\">=\"&AR$5))","v":0},{"$f":"IF(AS$1=\"N\",0,COUNTIFS(TrackCode,$A9,TrackFrom,\"<=\"&AS$5,TrackTo,\">=\"&AS$5))","v":0},{"$f":"IF(AT$1=\"N\",0,COUNTIFS(TrackCode,$A9,TrackFrom,\"<=\"&AT$5,TrackTo,\">=\"&AT$5))","v":0},{"$f":"IF(AU$1=\"N\",0,COUNTIFS(TrackCode,$A9,TrackFrom,\"<=\"&AU$5,TrackTo,\">=\"&AU$5))","v":0},{"$f":"IF(AV$1=\"N\",0,COUNTIFS(TrackCode,$A9,TrackFrom,\"<=\"&AV$5,TrackTo,\">=\"&AV$5))","v":0},{"$f":"IF(AW$1=\"N\",0,COUNTIFS(TrackCode,$A9,TrackFrom,\"<=\"&AW$5,TrackTo,\">=\"&AW$5))","v":0},{"$f":"IF(AX$1=\"N\",0,COUNTIFS(TrackCode,$A9,TrackFrom,\"<=\"&AX$5,TrackTo,\">=\"&AX$5))","v":0},{"$f":"IF(AY$1=\"N\",0,COUNTIFS(TrackCode,$A9,TrackFrom,\"<=\"&AY$5,TrackTo,\">=\"&AY$5))","v":0},{"$f":"IF(AZ$1=\"N\",0,COUNTIFS(TrackCode,$A9,TrackFrom,\"<=\"&AZ$5,TrackTo,\">=\"&AZ$5))","v":0},{"$f":"IF(BA$1=\"N\",0,COUNTIFS(TrackCode,$A9,TrackFrom,\"<=\"&BA$5,TrackTo,\">=\"&BA$5))","v":0},{"$f":"IF(BB$1=\"N\",0,COUNTIFS(TrackCode,$A9,TrackFrom,\"<=\"&BB$5,TrackTo,\">=\"&BB$5))","v":0},{"$f":"IF(BC$1=\"N\",0,COUNTIFS(TrackCode,$A9,TrackFrom,\"<=\"&BC$5,TrackTo,\">=\"&BC$5))","v":0},{"$f":"IF(BD$1=\"N\",0,COUNTIFS(TrackCode,$A9,TrackFrom,\"<=\"&BD$5,TrackTo,\">=\"&BD$5))","v":0},{"$f":"IF(BE$1=\"N\",0,COUNTIFS(TrackCode,$A9,TrackFrom,\"<=\"&BE$5,TrackTo,\">=\"&BE$5))","v":0},{"$f":"IF(BF$1=\"N\",0,COUNTIFS(TrackCode,$A9,TrackFrom,\"<=\"&BF$5,TrackTo,\">=\"&BF$5))","v":0},{"$f":"IF(BG$1=\"N\",0,COUNTIFS(TrackCode,$A9,TrackFrom,\"<=\"&BG$5,TrackTo,\">=\"&BG$5))","v":0},{"$f":"IF(BH$1=\"N\",0,COUNTIFS(TrackCode,$A9,TrackFrom,\"<=\"&BH$5,TrackTo,\">=\"&BH$5))","v":0},{"$f":"IF(BI$1=\"N\",0,COUNTIFS(TrackCode,$A9,TrackFrom,\"<=\"&BI$5,TrackTo,\">=\"&BI$5))","v":0},{"$f":"IF(BJ$1=\"N\",0,COUNTIFS(TrackCode,$A9,TrackFrom,\"<=\"&BJ$5,TrackTo,\">=\"&BJ$5))","v":0},{"$f":"IF(BK$1=\"N\",0,COUNTIFS(TrackCode,$A9,TrackFrom,\"<=\"&BK$5,TrackTo,\">=\"&BK$5))","v":0}]
[1004,"Employee 4","Support",{"$f":"IF(D$1=\"N\",0,COUNTIFS(TrackCode,$A10,TrackFrom,\"<=\"&D$5,TrackTo,\">=\"&D$5))","v":0},{"$f":"IF(E$1=\"N\",0,COUNTIFS(TrackCode,$A10,TrackFrom,\"<=\"&E$5,TrackTo,\">=\"&E$5))","v":0},{"$f":"IF(F$1=\"N\",0,COUNTIFS(TrackCode,$A10,TrackFrom,\"<=\"&F$5,TrackTo,\">=\"&F$5))","v":0},{"$f":"IF(G$1=\"N\",0,COUNTIFS(TrackCode,$A10,TrackFrom,\"<=\"&G$5,TrackTo,\">=\"&G$5))","v":0},{"$f":"IF(H$1=\"N\",0,COUNTIFS(TrackCode,$A10,TrackFrom,\"<=\"&H$5,TrackTo,\">=\"&H$5))","v":0},{"$f":"IF(I$1=\"N\",0,COUNTIFS(TrackCode,$A10,TrackFrom,\"<=\"&I$5,TrackTo,\">=\"&I$5))","v":0},{"$f":"IF(J$1=\"N\",0,COUNTIFS(TrackCode,$A10,TrackFrom,\"<=\"&J$5,TrackTo,\">=\"&J$5))","v":0},{"$f":"IF(K$1=\"N\",0,COUNTIFS(TrackCode,$A10,TrackFrom,\"<=\"&K$5,TrackTo,\">=\"&K$5))","v":0},{"$f":"IF(L$1=\"N\",0,COUNTIFS(TrackCode,$A10,TrackFrom,\"<=\"&L$5,TrackTo,\">=\"&L$5))","v":0},{"$f":"IF(M$1=\"N\",0,COUNTIFS(TrackCode,$A10,TrackFrom,\"<=\"&M$5,TrackTo,\">=\"&M$5))","v":0},{"$f":"IF(N$1=\"N\",0,COUNTIFS(TrackCode,$A10,TrackFrom,\"<=\"&N$5,TrackTo,\">=\"&N$5))","v":0},{"$f":"IF(O$1=\"N\",0,COUNTIFS(TrackCode,$A10,TrackFrom,\"<=\"&O$5,TrackTo,\">=\"&O$5))","v":0},{"$f":"IF(P$1=\"N\",0,COUNTIFS(TrackCode,$A10,TrackFrom,\"<=\"&P$5,TrackTo,\">=\"&P$5))","v":0},{"$f":"IF(Q$1=\"N\",0,COUNTIFS(TrackCode,$A10,TrackFrom,\"<=\"&Q$5,TrackTo,\">=\"&Q$5))","v":0},{"$f":"IF(R$1=\"N\",0,COUNTIFS(TrackCode,$A10,TrackFrom,\"<=\"&R$5,TrackTo,\">=\"&R$5))","v":0},{"$f":"IF(S$1=\"N\",0,COUNTIFS(TrackCode,$A10,TrackFrom,\"<=\"&S$5,TrackTo,\">=\"&S$5))","v":0},{"$f":"IF(T$1=\"N\",0,COUNTIFS(TrackCode,$A10,TrackFrom,\"<=\"&T$5,TrackTo,\">=\"&T$5))","v":0},{"$f":"IF(U$1=\"N\",0,COUNTIFS(TrackCode,$A10,TrackFrom,\"<=\"&U$5,TrackTo,\">=\"&U$5))","v":0},{"$f":"IF(V$1=\"N\",0,COUNTIFS(TrackCode,$A10,TrackFrom,\"<=\"&V$5,TrackTo,\">=\"&V$5))","v":0},{"$f":"IF(W$1=\"N\",0,COUNTIFS(TrackCode,$A10,TrackFrom,\"<=\"&W$5,TrackTo,\">=\"&W$5))","v":0},{"$f":"IF(X$1=\"N\",0,COUNTIFS(TrackCode,$A10,TrackFrom,\"<=\"&X$5,TrackTo,\">=\"&X$5))","v":0},{"$f":"IF(Y$1=\"N\",0,COUNTIFS(TrackCode,$A10,TrackFrom,\"<=\"&Y$5,TrackTo,\">=\"&Y$5))","v":0},{"$f":"IF(Z$1=\"N\",0,COUNTIFS(TrackCode,$A10,TrackFrom,\"<=\"&Z$5,TrackTo,\">=\"&Z$5))","v":0},{"$f":"IF(AA$1=\"N\",0,COUNTIFS(TrackCode,$A10,TrackFrom,\"<=\"&AA$5,TrackTo,\">=\"&AA$5))","v":0},{"$f":"IF(AB$1=\"N\",0,COUNTIFS(TrackCode,$A10,TrackFrom,\"<=\"&AB$5,TrackTo,\">=\"&AB$5))","v":1},{"$f":"IF(AC$1=\"N\",0,COUNTIFS(TrackCode,$A10,TrackFrom,\"<=\"&AC$5,TrackTo,\">=\"&AC$5))","v":1},{"$f":"IF(AD$1=\"N\",0,COUNTIFS(TrackCode,$A10,TrackFrom,\"<=\"&AD$5,TrackTo,\">=\"&AD$5))","v":0},{"$f":"IF(AE$1=\"N\",0,COUNTIFS(TrackCode,$A10,TrackFrom,\"<=\"&AE$5,TrackTo,\">=\"&AE$5))","v":0},{"$f":"IF(AF$1=\"N\",0,COUNTIFS(TrackCode,$A10,TrackFrom,\"<=\"&AF$5,TrackTo,\">=\"&AF$5))","v":1},{"$f":"IF(AG$1=\"N\",0,COUNTIFS(TrackCode,$A10,TrackFrom,\"<=\"&AG$5,TrackTo,\">=\"&AG$5))","v":0},{"$f":"IF(AH$1=\"N\",0,COUNTIFS(TrackCode,$A10,TrackFrom,\"<=\"&AH$5,TrackTo,\">=\"&AH$5))","v":0},{"$f":"IF(AI$1=\"N\",0,COUNTIFS(TrackCode,$A10,TrackFrom,\"<=\"&AI$5,TrackTo,\">=\"&AI$5))","v":0},{"$f":"IF(AJ$1=\"N\",0,COUNTIFS(TrackCode,$A10,TrackFrom,\"<=\"&AJ$5,TrackTo,\">=\"&AJ$5))","v":0},{"$f":"IF(AK$1=\"N\",0,COUNTIFS(TrackCode,$A10,TrackFrom,\"<=\"&AK$5,TrackTo,\">=\"&AK$5))","v":0},{"$f":"IF(AL$1=\"N\",0,COUNTIFS(TrackCode,$A10,TrackFrom,\"<=\"&AL$5,TrackTo,\">=\"&AL$5))","v":0},{"$f":"IF(AM$1=\"N\",0,COUNTIFS(TrackCode,$A10,TrackFrom,\"<=\"&AM$5,TrackTo,\">=\"&AM$5))","v":0},{"$f":"IF(AN$1=\"N\",0,COUNTIFS(TrackCode,$A10,TrackFrom,\"<=\"&AN$5,TrackTo,\">=\"&AN$5))","v":0},{"$f":"IF(AO$1=\"N\",0,COUNTIFS(TrackCode,$A10,TrackFrom,\"<=\"&AO$5,TrackTo,\">=\"&AO$5))","v":0},{"$f":"IF(AP$1=\"N\",0,COUNTIFS(TrackCode,$A10,TrackFrom,\"<=\"&AP$5,TrackTo,\">=\"&AP$5))","v":0},{"$f":"IF(AQ$1=\"N\",0,COUNTIFS(TrackCode,$A10,TrackFrom,\"<=\"&AQ$5,TrackTo,\">=\"&AQ$5))","v":0},{"$f":"IF(AR$1=\"N\",0,COUNTIFS(TrackCode,$A10,TrackFrom,\"<=\"&AR$5,TrackTo,\">=\"&AR$5))","v":0},{"$f":"IF(AS$1=\"N\",0,COUNTIFS(TrackCode,$A10,TrackFrom,\"<=\"&AS$5,TrackTo,\">=\"&AS$5))","v":0},{"$f":"IF(AT$1=\"N\",0,COUNTIFS(TrackCode,$A10,TrackFrom,\"<=\"&AT$5,TrackTo,\">=\"&AT$5))","v":0},{"$f":"IF(AU$1=\"N\",0,COUNTIFS(TrackCode,$A10,TrackFrom,\"<=\"&AU$5,TrackTo,\">=\"&AU$5))","v":0},{"$f":"IF(AV$1=\"N\",0,COUNTIFS(TrackCode,$A10,TrackFrom,\"<=\"&AV$5,TrackTo,\">=\"&AV$5))","v":0},{"$f":"IF(AW$1=\"N\",0,COUNTIFS(TrackCode,$A10,TrackFrom,\"<=\"&AW$5,TrackTo,\">=\"&AW$5))","v":0},{"$f":"IF(AX$1=\"N\",0,COUNTIFS(TrackCode,$A10,TrackFrom,\"<=\"&AX$5,TrackTo,\">=\"&AX$5))","v":0},{"$f":"IF(AY$1=\"N\",0,COUNTIFS(TrackCode,$A10,TrackFrom,\"<=\"&AY$5,TrackTo,\">=\"&AY$5))","v":0},{"$f":"IF(AZ$1=\"N\",0,COUNTIFS(TrackCode,$A10,TrackFrom,\"<=\"&AZ$5,TrackTo,\">=\"&AZ$5))","v":0},{"$f":"IF(BA$1=\"N\",0,COUNTIFS(TrackCode,$A10,TrackFrom,\"<=\"&BA$5,TrackTo,\">=\"&BA$5))","v":0},{"$f":"IF(BB$1=\"N\",0,COUNTIFS(TrackCode,$A10,TrackFrom,\"<=\"&BB$5,TrackTo,\">=\"&BB$5))","v":0},{"$f":"IF(BC$1=\"N\",0,COUNTIFS(TrackCode,$A10,TrackFrom,\"<=\"&BC$5,TrackTo,\">=\"&BC$5))","v":0},{"$f":"IF(BD$1=\"N\",0,COUNTIFS(TrackCode,$A10,TrackFrom,\"<=\"&BD$5,TrackTo,\">=\"&BD$5))","v":0},{"$f":"IF(BE$1=\"N\",0,COUNTIFS(TrackCode,$A10,TrackFrom,\"<=\"&BE$5,TrackTo,\">=\"&BE$5))","v":0},{"$f":"IF(BF$1=\"N\",0,COUNTIFS(TrackCode,$A10,TrackFrom,\"<=\"&BF$5,TrackTo,\">=\"&BF$5))","v":0},{"$f":"IF(BG$1=\"N\",0,COUNTIFS(TrackCode,$A10,TrackFrom,\"<=\"&BG$5,TrackTo,\">=\"&BG$5))","v":0},{"$f":"IF(BH$1=\"N\",0,COUNTIFS(TrackCode,$A10,TrackFrom,\"<=\"&BH$5,TrackTo,\">=\"&BH$5))","v":0},{"$f":"IF(BI$1=\"N\",0,COUNTIFS(TrackCode,$A10,TrackFrom,\"<=\"&BI$5,TrackTo,\">=\"&BI$5))","v":0},{"$f":"IF(BJ$1=\"N\",0,COUNTIFS(TrackCode,$A10,TrackFrom,\"<=\"&BJ$5,TrackTo,\">=\"&BJ$5))","v":0},{"$f":"IF(BK$1=\"N\",0,COUNTIFS(TrackCode,$A10,TrackFrom,\"<=\"&BK$5,TrackTo,\">=\"&BK$5))","v":0}]
[1005,"Employee 5","Support",{"$f":"IF(D$1=\"N\",0,COUNTIFS(TrackCode,$A11,TrackFrom,\"<=\"&D$5,TrackTo,\">=\"&D$5))","v":0},{"$f":"IF(E$1=\"N\",0,COUNTIFS(TrackCode,$A11,TrackFrom,\"<=\"&E$5,TrackTo,\">=\"&E$5))","v":0},{"$f":"IF(F$1=\"N\",0,COUNTIFS(TrackCode,$A11,TrackFrom,\"<=\"&F$5,TrackTo,\">=\"&F$5))","v":0},{"$f":"IF(G$1=\"N\",0,COUNTIFS(TrackCode,$A11,TrackFrom,\"<=\"&G$5,TrackTo,\">=\"&G$5))","v":0},{"$f":"IF(H$1=\"N\",0,COUNTIFS(TrackCode,$A11,TrackFrom,\"<=\"&H$5,TrackTo,\">=\"&H$5))","v":0},{"$f":"IF(I$1=\"N\",0,COUNTIFS(TrackCode,$A11,TrackFrom,\"<=\"&I$5,TrackTo,\">=\"&I$5))","v":0},{"$f":"IF(J$1=\"N\",0,COUNTIFS(TrackCode,$A11,TrackFrom,\"<=\"&J$5,TrackTo,\">=\"&J$5))","v":0},{"$f":"IF(K$1=\"N\",0,COUNTIFS(TrackCode,$A11,TrackFrom,\"<=\"&K$5,TrackTo,\">=\"&K$5))","v":0},{"$f":"IF(L$1=\"N\",0,COUNTIFS(TrackCode,$A11,TrackFrom,\"<=\"&L$5,TrackTo,\">=\"&L$5))","v":1},{"$f":"IF(M$1=\"N\",0,COUNTIFS(TrackCode,$A11,TrackFrom,\"<=\"&M$5,TrackTo,\">=\"&M$5))","v":1},{"$f":"IF(N$1=\"N\",0,COUNTIFS(TrackCode,$A11,TrackFrom,\"<=\"&N$5,TrackTo,\">=\"&N$5))","v":1},{"$f":"IF(O$1=\"N\",0,COUNTIFS(TrackCode,$A11,TrackFrom,\"<=\"&O$5,TrackTo,\">=\"&O$5))","v":1},{"$f":"IF(P$1=\"N\",0,COUNTIFS(TrackCode,$A11,TrackFrom,\"<=\"&P$5,TrackTo,\">=\"&P$5))","v":0},{"$f":"IF(Q$1=\"N\",0,COUNTIFS(TrackCode,$A11,TrackFrom,\"<=\"&Q$5,TrackTo,\">=\"&Q$5))","v":0},{"$f":"IF(R$1=\"N\",0,COUNTIFS(TrackCode,$A11,TrackFrom,\"<=\"&R$5,TrackTo,\">=\"&R$5))","v":0},{"$f":"IF(S$1=\"N\",0,COUNTIFS(TrackCode,$A11,TrackFrom,\"<=\"&S$5,TrackTo,\">=\"&S$5))","v":0},{"$f":"IF(T$1=\"N\",0,COUNTIFS(TrackCode,$A11,TrackFrom,\"<=\"&T$5,TrackTo,\">=\"&T$5))","v":0},{"$f":"IF(U$1=\"N\",0,COUNTIFS(TrackCode,$A11,TrackFrom,\"<=\"&U$5,TrackTo,\">=\"&U$5))","v":0},{"$f":"IF(V$1=\"N\",0,COUNTIFS(TrackCode,$A11,TrackFrom,\"<=\"&V$5,TrackTo,\">=\"&V$5))","v":0},{"$f":"IF(W$1=\"N\",0,COUNTIFS(TrackCode,$A11,TrackFrom,\"<=\"&W$5,TrackTo,\">=\"&W$5))","v":0},{"$f":"IF(X$1=\"N\",0,COUNTIFS(TrackCode,$A11,TrackFrom,\"<=\"&X$5,TrackTo,\">=\"&X$5))","v":0},{"$f":"IF(Y$1=\"N\",0,COUNTIFS(TrackCode,$A11,TrackFrom,\"<=\"&Y$5,TrackTo,\">=\"&Y$5))","v":0},{"$f":"IF(Z$1=\"N\",0,COUNTIFS(TrackCode,$A11,TrackFrom,\"<=\"&Z$5,TrackTo,\">=\"&Z$5))","v":0},{"$f":"IF(AA$1=\"N\",0,COUNTIFS(TrackCode,$A11,TrackFrom,\"<=\"&AA$5,TrackTo,\">=\"&AA$5))","v":0},{"$f":"IF(AB$1=\"N\",0,COUNTIFS(TrackCode,$A11,TrackFrom,\"<=\"&AB$5,TrackTo,\">=\"&AB$5))","v":0},{"$f":"IF(AC$1=\"N\",0,COUNTIFS(TrackCode,$A11,TrackFrom,\"<=\"&AC$5,TrackTo,\">=\"&AC$5))","v":0},{"$f":"IF(AD$1=\"N\",0,COUNTIFS(TrackCode,$A11,TrackFrom,\"<=\"&AD$5,TrackTo,\">=\"&AD$5))","v":0},{"$f":"IF(AE$1=\"N\",0,COUNTIFS(TrackCode,$A11,TrackFrom,\"<=\"&AE$5,TrackTo,\">=\"&AE$5))","v":0},{"$f":"IF(AF$1=\"N\",0,COUNTIFS(TrackCode,$A11,TrackFrom,\"<=\"&AF$5,TrackTo,\">=\"&AF$5))","v":0},{"$f":"IF(AG$1=\"N\",0,COUNTIFS(TrackCode,$A11,TrackFrom,\"<=\"&AG$5,TrackTo,\">=\"&AG$5))","v":0},{"$f":"IF(AH$1=\"N\",0,COUNTIFS(TrackCode,$A11,TrackFrom,\"<=\"&AH$5,TrackTo,\">=\"&AH$5))","v":1},{"$f":"IF(AI$1=\"N\",0,COUNTIFS(TrackCode,$A11,TrackFrom,\"<=\"&AI$5,TrackTo,\">=\"&AI$5))","v":1},{"$f":"IF(AJ$1=\"N\",0,COUNTIFS(TrackCode,$A11,TrackFrom,\"<=\"&AJ$5,TrackTo,\">=\"&AJ$5))","v":1},{"$f":"IF(AK$1=\"N\",0,COUNTIFS(TrackCode,$A11,TrackFrom,\"<=\"&AK$5,TrackTo,\">=\"&AK$5))","v":0},{"$f":"IF(AL$1=\"N\",0,COUNTIFS(TrackCode,$A11,TrackFrom,\"<=\"&AL$5,TrackTo,\">=\"&AL$5))","v":0},{"$f":"IF(AM$1=\"N\",0,COUNTIFS(TrackCode,$A11,TrackFrom,\"<=\"&AM$5,TrackTo,\">=\"&AM$5))","v":0},{"$f":"IF(AN$1=\"N\",0,COUNTIFS(TrackCode,$A11,TrackFrom,\"<=\"&AN$5,TrackTo,\">=\"&AN$5))","v":0},{"$f":"IF(AO$1=\"N\",0,COUNTIFS(TrackCode,$A11,TrackFrom,\"<=\"&AO$5,TrackTo,\">=\"&AO$5))","v":0},{"$f":"IF(AP$1=\"N\",0,COUNTIFS(TrackCode,$A11,TrackFrom,\"<=\"&AP$5,TrackTo,\">=\"&AP$5))","v":0},{"$f":"IF(AQ$1=\"N\",0,COUNTIFS(TrackCode,$A11,TrackFrom,\"<=\"&AQ$5,TrackTo,\">=\"&AQ$5))","v":0},{"$f":"IF(AR$1=\"N\",0,COUNTIFS(TrackCode,$A11,TrackFrom,\"<=\"&AR$5,TrackTo,\">=\"&AR$5))","v":0},{"$f":"IF(AS$1=\"N\",0,COUNTIFS(TrackCode,$A11,TrackFrom,\"<=\"&AS$5,TrackTo,\">=\"&AS$5))","v":0},{"$f":"IF(AT$1=\"N\",0,COUNTIFS(TrackCode,$A11,TrackFrom,\"<=\"&AT$5,TrackTo,\">=\"&AT$5))","v":0},{"$f":"IF(AU$1=\"N\",0,COUNTIFS(TrackCode,$A11,TrackFrom,\"<=\"&AU$5,TrackTo,\">=\"&AU$5))","v":0},{"$f":"IF(AV$1=\"N\",0,COUNTIFS(TrackCode,$A11,TrackFrom,\"<=\"&AV$5,TrackTo,\">=\"&AV$5))","v":0},{"$f":"IF(AW$1=\"N\",0,COUNTIFS(TrackCode,$A11,TrackFrom,\"<=\"&AW$5,TrackTo,\">=\"&AW$5))","v":0},{"$f":"IF(AX$1=\"N\",0,COUNTIFS(TrackCode,$A11,TrackFrom,\"<=\"&AX$5,TrackTo,\">=\"&AX$5))","v":0},{"$f":"IF(AY$1=\"N\",0,COUNTIFS(TrackCode,$A11,TrackFrom,\"<=\"&AY$5,TrackTo,\">=\"&AY$5))","v":0},{"$f":"IF(AZ$1=\"N\",0,COUNTIFS(TrackCode,$A11,TrackFrom,\"<=\"&AZ$5,TrackTo,\">=\"&AZ$5))","v":0},{"$f":"IF(BA$1=\"N\",0,COUNTIFS(TrackCode,$A11,TrackFrom,\"<=\"&BA$5,TrackTo,\">=\"&BA$5))","v":0},{"$f":"IF(BB$1=\"N\",0,COUNTIFS(TrackCode,$A11,TrackFrom,\"<=\"&BB$5,TrackTo,\">=\"&BB$5))","v":0},{"$f":"IF(BC$1=\"N\",0,COUNTIFS(TrackCode,$A11,TrackFrom,\"<=\"&BC$5,TrackTo,\">=\"&BC$5))","v":0},{"$f":"IF(BD$1=\"N\",0,COUNTIFS(TrackCode,$A11,TrackFrom,\"<=\"&BD$5,TrackTo,\">=\"&BD$5))","v":0},{"$f":"IF(BE$1=\"N\",0,COUNTIFS(TrackCode,$A11,TrackFrom,\"<=\"&BE$5,TrackTo,\">=\"&BE$5))","v":0},{"$f":"IF(BF$1=\"N\",0,COUNTIFS(TrackCode,$A11,TrackFrom,\"<=\"&BF$5,TrackTo,\">=\"&BF$5))","v":0},{"$f":"IF(BG$1=\"N\",0,COUNTIFS(TrackCode,$A11,TrackFrom,\"<=\"&BG$5,TrackTo,\">=\"&BG$5))","v":0},{"$f":"IF(BH$1=\"N\",0,COUNTIFS(TrackCode,$A11,TrackFrom,\"<=\"&BH$5,TrackTo,\">=\"&BH$5))","v":0},{"$f":"IF(BI$1=\"N\",0,COUNTIFS(TrackCode,$A11,TrackFrom,\"<=\"&BI$5,TrackTo,\">=\"&BI$5))","v":0},{"$f":"IF(BJ$1=\"N\",0,COUNTIFS(TrackCode,$A11,TrackFrom,\"<=\"&BJ$5,TrackTo,\">=\"&BJ$5))","v":0},{"$f":"IF(BK$1=\"N\",0,COUNTIFS(TrackCode,$A11,TrackFrom,\"<=\"&BK$5,TrackTo,\">=\"&BK$5))","v":0}]
[1006,"Employee 6","Admin",{"$f":"IF(D$1=\"N\",0,COUNTIFS(TrackCode,$A12,TrackFrom,\"<=\"&D$5,TrackTo,\">=\"&D$5))","v":0},{"$f":"IF(E$1=\"N\",0,COUNTIFS(TrackCode,$A12,TrackFrom,\"<=\"&E$5,TrackTo,\">=\"&E$5))","v":0},{"$f":"IF(F$1=\"N\",0,COUNTIFS(TrackCode,$A12,TrackFrom,\"<=\"&F$5,TrackTo,\">=\"&F$5))","v":0},{"$f":"IF(G$1=\"N\",0,COUNTIFS(TrackCode,$A12,TrackFrom,\"<=\"&G$5,TrackTo,\">=\"&G$5))","v":0},{"$f":"IF(H$1=\"N\",0,COUNTIFS(TrackCode,$A12,TrackFrom,\"<=\"&H$5,TrackTo,\">=\"&H$5))","v":0},{"$f":"IF(I$1=\"N\",0,COUNTIFS(TrackCode,$A12,TrackFrom,\"<=\"&I$5,TrackTo,\">=\"&I$5))","v":0},{"$f":"IF(J$1=\"N\",0,COUNTIFS(TrackCode,$A12,TrackFrom,\"<=\"&J$5,TrackTo,\">=\"&J$5))","v":0},{"$f":"IF(K$1=\"N\",0,COUNTIFS(TrackCode,$A12,TrackFrom,\"<=\"&K$5,TrackTo,\">=\"&K$5))","v":0},{"$f":"IF(L$1=\"N\",0,COUNTIFS(TrackCode,$A12,TrackFrom,\"<=\"&L$5,TrackTo,\">=\"&L$5))","v":0},{"$f":"IF(M$1=\"N\",0,COUNTIFS(TrackCode,$A12,TrackFrom,\"<=\"&M$5,TrackTo,\">=\"&M$5))","v":0},{"$f":"IF(N$1=\"N\",0,COUNTIFS(TrackCode,$A12,TrackFrom,\"<=\"&N$5,TrackTo,\">=\"&N$5))","v":0},{"$f":"IF(O$1=\"N\",0,COUNTIFS(TrackCode,$A12,TrackFrom,\"<=\"&O$5,TrackTo,\">=\"&O$5))","v":0},{"$f":"IF(P$1=\"N\",0,COUNTIFS(TrackCode,$A12,TrackFrom,\"<=\"&P$5,TrackTo,\">=\"&P$5))","v":0},{"$f":"IF(Q$1=\"N\",0,COUNTIFS(TrackCode,$A12,TrackFrom,\"<=\"&Q$5,TrackTo,\">=\"&Q$5))","v":0},{"$f":"IF(R$1=\"N\",0,COUNTIFS(TrackCode,$A12,TrackFrom,\"<=\"&R$5,TrackTo,\">=\"&R$5))","v":0},{"$f":"IF(S$1=\"N\",0,COUNTIFS(TrackCode,$A12,TrackFrom,\"<=\"&S$5,TrackTo,\">=\"&S$5))","v":0},{"$f":"IF(T$1=\"N\",0,COUNTIFS(TrackCode,$A12,TrackFrom,\"<=\"&T$5,TrackTo,\">=\"&T$5))","v":0},{"$f":"IF(U$1=\"N\",0,COUNTIFS(TrackCode,$A12,TrackFrom,\"<=\"&U$5,TrackTo,\">=\"&U$5))","v":0},{"$f":"IF(V$1=\"N\",0,COUNTIFS(TrackCode,$A12,TrackFrom,\"<=\"&V$5,TrackTo,\">=\"&V$5))","v":0},{"$f":"IF(W$1=\"N\",0,COUNTIFS(TrackCode,$A12,TrackFrom,\"<=\"&W$5,TrackTo,\">=\"&W$5))","v":0},{"$f":"IF(X$1=\"N\",0,COUNTIFS(TrackCode,$A12,TrackFrom,\"<=\"&X$5,TrackTo,\">=\"&X$5))","v":0},{"$f":"IF(Y$1=\"N\",0,COUNTIFS(TrackCode,$A12,TrackFrom,\"<=\"&Y$5,TrackTo,\">=\"&Y$5))","v":0},{"$f":"IF(Z$1=\"N\",0,COUNTIFS(TrackCode,$A12,TrackFrom,\"<=\"&Z$5,TrackTo,\">=\"&Z$5))","v":0},{"$f":"IF(AA$1=\"N\",0,COUNTIFS(TrackCode,$A12,TrackFrom,\"<=\"&AA$5,TrackTo,\">=\"&AA$5))","v":0},{"$f":"IF(AB$1=\"N\",0,COUNTIFS(TrackCode,$A12,TrackFrom,\"<=\"&AB$5,TrackTo,\">=\"&AB$5))","v":0},{"$f":"IF(AC$1=\"N\",0,COUNTIFS(TrackCode,$A12,TrackFrom,\"<=\"&AC$5,TrackTo,\">=\"&AC$5))","v":0},{"$f":"IF(AD$1=\"N\",0,COUNTIFS(TrackCode,$A12,TrackFrom,\"<=\"&AD$5,TrackTo,\">=\"&AD$5))","v":0},{"$f":"IF(AE$1=\"N\",0,COUNTIFS(TrackCode,$A12,TrackFrom,\"<=\"&AE$5,TrackTo,\">=\"&AE$5))","v":0},{"$f":"IF(AF$1=\"N\",0,COUNTIFS(TrackCode,$A12,TrackFrom,\"<=\"&AF$5,TrackTo,\">=\"&AF$5))","v":1},{"$f":"IF(AG$1=\"N\",0,COUNTIFS(TrackCode,$A12,TrackFrom,\"<=\"&AG$5,TrackTo,\">=\"&AG$5))","v":0},{"$f":"IF(AH$1=\"N\",0,COUNTIFS(TrackCode,$A12,TrackFrom,\"<=\"&AH$5,TrackTo,\">=\"&AH$5))","v":0},{"$f":"IF(AI$1=\"N\",0,COUNTIFS(TrackCode,$A12,TrackFrom,\"<=\"&AI$5,TrackTo,\">=\"&AI$5))","v":0},{"$f":"IF(AJ$1=\"N\",0,COUNTIFS(TrackCode,$A12,TrackFrom,\"<=\"&AJ$5,TrackTo,\">=\"&AJ$5))","v":0},{"$f":"IF(AK$1=\"N\",0,COUNTIFS(TrackCode,$A12,TrackFrom,\"<=\"&AK$5,TrackTo,\">=\"&AK$5))","v":0},{"$f":"IF(AL$1=\"N\",0,COUNTIFS(TrackCode,$A12,TrackFrom,\"<=\"&AL$5,TrackTo,\">=\"&AL$5))","v":0},{"$f":"IF(AM$1=\"N\",0,COUNTIFS(TrackCode,$A12,TrackFrom,\"<=\"&AM$5,TrackTo,\">=\"&AM$5))","v":0},{"$f":"IF(AN$1=\"N\",0,COUNTIFS(TrackCode,$A12,TrackFrom,\"<=\"&AN$5,TrackTo,\">=\"&AN$5))","v":0},{"$f":"IF(AO$1=\"N\",0,COUNTIFS(TrackCode,$A12,TrackFrom,\"<=\"&AO$5,TrackTo,\">=\"&AO$5))","v":0},{"$f":"IF(AP$1=\"N\",0,COUNTIFS(TrackCode,$A12,TrackFrom,\"<=\"&AP$5,TrackTo,\">=\"&AP$5))","v":0},{"$f":"IF(AQ$1=\"N\",0,COUNTIFS(TrackCode,$A12,TrackFrom,\"<=\"&AQ$5,TrackTo,\">=\"&AQ$5))","v":0},{"$f":"IF(AR$1=\"N\",0,COUNTIFS(TrackCode,$A12,TrackFrom,\"<=\"&AR$5,TrackTo,\">=\"&AR$5))","v":0},{"$f":"IF(AS$1=\"N\",0,COUNTIFS(TrackCode,$A12,TrackFrom,\"<=\"&AS$5,TrackTo,\">=\"&AS$5))","v":0},{"$f":"IF(AT$1=\"N\",0,COUNTIFS(TrackCode,$A12,TrackFrom,\"<=\"&AT$5,TrackTo,\">=\"&AT$5))","v":0},{"$f":"IF(AU$1=\"N\",0,COUNTIFS(TrackCode,$A12,TrackFrom,\"<=\"&AU$5,TrackTo,\">=\"&AU$5))","v":0},{"$f":"IF(AV$1=\"N\",0,COUNTIFS(TrackCode,$A12,TrackFrom,\"<=\"&AV$5,TrackTo,\">=\"&AV$5))","v":0},{"$f":"IF(AW$1=\"N\",0,COUNTIFS(TrackCode,$A12,TrackFrom,\"<=\"&AW$5,TrackTo,\">=\"&AW$5))","v":0},{"$f":"IF(AX$1=\"N\",0,COUNTIFS(TrackCode,$A12,TrackFrom,\"<=\"&AX$5,TrackTo,\">=\"&AX$5))","v":0},{"$f":"IF(AY$1=\"N\",0,COUNTIFS(TrackCode,$A12,TrackFrom,\"<=\"&AY$5,TrackTo,\">=\"&AY$5))","v":0},{"$f":"IF(AZ$1=\"N\",0,COUNTIFS(TrackCode,$A12,TrackFrom,\"<=\"&AZ$5,TrackTo,\">=\"&AZ$5))","v":0},{"$f":"IF(BA$1=\"N\",0,COUNTIFS(TrackCode,$A12,TrackFrom,\"<=\"&BA$5,TrackTo,\">=\"&BA$5))","v":0},{"$f":"IF(BB$1=\"N\",0,COUNTIFS(TrackCode,$A12,TrackFrom,\"<=\"&BB$5,TrackTo,\">=\"&BB$5))","v":0},{"$f":"IF(BC$1=\"N\",0,COUNTIFS(TrackCode,$A12,TrackFrom,\"<=\"&BC$5,TrackTo,\">=\"&BC$5))","v":0},{"$f":"IF(BD$1=\"N\",0,COUNTIFS(TrackCode,$A12,TrackFrom,\"<=\"&BD$5,TrackTo,\">=\"&BD$5))","v":0},{"$f":"IF(BE$1=\"N\",0,COUNTIFS(TrackCode,$A12,TrackFrom,\"<=\"&BE$5,TrackTo,\">=\"&BE$5))","v":0},{"$f":"IF(BF$1=\"N\",0,COUNTIFS(TrackCode,$A12,TrackFrom,\"<=\"&BF$5,TrackTo,\">=\"&BF$5))","v":0},{"$f":"IF(BG$1=\"N\",0,COUNTIFS(TrackCode,$A12,TrackFrom,\"<=\"&BG$5,TrackTo,\">=\"&BG$5))","v":0},{"$f":"IF(BH$1=\"N\",0,COUNTIFS(TrackCode,$A12,TrackFrom,\"<=\"&BH$5,TrackTo,\">=\"&BH$5))","v":0},{"$f":"IF(BI$1=\"N\",0,COUNTIFS(TrackCode,$A12,TrackFrom,\"<=\"&BI$5,TrackTo,\">=\"&BI$5))","v":0},{"$f":"IF(BJ$1=\"N\",0,COUNTIFS(TrackCode,$A12,TrackFrom,\"<=\"&BJ$5,TrackTo,\">=\"&BJ$5))","v":0},{"$f":"IF(BK$1=\"N\",0,COUNTIFS(TrackCode,$A12,TrackFrom,\"<=\"&BK$5,TrackTo,\">=\"&BK$5))","v":0}]
[1007,"Employee 7","Sales",{"$f":"IF(D$1=\"N\",0,COUNTIFS(TrackCode,$A13,TrackFrom,\"<=\"&D$5,TrackTo,\">=\"&D$5))","v":0},{"$f":"IF(E$1=\"N\",0,COUNTIFS(TrackCode,$A13,TrackFrom,\"<=\"&E$5,TrackTo,\">=\"&E$5))","v":0},{"$f":"IF(F$1=\"N\",0,COUNTIFS(TrackCode,$A13,TrackFrom,\"<=\"&F$5,TrackTo,\">=\"&F$5))","v":0},{"$f":"IF(G$1=\"N\",0,COUNTIFS(TrackCode,$A13,TrackFrom,\"<=\"&G$5,TrackTo,\">=\"&G$5))","v":0},{"$f":"IF(H$1=\"N\",0,COUNTIFS(TrackCode,$A13,TrackFrom,\"<=\"&H$5,TrackTo,\">=\"&H$5))","v":0},{"$f":"IF(I$1=\"N\",0,COUNTIFS(TrackCode,$A13,TrackFrom,\"<=\"&I$5,TrackTo,\">=\"&I$5))","v":0},{"$f":"IF(J$1=\"N\",0,COUNTIFS(TrackCode,$A13,TrackFrom,\"<=\"&J$5,TrackTo,\">=\"&J$5))","v":0},{"$f":"IF(K$1=\"N\",0,COUNTIFS(TrackCode,$A13,TrackFrom,\"<=\"&K$5,TrackTo,\">=\"&K$5))","v":0},{"$f":"IF(L$1=\"N\",0,COUNTIFS(TrackCode,$A13,TrackFrom,\"<=\"&L$5,TrackTo,\">=\"&L$5))","v":0},{"$f":"IF(M$1=\"N\",0,COUNTIFS(TrackCode,$A13,TrackFrom,\"<=\"&M$5,TrackTo,\">=\"&M$5))","v":0},{"$f":"IF(N$1=\"N\",0,COUNTIFS(TrackCode,$A13,TrackFrom,\"<=\"&N$5,TrackTo,\">=\"&N$5))","v":0},{"$f":"IF(O$1=\"N\",0,COUNTIFS(TrackCode,$A13,TrackFrom,\"<=\"&O$5,TrackTo,\">=\"&O$5))","v":0},{"$f":"IF(P$1=\"N\",0,COUNTIFS(TrackCode,$A13,TrackFrom,\"<=\"&P$5,TrackTo,\">=\"&P$5))","v":0},{"$f":"IF(Q$1=\"N\",0,COUNTIFS(TrackCode,$A13,TrackFrom,\"<=\"&Q$5,TrackTo,\">=\"&Q$5))","v":0},{"$f":"IF(R$1=\"N\",0,COUNTIFS(TrackCode,$A13,TrackFrom,\"<=\"&R$5,TrackTo,\">=\"&R$5))","v":0},{"$f":"IF(S$1=\"N\",0,COUNTIFS(TrackCode,$A13,TrackFrom,\"<=\"&S$5,TrackTo,\">=\"&S$5))","v":0},{"$f":"IF(T$1=\"N\",0,COUNTIFS(TrackCode,$A13,TrackFrom,\"<=\"&T$5,TrackTo,\">=\"&T$5))","v":0},{"$f":"IF(U$1=\"N\",0,COUNTIFS(TrackCode,$A13,TrackFrom,\"<=\"&U$5,TrackTo,\">=\"&U$5))","v":0},{"$f":"IF(V$1=\"N\",0,COUNTIFS(TrackCode,$A13,TrackFrom,\"<=\"&V$5,TrackTo,\">=\"&V$5))","v":0},{"$f":"IF(W$1=\"N\",0,COUNTIFS(TrackCode,$A13,TrackFrom,\"<=\"&W$5,TrackTo,\">=\"&W$5))","v":0},{"$f":"IF(X$1=\"N\",0,COUNTIFS(TrackCode,$A13,TrackFrom,\"<=\"&X$5,TrackTo,\">=\"&X$5))","v":0},{"$f":"IF(Y$1=\"N\",0,COUNTIFS(TrackCode,$A13,TrackFrom,\"<=\"&Y$5,TrackTo,\">=\"&Y$5))","v":0},{"$f":"IF(Z$1=\"N\",0,COUNTIFS(TrackCode,$A13,TrackFrom,\"<=\"&Z$5,TrackTo,\">=\"&Z$5))","v":0},{"$f":"IF(AA$1=\"N\",0,COUNTIFS(TrackCode,$A13,TrackFrom,\"<=\"&AA$5,TrackTo,\">=\"&AA$5))","v":0},{"$f":"IF(AB$1=\"N\",0,COUNTIFS(TrackCode,$A13,TrackFrom,\"<=\"&AB$5,TrackTo,\">=\"&AB$5))","v":0},{"$f":"IF(AC$1=\"N\",0,COUNTIFS(TrackCode,$A13,TrackFrom,\"<=\"&AC$5,TrackTo,\">=\"&AC$5))","v":0},{"$f":"IF(AD$1=\"N\",0,COUNTIFS(TrackCode,$A13,TrackFrom,\"<=\"&AD$5,TrackTo,\">=\"&AD$5))","v":0},{"$f":"IF(AE$1=\"N\",0,COUNTIFS(TrackCode,$A13,TrackFrom,\"<=\"&AE$5,TrackTo,\">=\"&AE$5))","v":0},{"$f":"IF(AF$1=\"N\",0,COUNTIFS(TrackCode,$A13,TrackFrom,\"<=\"&AF$5,TrackTo,\">=\"&AF$5))","v":1},{"$f":"IF(AG$1=\"N\",0,COUNTIFS(TrackCode,$A13,TrackFrom,\"<=\"&AG$5,TrackTo,\">=\"&AG$5))","v":0},{"$f":"IF(AH$1=\"N\",0,COUNTIFS(TrackCode,$A13,TrackFrom,\"<=\"&AH$5,TrackTo,\">=\"&AH$5))","v":1},{"$f":"IF(AI$1=\"N\",0,COUNTIFS(TrackCode,$A13,TrackFrom,\"<=\"&AI$5,TrackTo,\">=\"&AI$5))","v":1},{"$f":"IF(AJ$1=\"N\",0,COUNTIFS(TrackCode,$A13,TrackFrom,\"<=\"&AJ$5,TrackTo,\">=\"&AJ$5))","v":1},{"$f":"IF(AK$1=\"N\",0,COUNTIFS(TrackCode,$A13,TrackFrom,\"<=\"&AK$5,TrackTo,\">=\"&AK$5))","v":0},{"$f":"IF(AL$1=\"N\",0,COUNTIFS(TrackCode,$A13,TrackFrom,\"<=\"&AL$5,TrackTo,\">=\"&AL$5))","v":0},{"$f":"IF(AM$1=\"N\",0,COUNTIFS(TrackCode,$A13,TrackFrom,\"<=\"&AM$5,TrackTo,\">=\"&AM$5))","v":0},{"$f":"IF(AN$1=\"N\",0,COUNTIFS(TrackCode,$A13,TrackFrom,\"<=\"&AN$5,TrackTo,\">=\"&AN$5))","v":0},{"$f":"IF(AO$1=\"N\",0,COUNTIFS(TrackCode,$A13,TrackFrom,\"<=\"&AO$5,TrackTo,\">=\"&AO$5))","v":0},{"$f":"IF(AP$1=\"N\",0,COUNTIFS(TrackCode,$A13,TrackFrom,\"<=\"&AP$5,TrackTo,\">=\"&AP$5))","v":0},{"$f":"IF(AQ$1=\"N\",0,COUNTIFS(TrackCode,$A13,TrackFrom,\"<=\"&AQ$5,TrackTo,\">=\"&AQ$5))","v":0},{"$f":"IF(AR$1=\"N\",0,COUNTIFS(TrackCode,$A13,TrackFrom,\"<=\"&AR$5,TrackTo,\">=\"&AR$5))","v":0},{"$f":"IF(AS$1=\"N\",0,COUNTIFS(TrackCode,$A13,TrackFrom,\"<=\"&AS$5,TrackTo,\">=\"&AS$5))","v":0},{"$f":"IF(AT$1=\"N\",0,COUNTIFS(TrackCode,$A13,TrackFrom,\"<=\"&AT$5,TrackTo,\">=\"&AT$5))","v":0},{"$f":"IF(AU$1=\"N\",0,COUNTIFS(TrackCode,$A13,TrackFrom,\"<=\"&AU$5,TrackTo,\">=\"&AU$5))","v":0},{"$f":"IF(AV$1=\"N\",0,COUNTIFS(TrackCode,$A13,TrackFrom,\"<=\"&AV$5,TrackTo,\">=\"&AV$5))","v":0},{"$f":"IF(AW$1=\"N\",0,COUNTIFS(TrackCode,$A13,TrackFrom,\"<=\"&AW$5,TrackTo,\">=\"&AW$5))","v":0},{"$f":"IF(AX$1=\"N\",0,COUNTIFS(TrackCode,$A13,TrackFrom,\"<=\"&AX$5,TrackTo,\">=\"&AX$5))","v":0},{"$f":"IF(AY$1=\"N\",0,COUNTIFS(TrackCode,$A13,TrackFrom,\"<=\"&AY$5,TrackTo,\">=\"&AY$5))","v":0},{"$f":"IF(AZ$1=\"N\",0,COUNTIFS(TrackCode,$A13,TrackFrom,\"<=\"&AZ$5,TrackTo,\">=\"&AZ$5))","v":0},{"$f":"IF(BA$1=\"N\",0,COUNTIFS(TrackCode,$A13,TrackFrom,\"<=\"&BA$5,TrackTo,\">=\"&BA$5))","v":0},{"$f":"IF(BB$1=\"N\",0,COUNTIFS(TrackCode,$A13,TrackFrom,\"<=\"&BB$5,TrackTo,\">=\"&BB$5))","v":0},{"$f":"IF(BC$1=\"N\",0,COUNTIFS(TrackCode,$A13,TrackFrom,\"<=\"&BC$5,TrackTo,\">=\"&BC$5))","v":0},{"$f":"IF(BD$1=\"N\",0,COUNTIFS(TrackCode,$A13,TrackFrom,\"<=\"&BD$5,TrackTo,\">=\"&BD$5))","v":0},{"$f":"IF(BE$1=\"N\",0,COUNTIFS(TrackCode,$A13,TrackFrom,\"<=\"&BE$5,TrackTo,\">=\"&BE$5))","v":0},{"$f":"IF(BF$1=\"N\",0,COUNTIFS(TrackCode,$A13,TrackFrom,\"<=\"&BF$5,TrackTo,\">=\"&BF$5))","v":0},{"$f":"IF(BG$1=\"N\",0,COUNTIFS(TrackCode,$A13,TrackFrom,\"<=\"&BG$5,TrackTo,\">=\"&BG$5))","v":0},{"$f":"IF(BH$1=\"N\",0,COUNTIFS(TrackCode,$A13,TrackFrom,\"<=\"&BH$5,TrackTo,\">=\"&BH$5))","v":0},{"$f":"IF(BI$1=\"N\",0,COUNTIFS(TrackCode,$A13,TrackFrom,\"<=\"&BI$5,TrackTo,\">=\"&BI$5))","v":0},{"$f":"IF(BJ$1=\"N\",0,COUNTIFS(TrackCode,$A13,TrackFrom,\"<=\"&BJ$5,TrackTo,\">=\"&BJ$5))","v":0},{"$f":"IF(BK$1=\"N\",0,COUNTIFS(TrackCode,$A13,TrackFrom,\"<=\"&BK$5,TrackTo,\">=\"&BK$5))","v":0}]
[1008,"Employee 8","Admin",{"$f":"IF(D$1=\"N\",0,COUNTIFS(TrackCode,$A14,TrackFrom,\"<=\"&D$5,TrackTo,\">=\"&D$5))","v":0},{"$f":"IF(E$1=\"N\",0,COUNTIFS(TrackCode,$A14,TrackFrom,\"<=\"&E$5,TrackTo,\">=\"&E$5))","v":0},{"$f":"IF(F$1=\"N\",0,COUNTIFS(TrackCode,$A14,TrackFrom,\"<=\"&F$5,TrackTo,\">=\"&F$5))","v":0},{"$f":"IF(G$1=\"N\",0,COUNTIFS(TrackCode,$A14,TrackFrom,\"<=\"&G$5,TrackTo,\">=\"&G$5))","v":0},{"$f":"IF(H$1=\"N\",0,COUNTIFS(TrackCode,$A14,TrackFrom,\"<=\"&H$5,TrackTo,\">=\"&H$5))","v":0},{"$f":"IF(I$1=\"N\",0,COUNTIFS(TrackCode,$A14,TrackFrom,\"<=\"&I$5,TrackTo,\">=\"&I$5))","v":0},{"$f":"IF(J$1=\"N\",0,COUNTIFS(TrackCode,$A14,TrackFrom,\"<=\"&J$5,TrackTo,\">=\"&J$5))","v":0},{"$f":"IF(K$1=\"N\",0,COUNTIFS(TrackCode,$A14,TrackFrom,\"<=\"&K$5,TrackTo,\">=\"&K$5))","v":0},{"$f":"IF(L$1=\"N\",0,COUNTIFS(TrackCode,$A14,TrackFrom,\"<=\"&L$5,TrackTo,\">=\"&L$5))","v":1},{"$f":"IF(M$1=\"N\",0,COUNTIFS(TrackCode,$A14,TrackFrom,\"<=\"&M$5,TrackTo,\">=\"&M$5))","v":1},{"$f":"IF(N$1=\"N\",0,COUNTIFS(TrackCode,$A14,TrackFrom,\"<=\"&N$5,TrackTo,\">=\"&N$5))","v":1},{"$f":"IF(O$1=\"N\",0,COUNTIFS(TrackCode,$A14,TrackFrom,\"<=\"&O$5,TrackTo,\">=\"&O$5))","v":1},{"$f":"IF(P$1=\"N\",0,COUNTIFS(TrackCode,$A14,TrackFrom,\"<=\"&P$5,TrackTo,\">=\"&P$5))","v":0},{"$f":"IF(Q$1=\"N\",0,COUNTIFS(TrackCode,$A14,TrackFrom,\"<=\"&Q$5,TrackTo,\">=\"&Q$5))","v":0},{"$f":"IF(R$1=\"N\",0,COUNTIFS(TrackCode,$A14,TrackFrom,\"<=\"&R$5,TrackTo,\">=\"&R$5))","v":0},{"$f":"IF(S$1=\"N\",0,COUNTIFS(TrackCode,$A14,TrackFrom,\"<=\"&S$5,TrackTo,\">=\"&S$5))","v":0},{"$f":"IF(T$1=\"N\",0,COUNTIFS(TrackCode,$A14,TrackFrom,\"<=\"&T$5,TrackTo,\">=\"&T$5))","v":0},{"$f":"IF(U$1=\"N\",0,COUNTIFS(TrackCode,$A14,TrackFrom,\"<=\"&U$5,TrackTo,\">=\"&U$5))","v":0},{"$f":"IF(V$1=\"N\",0,COUNTIFS(TrackCode,$A14,TrackFrom,\"<=\"&V$5,TrackTo,\">=\"&V$5))","v":0},{"$f":"IF(W$1=\"N\",0,COUNTIFS(TrackCode,$A14,TrackFrom,\"<=\"&W$5,TrackTo,\">=\"&W$5))","v":0},{"$f":"IF(X$1=\"N\",0,COUNTIFS(TrackCode,$A14,TrackFrom,\"<=\"&X$5,TrackTo,\">=\"&X$5))","v":0},{"$f":"IF(Y$1=\"N\",0,COUNTIFS(TrackCode,$A14,TrackFrom,\"<=\"&Y$5,TrackTo,\">=\"&Y$5))","v":0},{"$f":"IF(Z$1=\"N\",0,COUNTIFS(TrackCode,$A14,TrackFrom,\"<=\"&Z$5,TrackTo,\">=\"&Z$5))","v":0},{"$f":"IF(AA$1=\"N\",0,COUNTIFS(TrackCode,$A14,TrackFrom,\"<=\"&AA$5,TrackTo,\">=\"&AA$5))","v":0},{"$f":"IF(AB$1=\"N\",0,COUNTIFS(TrackCode,$A14,TrackFrom,\"<=\"&AB$5,TrackTo,\">=\"&AB$5))","v":0},{"$f":"IF(AC$1=\"N\",0,COUNTIFS(TrackCode,$A14,TrackFrom,\"<=\"&AC$5,TrackTo,\">=\"&AC$5))","v":0},{"$f":"IF(AD$1=\"N\",0,COUNTIFS(TrackCode,$A14,TrackFrom,\"<=\"&AD$5,TrackTo,\">=\"&AD$5))","v":0},{"$f":"IF(AE$1=\"N\",0,COUNTIFS(TrackCode,$A14,TrackFrom,\"<=\"&AE$5,TrackTo,\">=\"&AE$5))","v":0},{"$f":"IF(AF$1=\"N\",0,COUNTIFS(TrackCode,$A14,TrackFrom,\"<=\"&AF$5,TrackTo,\">=\"&AF$5))","v":0},{"$f":"IF(AG$1=\"N\",0,COUNTIFS(TrackCode,$A14,TrackFrom,\"<=\"&AG$5,TrackTo,\">=\"&AG$5))","v":0},{"$f":"IF(AH$1=\"N\",0,COUNTIFS(TrackCode,$A14,TrackFrom,\"<=\"&AH$5,TrackTo,\">=\"&AH$5))","v":1},{"$f":"IF(AI$1=\"N\",0,COUNTIFS(TrackCode,$A14,TrackFrom,\"<=\"&AI$5,TrackTo,\">=\"&AI$5))","v":1},{"$f":"IF(AJ$1=\"N\",0,COUNTIFS(TrackCode,$A14,TrackFrom,\"<=\"&AJ$5,TrackTo,\">=\"&AJ$5))","v":1},{"$f":"IF(AK$1=\"N\",0,COUNTIFS(TrackCode,$A14,TrackFrom,\"<=\"&AK$5,TrackTo,\">=\"&AK$5))","v":0},{"$f":"IF(AL$1=\"N\",0,COUNTIFS(TrackCode,$A14,TrackFrom,\"<=\"&AL$5,TrackTo,\">=\"&AL$5))","v":0},{"$f":"IF(AM$1=\"N\",0,COUNTIFS(TrackCode,$A14,TrackFrom,\"<=\"&AM$5,TrackTo,\">=\"&AM$5))","v":0},{"$f":"IF(AN$1=\"N\",0,COUNTIFS(TrackCode,$A14,TrackFrom,\"<=\"&AN$5,TrackTo,\">=\"&AN$5))","v":0},{"$f":"IF(AO$1=\"N\",0,COUNTIFS(TrackCode,$A14,TrackFrom,\"<=\"&AO$5,TrackTo,\">=\"&AO$5))","v":0},{"$f":"IF(AP$1=\"N\",0,COUNTIFS(TrackCode,$A14,TrackFrom,\"<=\"&AP$5,TrackTo,\">=\"&AP$5))","v":0},{"$f":"IF(AQ$1=\"N\",0,COUNTIFS(TrackCode,$A14,TrackFrom,\"<=\"&AQ$5,TrackTo,\">=\"&AQ$5))","v":0},{"$f":"IF(AR$1=\"N\",0,COUNTIFS(TrackCode,$A14,TrackFrom,\"<=\"&AR$5,TrackTo,\">=\"&AR$5))","v":0},{"$f":"IF(AS$1=\"N\",0,COUNTIFS(TrackCode,$A14,TrackFrom,\"<=\"&AS$5,TrackTo,\">=\"&AS$5))","v":0},{"$f":"IF(AT$1=\"N\",0,COUNTIFS(TrackCode,$A14,TrackFrom,\"<=\"&AT$5,TrackTo,\">=\"&AT$5))","v":0},{"$f":"IF(AU$1=\"N\",0,COUNTIFS(TrackCode,$A14,TrackFrom,\"<=\"&AU$5,TrackTo,\">=\"&AU$5))","v":0},{"$f":"IF(AV$1=\"N\",0,COUNTIFS(TrackCode,$A14,TrackFrom,\"<=\"&AV$5,TrackTo,\">=\"&AV$5))","v":0},{"$f":"IF(AW$1=\"N\",0,COUNTIFS(TrackCode,$A14,TrackFrom,\"<=\"&AW$5,TrackTo,\">=\"&AW$5))","v":0},{"$f":"IF(AX$1=\"N\",0,COUNTIFS(TrackCode,$A14,TrackFrom,\"<=\"&AX$5,TrackTo,\">=\"&AX$5))","v":0},{"$f":"IF(AY$1=\"N\",0,COUNTIFS(TrackCode,$A14,TrackFrom,\"<=\"&AY$5,TrackTo,\">=\"&AY$5))","v":0},{"$f":"IF(AZ$1=\"N\",0,COUNTIFS(TrackCode,$A14,TrackFrom,\"<=\"&AZ$5,TrackTo,\">=\"&AZ$5))","v":0},{"$f":"IF(BA$1=\"N\",0,COUNTIFS(TrackCode,$A14,TrackFrom,\"<=\"&BA$5,TrackTo,\">=\"&BA$5))","v":0},{"$f":"IF(BB$1=\"N\",0,COUNTIFS(TrackCode,$A14,TrackFrom,\"<=\"&BB$5,TrackTo,\">=\"&BB$5))","v":0},{"$f":"IF(BC$1=\"N\",0,COUNTIFS(TrackCode,$A14,TrackFrom,\"<=\"&BC$5,TrackTo,\">=\"&BC$5))","v":0},{"$f":"IF(BD$1=\"N\",0,COUNTIFS(TrackCode,$A14,TrackFrom,\"<=\"&BD$5,TrackTo,\">=\"&BD$5))","v":0},{"$f":"IF(BE$1=\"N\",0,COUNTIFS(TrackCode,$A14,TrackFrom,\"<=\"&BE$5,TrackTo,\">=\"&BE$5))","v":0},{"$f":"IF(BF$1=\"N\",0,COUNTIFS(TrackCode,$A14,TrackFrom,\"<=\"&BF$5,TrackTo,\">=\"&BF$5))","v":0},{"$f":"IF(BG$1=\"N\",0,COUNTIFS(TrackCode,$A14,TrackFrom,\"<=\"&BG$5,TrackTo,\">=\"&BG$5))","v":0},{"$f":"IF(BH$1=\"N\",0,COUNTIFS(TrackCode,$A14,TrackFrom,\"<=\"&BH$5,TrackTo,\">=\"&BH$5))","v":0},{"$f":"IF(BI$1=\"N\",0,COUNTIFS(TrackCode,$A14,TrackFrom,\"<=\"&BI$5,TrackTo,\">=\"&BI$5))","v":0},{"$f":"IF(BJ$1=\"N\",0,COUNTIFS(TrackCode,$A14,TrackFrom,\"<=\"&BJ$5,TrackTo,\">=\"&BJ$5))","v":0},{"$f":"IF(BK$1=\"N\",0,COUNTIFS(TrackCode,$A14,TrackFrom,\"<=\"&BK$5,TrackTo,\">=\"&BK$5))","v":0}]
[1009,"Employee 9","Sales",{"$f":"IF(D$1=\"N\",0,COUNTIFS(TrackCode,$A15,TrackFrom,\"<=\"&D$5,TrackTo,\">=\"&D$5))","v":0},{"$f":"IF(E$1=\"N\",0,COUNTIFS(TrackCode,$A15,TrackFrom,\"<=\"&E$5,TrackTo,\">=\"&E$5))","v":0},{"$f":"IF(F$1=\"N\",0,COUNTIFS(TrackCode,$A15,TrackFrom,\"<=\"&F$5,TrackTo,\">=\"&F$5))","v":0},{"$f":"IF(G$1=\"N\",0,COUNTIFS(TrackCode,$A15,TrackFrom,\"<=\"&G$5,TrackTo,\">=\"&G$5))","v":0},{"$f":"IF(H$1=\"N\",0,COUNTIFS(TrackCode,$A15,TrackFrom,\"<=\"&H$5,TrackTo,\">=\"&H$5))","v":0},{"$f":"IF(I$1=\"N\",0,COUNTIFS(TrackCode,$A15,TrackFrom,\"<=\"&I$5,TrackTo,\">=\"&I$5))","v":0},{"$f":"IF(J$1=\"N\",0,COUNTIFS(TrackCode,$A15,TrackFrom,\"<=\"&J$5,TrackTo,\">=\"&J$5))","v":0},{"$f":"IF(K$1=\"N\",0,COUNTIFS(TrackCode,$A15,TrackFrom,\"<=\"&K$5,TrackTo,\">=\"&K$5))","v":0},{"$f":"IF(L$1=\"N\",0,COUNTIFS(TrackCode,$A15,TrackFrom,\"<=\"&L$5,TrackTo,\">=\"&L$5))","v":1},{"$f":"IF(M$1=\"N\",0,COUNTIFS(TrackCode,$A15,TrackFrom,\"<=\"&M$5,TrackTo,\">=\"&M$5))","v":1},{"$f":"IF(N$1=\"N\",0,COUNTIFS(TrackCode,$A15,TrackFrom,\"<=\"&N$5,TrackTo,\">=\"&N$5))","v":1},{"$f":"IF(O$1=\"N\",0,COUNTIFS(TrackCode,$A15,TrackFrom,\"<=\"&O$5,TrackTo,\">=\"&O$5))","v":1},{"$f":"IF(P$1=\"N\",0,COUNTIFS(TrackCode,$A15,TrackFrom,\"<=\"&P$5,TrackTo,\">=\"&P$5))","v":0},{"$f":"IF(Q$1=\"N\",0,COUNTIFS(TrackCode,$A15,TrackFrom,\"<=\"&Q$5,TrackTo,\">=\"&Q$5))","v":0},{"$f":"IF(R$1=\"N\",0,COUNTIFS(TrackCode,$A15,TrackFrom,\"<=\"&R$5,TrackTo,\">=\"&R$5))","v":0},{"$f":"IF(S$1=\"N\",0,COUNTIFS(TrackCode,$A15,TrackFrom,\"<=\"&S$5,TrackTo,\">=\"&S$5))","v":0},{"$f":"IF(T$1=\"N\",0,COUNTIFS(TrackCode,$A15,TrackFrom,\"<=\"&T$5,TrackTo,\">=\"&T$5))","v":0},{"$f":"IF(U$1=\"N\",0,COUNTIFS(TrackCode,$A15,TrackFrom,\"<=\"&U$5,TrackTo,\">=\"&U$5))","v":0},{"$f":"IF(V$1=\"N\",0,COUNTIFS(TrackCode,$A15,TrackFrom,\"<=\"&V$5,TrackTo,\">=\"&V$5))","v":0},{"$f":"IF(W$1=\"N\",0,COUNTIFS(TrackCode,$A15,TrackFrom,\"<=\"&W$5,TrackTo,\">=\"&W$5))","v":0},{"$f":"IF(X$1=\"N\",0,COUNTIFS(TrackCode,$A15,TrackFrom,\"<=\"&X$5,TrackTo,\">=\"&X$5))","v":0},{"$f":"IF(Y$1=\"N\",0,COUNTIFS(TrackCode,$A15,TrackFrom,\"<=\"&Y$5,TrackTo,\">=\"&Y$5))","v":0},{"$f":"IF(Z$1=\"N\",0,COUNTIFS(TrackCode,$A15,TrackFrom,\"<=\"&Z$5,TrackTo,\">=\"&Z$5))","v":0},{"$f":"IF(AA$1=\"N\",0,COUNTIFS(TrackCode,$A15,TrackFrom,\"<=\"&AA$5,TrackTo,\">=\"&AA$5))","v":0},{"$f":"IF(AB$1=\"N\",0,COUNTIFS(TrackCode,$A15,TrackFrom,\"<=\"&AB$5,TrackTo,\">=\"&AB$5))","v":0},{"$f":"IF(AC$1=\"N\",0,COUNTIFS(TrackCode,$A15,TrackFrom,\"<=\"&AC$5,TrackTo,\">=\"&AC$5))","v":0},{"$f":"IF(AD$1=\"N\",0,COUNTIFS(TrackCode,$A15,TrackFrom,\"<=\"&AD$5,TrackTo,\">=\"&AD$5))","v":0},{"$f":"IF(AE$1=\"N\",0,COUNTIFS(TrackCode,$A15,TrackFrom,\"<=\"&AE$5,TrackTo,\">=\"&AE$5))","v":0},{"$f":"IF(AF$1=\"N\",0,COUNTIFS(TrackCode,$A15,TrackFrom,\"<=\"&AF$5,TrackTo,\">=\"&AF$5))","v":0},{"$f":"IF(AG$1=\"N\",0,COUNTIFS(TrackCode,$A15,TrackFrom,\"<=\"&AG$5,TrackTo,\">=\"&AG$5))","v":0},{"$f":"IF(AH$1=\"N\",0,COUNTIFS(TrackCode,$A15,TrackFrom,\"<=\"&AH$5,TrackTo,\">=\"&AH$5))","v":0},{"$f":"IF(AI$1=\"N\",0,COUNTIFS(TrackCode,$A15,TrackFrom,\"<=\"&AI$5,TrackTo,\">=\"&AI$5))","v":0},{"$f":"IF(AJ$1=\"N\",0,COUNTIFS(TrackCode,$A15,TrackFrom,\"<=\"&AJ$5,TrackTo,\">=\"&AJ$5))","v":0},{"$f":"IF(AK$1=\"N\",0,COUNTIFS(TrackCode,$A15,TrackFrom,\"<=\"&AK$5,TrackTo,\">=\"&AK$5))","v":0},{"$f":"IF(AL$1=\"N\",0,COUNTIFS(TrackCode,$A15,TrackFrom,\"<=\"&AL$5,TrackTo,\">=\"&AL$5))","v":0},{"$f":"IF(AM$1=\"N\",0,COUNTIFS(TrackCode,$A15,TrackFrom,\"<=\"&AM$5,TrackTo,\">=\"&AM$5))","v":0},{"$f":"IF(AN$1=\"N\",0,COUNTIFS(TrackCode,$A15,TrackFrom,\"<=\"&AN$5,TrackTo,\">=\"&AN$5))","v":0},{"$f":"IF(AO$1=\"N\",0,COUNTIFS(TrackCode,$A15,TrackFrom,\"<=\"&AO$5,TrackTo,\">=\"&AO$5))","v":0},{"$f":"IF(AP$1=\"N\",0,COUNTIFS(TrackCode,$A15,TrackFrom,\"<=\"&AP$5,TrackTo,\">=\"&AP$5))","v":0},{"$f":"IF(AQ$1=\"N\",0,COUNTIFS(TrackCode,$A15,TrackFrom,\"<=\"&AQ$5,TrackTo,\">=\"&AQ$5))","v":0},{"$f":"IF(AR$1=\"N\",0,COUNTIFS(TrackCode,$A15,TrackFrom,\"<=\"&AR$5,TrackTo,\">=\"&AR$5))","v":0},{"$f":"IF(AS$1=\"N\",0,COUNTIFS(TrackCode,$A15,TrackFrom,\"<=\"&AS$5,TrackTo,\">=\"&AS$5))","v":0},{"$f":"IF(AT$1=\"N\",0,COUNTIFS(TrackCode,$A15,TrackFrom,\"<=\"&AT$5,TrackTo,\">=\"&AT$5))","v":0},{"$f":"IF(AU$1=\"N\",0,COUNTIFS(TrackCode,$A15,TrackFrom,\"<=\"&AU$5,TrackTo,\">=\"&AU$5))","v":0},{"$f":"IF(AV$1=\"N\",0,COUNTIFS(TrackCode,$A15,TrackFrom,\"<=\"&AV$5,TrackTo,\">=\"&AV$5))","v":0},{"$f":"IF(AW$1=\"N\",0,COUNTIFS(TrackCode,$A15,TrackFrom,\"<=\"&AW$5,TrackTo,\">=\"&AW$5))","v":0},{"$f":"IF(AX$1=\"N\",0,COUNTIFS(TrackCode,$A15,TrackFrom,\"<=\"&AX$5,TrackTo,\">=\"&AX$5))","v":0},{"$f":"IF(AY$1=\"N\",0,COUNTIFS(TrackCode,$A15,TrackFrom,\"<=\"&AY$5,TrackTo,\">=\"&AY$5))","v":0},{"$f":"IF(AZ$1=\"N\",0,COUNTIFS(TrackCode,$A15,TrackFrom,\"<=\"&AZ$5,TrackTo,\">=\"&AZ$5))","v":0},{"$f":"IF(BA$1=\"N\",0,COUNTIFS(TrackCode,$A15,TrackFrom,\"<=\"&BA$5,TrackTo,\">=\"&BA$5))","v":0},{"$f":"IF(BB$1=\"N\",0,COUNTIFS(TrackCode,$A15,TrackFrom,\"<=\"&BB$5,TrackTo,\">=\"&BB$5))","v":0},{"$f":"IF(BC$1=\"N\",0,COUNTIFS(TrackCode,$A15,TrackFrom,\"<=\"&BC$5,TrackTo,\">=\"&BC$5))","v":0},{"$f":"IF(BD$1=\"N\",0,COUNTIFS(TrackCode,$A15,TrackFrom,\"<=\"&BD$5,TrackTo,\">=\"&BD$5))","v":0},{"$f":"IF(BE$1=\"N\",0,COUNTIFS(TrackCode,$A15,TrackFrom,\"<=\"&BE$5,TrackTo,\">=\"&BE$5))","v":0},{"$f":"IF(BF$1=\"N\",0,COUNTIFS(TrackCode,$A15,TrackFrom,\"<=\"&BF$5,TrackTo,\">=\"&BF$5))","v":0},{"$f":"IF(BG$1=\"N\",0,COUNTIFS(TrackCode,$A15,TrackFrom,\"<=\"&BG$5,TrackTo,\">=\"&BG$5))","v":0},{"$f":"IF(BH$1=\"N\",0,COUNTIFS(TrackCode,$A15,TrackFrom,\"<=\"&BH$5,TrackTo,\">=\"&BH$5))","v":0},{"$f":"IF(BI$1=\"N\",0,COUNTIFS(TrackCode,$A15,TrackFrom,\"<=\"&BI$5,TrackTo,\">=\"&BI$5))","v":0},{"$f":"IF(BJ$1=\"N\",0,COUNTIFS(TrackCode,$A15,TrackFrom,\"<=\"&BJ$5,TrackTo,\">=\"&BJ$5))","v":0},{"$f":"IF(BK$1=\"N\",0,COUNTIFS(TrackCode,$A15,TrackFrom,\"<=\"&BK$5,TrackTo,\">=\"&BK$5))","v":0}]
[1010,"Employee 10","Support",{"$f":"IF(D$1=\"N\",0,COUNTIFS(TrackCode,$A16,TrackFrom,\"<=\"&D$5,TrackTo,\">=\"&D$5))","v":0},{"$f":"IF(E$1=\"N\",0,COUNTIFS(TrackCode,$A16,TrackFrom,\"<=\"&E$5,TrackTo,\">=\"&E$5))","v":0},{"$f":"IF(F$1=\"N\",0,COUNTIFS(TrackCode,$A16,TrackFrom,\"<=\"&F$5,TrackTo,\">=\"&F$5))","v":0},{"$f":"IF(G$1=\"N\",0,COUNTIFS(TrackCode,$A16,TrackFrom,\"<=\"&G$5,TrackTo,\">=\"&G$5))","v":0},{"$f":"IF(H$1=\"N\",0,COUNTIFS(TrackCode,$A16,TrackFrom,\"<=\"&H$5,TrackTo,\">=\"&H$5))","v":0},{"$f":"IF(I$1=\"N\",0,COUNTIFS(TrackCode,$A16,TrackFrom,\"<=\"&I$5,TrackTo,\">=\"&I$5))","v":0},{"$f":"IF(J$1=\"N\",0,COUNTIFS(TrackCode,$A16,TrackFrom,\"<=\"&J$5,TrackTo,\">=\"&J$5))","v":0},{"$f":"IF(K$1=\"N\",0,COUNTIFS(TrackCode,$A16,TrackFrom,\"<=\"&K$5,TrackTo,\">=\"&K$5))","v":0},{"$f":"IF(L$1=\"N\",0,COUNTIFS(TrackCode,$A16,TrackFrom,\"<=\"&L$5,TrackTo,\">=\"&L$5))","v":1},{"$f":"IF(M$1=\"N\",0,COUNTIFS(TrackCode,$A16,TrackFrom,\"<=\"&M$5,TrackTo,\">=\"&M$5))","v":1},{"$f":"IF(N$1=\"N\",0,COUNTIFS(TrackCode,$A16,TrackFrom,\"<=\"&N$5,TrackTo,\">=\"&N$5))","v":1},{"$f":"IF(O$1=\"N\",0,COUNTIFS(TrackCode,$A16,TrackFrom,\"<=\"&O$5,TrackTo,\">=\"&O$5))","v":1},{"$f":"IF(P$1=\"N\",0,COUNTIFS(TrackCode,$A16,TrackFrom,\"<=\"&P$5,TrackTo,\">=\"&P$5))","v":0},{"$f":"IF(Q$1=\"N\",0,COUNTIFS(TrackCode,$A16,TrackFrom,\"<=\"&Q$5,TrackTo,\">=\"&Q$5))","v":0},{"$f":"IF(R$1=\"N\",0,COUNTIFS(TrackCode,$A16,TrackFrom,\"<=\"&R$5,TrackTo,\">=\"&R$5))","v":0},{"$f":"IF(S$1=\"N\",0,COUNTIFS(TrackCode,$A16,TrackFrom,\"<=\"&S$5,TrackTo,\">=\"&S$5))","v":0},{"$f":"IF(T$1=\"N\",0,COUNTIFS(TrackCode,$A16,TrackFrom,\"<=\"&T$5,TrackTo,\">=\"&T$5))","v":0},{"$f":"IF(U$1=\"N\",0,COUNTIFS(TrackCode,$A16,TrackFrom,\"<=\"&U$5,TrackTo,\">=\"&U$5))","v":0},{"$f":"IF(V$1=\"N\",0,COUNTIFS(TrackCode,$A16,TrackFrom,\"<=\"&V$5,TrackTo,\">=\"&V$5))","v":0},{"$f":"IF(W$1=\"N\",0,COUNTIFS(TrackCode,$A16,TrackFrom,\"<=\"&W$5,TrackTo,\">=\"&W$5))","v":0},{"$f":"IF(X$1=\"N\",0,COUNTIFS(TrackCode,$A16,TrackFrom,\"<=\"&X$5,TrackTo,\">=\"&X$5))","v":0},{"$f":"IF(Y$1=\"N\",0,COUNTIFS(TrackCode,$A16,TrackFrom,\"<=\"&Y$5,TrackTo,\">=\"&Y$5))","v":0},{"$f":"IF(Z$1=\"N\",0,COUNTIFS(TrackCode,$A16,TrackFrom,\"<=\"&Z$5,TrackTo,\">=\"&Z$5))","v":0},{"$f":"IF(AA$1=\"N\",0,COUNTIFS(TrackCode,$A16,TrackFrom,\"<=\"&AA$5,TrackTo,\">=\"&AA$5))","v":0},{"$f":"IF(AB$1=\"N\",0,COUNTIFS(TrackCode,$A16,TrackFrom,\"<=\"&AB$5,TrackTo,\">=\"&AB$5))","v":0},{"$f":"IF(AC$1=\"N\",0,COUNTIFS(TrackCode,$A16,TrackFrom,\"<=\"&AC$5,TrackTo,\">=\"&AC$5))","v":0},{"$f":"IF(AD$1=\"N\",0,COUNTIFS(TrackCode,$A16,TrackFrom,\"<=\"&AD$5,TrackTo,\">=\"&AD$5))","v":0},{"$f":"IF(AE$1=\"N\",0,COUNTIFS(TrackCode,$A16,TrackFrom,\"<=\"&AE$5,TrackTo,\">=\"&AE$5))","v":0},{"$f":"IF(AF$1=\"N\",0,COUNTIFS(TrackCode,$A16,TrackFrom,\"<=\"&AF$5,TrackTo,\">=\"&AF$5))","v":1},{"$f":"IF(AG$1=\"N\",0,COUNTIFS(TrackCode,$A16,TrackFrom,\"<=\"&AG$5,TrackTo,\">=\"&AG$5))","v":0},{"$f":"IF(AH$1=\"N\",0,COUNTIFS(TrackCode,$A16,TrackFrom,\"<=\"&AH$5,TrackTo,\">=\"&AH$5))","v":1},{"$f":"IF(AI$1=\"N\",0,COUNTIFS(TrackCode,$A16,TrackFrom,\"<=\"&AI$5,TrackTo,\">=\"&AI$5))","v":1},{"$f":"IF(AJ$1=\"N\",0,COUNTIFS(TrackCode,$A16,TrackFrom,\"<=\"&AJ$5,TrackTo,\">=\"&AJ$5))","v":1},{"$f":"IF(AK$1=\"N\",0,COUNTIFS(TrackCode,$A16,TrackFrom,\"<=\"&AK$5,TrackTo,\">=\"&AK$5))","v":0},{"$f":"IF(AL$1=\"N\",0,COUNTIFS(TrackCode,$A16,TrackFrom,\"<=\"&AL$5,TrackTo,\">=\"&AL$5))","v":0},{"$f":"IF(AM$1=\"N\",0,COUNTIFS(TrackCode,$A16,TrackFrom,\"<=\"&AM$5,TrackTo,\">=\"&AM$5))","v":0},{"$f":"IF(AN$1=\"N\",0,COUNTIFS(TrackCode,$A16,TrackFrom,\"<=\"&AN$5,TrackTo,\">=\"&AN$5))","v":0},{"$f":"IF(AO$1=\"N\",0,COUNTIFS(TrackCode,$A16,TrackFrom,\"<=\"&AO$5,TrackTo,\">=\"&AO$5))","v":0},{"$f":"IF(AP$1=\"N\",0,COUNTIFS(TrackCode,$A16,TrackFrom,\"<=\"&AP$5,TrackTo,\">=\"&AP$5))","v":0},{"$f":"IF(AQ$1=\"N\",0,COUNTIFS(TrackCode,$A16,TrackFrom,\"<=\"&AQ$5,TrackTo,\">=\"&AQ$5))","v":0},{"$f":"IF(AR$1=\"N\",0,COUNTIFS(TrackCode,$A16,TrackFrom,\"<=\"&AR$5,TrackTo,\">=\"&AR$5))","v":0},{"$f":"IF(AS$1=\"N\",0,COUNTIFS(TrackCode,$A16,TrackFrom,\"<=\"&AS$5,TrackTo,\">=\"&AS$5))","v":0},{"$f":"IF(AT$1=\"N\",0,COUNTIFS(TrackCode,$A16,TrackFrom,\"<=\"&AT$5,TrackTo,\">=\"&AT$5))","v":0},{"$f":"IF(AU$1=\"N\",0,COUNTIFS(TrackCode,$A16,TrackFrom,\"<=\"&AU$5,TrackTo,\">=\"&AU$5))","v":0},{"$f":"IF(AV$1=\"N\",0,COUNTIFS(TrackCode,$A16,TrackFrom,\"<=\"&AV$5,TrackTo,\">=\"&AV$5))","v":0},{"$f":"IF(AW$1=\"N\",0,COUNTIFS(TrackCode,$A16,TrackFrom,\"<=\"&AW$5,TrackTo,\">=\"&AW$5))","v":0},{"$f":"IF(AX$1=\"N\",0,COUNTIFS(TrackCode,$A16,TrackFrom,\"<=\"&AX$5,TrackTo,\">=\"&AX$5))","v":0},{"$f":"IF(AY$1=\"N\",0,COUNTIFS(TrackCode,$A16,TrackFrom,\"<=\"&AY$5,TrackTo,\">=\"&AY$5))","v":0},{"$f":"IF(AZ$1=\"N\",0,COUNTIFS(TrackCode,$A16,TrackFrom,\"<=\"&AZ$5,TrackTo,\">=\"&AZ$5))","v":0},{"$f":"IF(BA$1=\"N\",0,COUNTIFS(TrackCode,$A16,TrackFrom,\"<=\"&BA$5,TrackTo,\">=\"&BA$5))","v":0},{"$f":"IF(BB$1=\"N\",0,COUNTIFS(TrackCode,$A16,TrackFrom,\"<=\"&BB$5,TrackTo,\">=\"&BB$5))","v":0},{"$f":"IF(BC$1=\"N\",0,COUNTIFS(TrackCode,$A16,TrackFrom,\"<=\"&BC$5,TrackTo,\">=\"&BC$5))","v":0},{"$f":"IF(BD$1=\"N\",0,COUNTIFS(TrackCode,$A16,TrackFrom,\"<=\"&BD$5,TrackTo,\">=\"&BD$5))","v":0},{"$f":"IF(BE$1=\"N\",0,COUNTIFS(TrackCode,$A16,TrackFrom,\"<=\"&BE$5,TrackTo,\">=\"&BE$5))","v":0},{"$f":"IF(BF$1=\"N\",0,COUNTIFS(TrackCode,$A16,TrackFrom,\"<=\"&BF$5,TrackTo,\">=\"&BF$5))","v":0},{"$f":"IF(BG$1=\"N\",0,COUNTIFS(TrackCode,$A16,TrackFrom,\"<=\"&BG$5,TrackTo,\">=\"&BG$5))","v":0},{"$f":"IF(BH$1=\"N\",0,COUNTIFS(TrackCode,$A16,TrackFrom,\"<=\"&BH$5,TrackTo,\">=\"&BH$5))","v":0},{"$f":"IF(BI$1=\"N\",0,COUNTIFS(TrackCode,$A16,TrackFrom,\"<=\"&BI$5,TrackTo,\">=\"&BI$5))","v":0},{"$f":"IF(BJ$1=\"N\",0,COUNTIFS(TrackCode,$A16,TrackFrom,\"<=\"&BJ$5,TrackTo,\">=\"&BJ$5))","v":0},{"$f":"IF(BK$1=\"N\",0,COUNTIFS(TrackCode,$A16,TrackFrom,\"<=\"&BK$5,TrackTo,\">=\"&BK$5))","v":0}]
[1011,"Employee 11","Management",{"$f":"IF(D$1=\"N\",0,COUNTIFS(TrackCode,$A17,TrackFrom,\"<=\"&D$5,TrackTo,\">=\"&D$5))","v":0},{"$f":"IF(E$1=\"N\",0,COUNTIFS(TrackCode,$A17,TrackFrom,\"<=\"&E$5,TrackTo,\">=\"&E$5))","v":0},{"$f":"IF(F$1=\"N\",0,COUNTIFS(TrackCode,$A17,TrackFrom,\"<=\"&F$5,TrackTo,\">=\"&F$5))","v":0},{"$f":"IF(G$1=\"N\",0,COUNTIFS(TrackCode,$A17,TrackFrom,\"<=\"&G$5,TrackTo,\">=\"&G$5))","v":0},{"$f":"IF(H$1=\"N\",0,COUNTIFS(TrackCode,$A17,TrackFrom,\"<=\"&H$5,TrackTo,\">=\"&H$5))","v":0},{"$f":"IF(I$1=\"N\",0,COUNTIFS(TrackCode,$A17,TrackFrom,\"<=\"&I$5,TrackTo,\">=\"&I$5))","v":0},{"$f":"IF(J$1=\"N\",0,COUNTIFS(TrackCode,$A17,TrackFrom,\"<=\"&J$5,TrackTo,\">=\"&J$5))","v":0},{"$f":"IF(K$1=\"N\",0,COUNTIFS(TrackCode,$A17,TrackFrom,\"<=\"&K$5,TrackTo,\">=\"&K$5))","v":0},{"$f":"IF(L$1=\"N\",0,COUNTIFS(TrackCode,$A17,TrackFrom,\"<=\"&L$5,TrackTo,\">=\"&L$5))","v":0},{"$f":"IF(M$1=\"N\",0,COUNTIFS(TrackCode,$A17,TrackFrom,\"<=\"&M$5,TrackTo,\">=\"&M$5))","v":0},{"$f":"IF(N$1=\"N\",0,COUNTIFS(TrackCode,$A17,TrackFrom,\"<=\"&N$5,TrackTo,\">=\"&N$5))","v":0},{"$f":"IF(O$1=\"N\",0,COUNTIFS(TrackCode,$A17,TrackFrom,\"<=\"&O$5,TrackTo,\">=\"&O$5))","v":0},{"$f":"IF(P$1=\"N\",0,COUNTIFS(TrackCode,$A17,TrackFrom,\"<=\"&P$5,TrackTo,\">=\"&P$5))","v":0},{"$f":"IF(Q$1=\"N\",0,COUNTIFS(TrackCode,$A17,TrackFrom,\"<=\"&Q$5,TrackTo,\">=\"&Q$5))","v":0},{"$f":"IF(R$1=\"N\",0,COUNTIFS(TrackCode,$A17,TrackFrom,\"<=\"&R$5,TrackTo,\">=\"&R$5))","v":0},{"$f":"IF(S$1=\"N\",0,COUNTIFS(TrackCode,$A17,TrackFrom,\"<=\"&S$5,TrackTo,\">=\"&S$5))","v":0},{"$f":"IF(T$1=\"N\",0,COUNTIFS(TrackCode,$A17,TrackFrom,\"<=\"&T$5,TrackTo,\">=\"&T$5))","v":0},{"$f":"IF(U$1=\"N\",0,COUNTIFS(TrackCode,$A17,TrackFrom,\"<=\"&U$5,TrackTo,\">=\"&U$5))","v":0},{"$f":"IF(V$1=\"N\",0,COUNTIFS(TrackCode,$A17,TrackFrom,\"<=\"&V$5,TrackTo,\">=\"&V$5))","v":0},{"$f":"IF(W$1=\"N\",0,COUNTIFS(TrackCode,$A17,TrackFrom,\"<=\"&W$5,TrackTo,\">=\"&W$5))","v":0},{"$f":"IF(X$1=\"N\",0,COUNTIFS(TrackCode,$A17,TrackFrom,\"<=\"&X$5,TrackTo,\">=\"&X$5))","v":0},{"$f":"IF(Y$1=\"N\",0,COUNTIFS(TrackCode,$A17,TrackFrom,\"<=\"&Y$5,TrackTo,\">=\"&Y$5))","v":0},{"$f":"IF(Z$1=\"N\",0,COUNTIFS(TrackCode,$A17,TrackFrom,\"<=\"&Z$5,TrackTo,\">=\"&Z$5))","v":0},{"$f":"IF(AA$1=\"N\",0,COUNTIFS(TrackCode,$A17,TrackFrom,\"<=\"&AA$5,TrackTo,\">=\"&AA$5))","v":0},{"$f":"IF(AB$1=\"N\",0,COUNTIFS(TrackCode,$A17,TrackFrom,\"<=\"&AB$5,TrackTo,\">=\"&AB$5))","v":1},{"$f":"IF(AC$1=\"N\",0,COUNTIFS(TrackCode,$A17,TrackFrom,\"<=\"&AC$5,TrackTo,\">=\"&AC$5))","v":1},{"$f":"IF(AD$1=\"N\",0,COUNTIFS(TrackCode,$A17,TrackFrom,\"<=\"&AD$5,TrackTo,\">=\"&AD$5))","v":0},{"$f":"IF(AE$1=\"N\",0,COUNTIFS(TrackCode,$A17,TrackFrom,\"<=\"&AE$5,TrackTo,\">=\"&AE$5))","v":0},{"$f":"IF(AF$1=\"N\",0,COUNTIFS(TrackCode,$A17,TrackFrom,\"<=\"&AF$5,TrackTo,\">=\"&AF$5))","v":1},{"$f":"IF(AG$1=\"N\",0,COUNTIFS(TrackCode,$A17,TrackFrom,\"<=\"&AG$5,TrackTo,\">=\"&AG$5))","v":0},{"$f":"IF(AH$1=\"N\",0,COUNTIFS(TrackCode,$A17,TrackFrom,\"<=\"&AH$5,TrackTo,\">=\"&AH$5))","v":1},{"$f":"IF(AI$1=\"N\",0,COUNTIFS(TrackCode,$A17,TrackFrom,\"<=\"&AI$5,TrackTo,\">=\"&AI$5))","v":1},{"$f":"IF(AJ$1=\"N\",0,COUNTIFS(TrackCode,$A17,TrackFrom,\"<=\"&AJ$5,TrackTo,\">=\"&AJ$5))","v":1},{"$f":"IF(AK$1=\"N\",0,COUNTIFS(TrackCode,$A17,TrackFrom,\"<=\"&AK$5,TrackTo,\">=\"&AK$5))","v":0},{"$f":"IF(AL$1=\"N\",0,COUNTIFS(TrackCode,$A17,TrackFrom,\"<=\"&AL$5,TrackTo,\">=\"&AL$5))","v":0},{"$f":"IF(AM$1=\"N\",0,COUNTIFS(TrackCode,$A17,TrackFrom,\"<=\"&AM$5,TrackTo,\">=\"&AM$5))","v":0},{"$f":"IF(AN$1=\"N\",0,COUNTIFS(TrackCode,$A17,TrackFrom,\"<=\"&AN$5,TrackTo,\">=\"&AN$5))","v":0},{"$f":"IF(AO$1=\"N\",0,COUNTIFS(TrackCode,$A17,TrackFrom,\"<=\"&AO$5,TrackTo,\">=\"&AO$5))","v":0},{"$f":"IF(AP$1=\"N\",0,COUNTIFS(TrackCode,$A17,TrackFrom,\"<=\"&AP$5,TrackTo,\">=\"&AP$5))","v":0},{"$f":"IF(AQ$1=\"N\",0,COUNTIFS(TrackCode,$A17,TrackFrom,\"<=\"&AQ$5,TrackTo,\">=\"&AQ$5))","v":0},{"$f":"IF(AR$1=\"N\",0,COUNTIFS(TrackCode,$A17,TrackFrom,\"<=\"&AR$5,TrackTo,\">=\"&AR$5))","v":0},{"$f":"IF(AS$1=\"N\",0,COUNTIFS(TrackCode,$A17,TrackFrom,\"<=\"&AS$5,TrackTo,\">=\"&AS$5))","v":0},{"$f":"IF(AT$1=\"N\",0,COUNTIFS(TrackCode,$A17,TrackFrom,\"<=\"&AT$5,TrackTo,\">=\"&AT$5))","v":0},{"$f":"IF(AU$1=\"N\",0,COUNTIFS(TrackCode,$A17,TrackFrom,\"<=\"&AU$5,TrackTo,\">=\"&AU$5))","v":0},{"$f":"IF(AV$1=\"N\",0,COUNTIFS(TrackCode,$A17,TrackFrom,\"<=\"&AV$5,TrackTo,\">=\"&AV$5))","v":0},{"$f":"IF(AW$1=\"N\",0,COUNTIFS(TrackCode,$A17,TrackFrom,\"<=\"&AW$5,TrackTo,\">=\"&AW$5))","v":0},{"$f":"IF(AX$1=\"N\",0,COUNTIFS(TrackCode,$A17,TrackFrom,\"<=\"&AX$5,TrackTo,\">=\"&AX$5))","v":0},{"$f":"IF(AY$1=\"N\",0,COUNTIFS(TrackCode,$A17,TrackFrom,\"<=\"&AY$5,TrackTo,\">=\"&AY$5))","v":0},{"$f":"IF(AZ$1=\"N\",0,COUNTIFS(TrackCode,$A17,TrackFrom,\"<=\"&AZ$5,TrackTo,\">=\"&AZ$5))","v":0},{"$f":"IF(BA$1=\"N\",0,COUNTIFS(TrackCode,$A17,TrackFrom,\"<=\"&BA$5,TrackTo,\">=\"&BA$5))","v":0},{"$f":"IF(BB$1=\"N\",0,COUNTIFS(TrackCode,$A17,TrackFrom,\"<=\"&BB$5,TrackTo,\">=\"&BB$5))","v":0},{"$f":"IF(BC$1=\"N\",0,COUNTIFS(TrackCode,$A17,TrackFrom,\"<=\"&BC$5,TrackTo,\">=\"&BC$5))","v":0},{"$f":"IF(BD$1=\"N\",0,COUNTIFS(TrackCode,$A17,TrackFrom,\"<=\"&BD$5,TrackTo,\">=\"&BD$5))","v":0},{"$f":"IF(BE$1=\"N\",0,COUNTIFS(TrackCode,$A17,TrackFrom,\"<=\"&BE$5,TrackTo,\">=\"&BE$5))","v":0},{"$f":"IF(BF$1=\"N\",0,COUNTIFS(TrackCode,$A17,TrackFrom,\"<=\"&BF$5,TrackTo,\">=\"&BF$5))","v":0},{"$f":"IF(BG$1=\"N\",0,COUNTIFS(TrackCode,$A17,TrackFrom,\"<=\"&BG$5,TrackTo,\">=\"&BG$5))","v":0},{"$f":"IF(BH$1=\"N\",0,COUNTIFS(TrackCode,$A17,TrackFrom,\"<=\"&BH$5,TrackTo,\">=\"&BH$5))","v":0},{"$f":"IF(BI$1=\"N\",0,COUNTIFS(TrackCode,$A17,TrackFrom,\"<=\"&BI$5,TrackTo,\">=\"&BI$5))","v":0},{"$f":"IF(BJ$1=\"N\",0,COUNTIFS(TrackCode,$A17,TrackFrom,\"<=\"&BJ$5,TrackTo,\">=\"&BJ$5))","v":0},{"$f":"IF(BK$1=\"N\",0,COUNTIFS(TrackCode,$A17,TrackFrom,\"<=\"&BK$5,TrackTo,\">=\"&BK$5))","v":0}]
[1012,"Employee 12","Admin",{"$f":"IF(D$1=\"N\",0,COUNTIFS(TrackCode,$A18,TrackFrom,\"<=\"&D$5,TrackTo,\">=\"&D$5))","v":0},{"$f":"IF(E$1=\"N\",0,COUNTIFS(TrackCode,$A18,TrackFrom,\"<=\"&E$5,TrackTo,\">=\"&E$5))","v":0},{"$f":"IF(F$1=\"N\",0,COUNTIFS(TrackCode,$A18,TrackFrom,\"<=\"&F$5,TrackTo,\">=\"&F$5))","v":0},{"$f":"IF(G$1=\"N\",0,COUNTIFS(TrackCode,$A18,TrackFrom,\"<=\"&G$5,TrackTo,\">=\"&G$5))","v":0},{"$f":"IF(H$1=\"N\",0,COUNTIFS(TrackCode,$A18,TrackFrom,\"<=\"&H$5,TrackTo,\">=\"&H$5))","v":0},{"$f":"IF(I$1=\"N\",0,COUNTIFS(TrackCode,$A18,TrackFrom,\"<=\"&I$5,TrackTo,\">=\"&I$5))","v":0},{"$f":"IF(J$1=\"N\",0,COUNTIFS(TrackCode,$A18,TrackFrom,\"<=\"&J$5,TrackTo,\">=\"&J$5))","v":0},{"$f":"IF(K$1=\"N\",0,COUNTIFS(TrackCode,$A18,TrackFrom,\"<=\"&K$5,TrackTo,\">=\"&K$5))","v":0},{"$f":"IF(L$1=\"N\",0,COUNTIFS(TrackCode,$A18,TrackFrom,\"<=\"&L$5,TrackTo,\">=\"&L$5))","v":0},{"$f":"IF(M$1=\"N\",0,COUNTIFS(TrackCode,$A18,TrackFrom,\"<=\"&M$5,TrackTo,\">=\"&M$5))","v":0},{"$f":"IF(N$1=\"N\",0,COUNTIFS(TrackCode,$A18,TrackFrom,\"<=\"&N$5,TrackTo,\">=\"&N$5))","v":0},{"$f":"IF(O$1=\"N\",0,COUNTIFS(TrackCode,$A18,TrackFrom,\"<=\"&O$5,TrackTo,\">=\"&O$5))","v":0},{"$f":"IF(P$1=\"N\",0,COUNTIFS(TrackCode,$A18,TrackFrom,\"<=\"&P$5,TrackTo,\">=\"&P$5))","v":0},{"$f":"IF(Q$1=\"N\",0,COUNTIFS(TrackCode,$A18,TrackFrom,\"<=\"&Q$5,TrackTo,\">=\"&Q$5))","v":0},{"$f":"IF(R$1=\"N\",0,COUNTIFS(TrackCode,$A18,TrackFrom,\"<=\"&R$5,TrackTo,\">=\"&R$5))","v":0},{"$f":"IF(S$1=\"N\",0,COUNTIFS(TrackCode,$A18,TrackFrom,\"<=\"&S$5,TrackTo,\">=\"&S$5))","v":0},{"$f":"IF(T$1=\"N\",0,COUNTIFS(TrackCode,$A18,TrackFrom,\"<=\"&T$5,TrackTo,\">=\"&T$5))","v":0},{"$f":"IF(U$1=\"N\",0,COUNTIFS(TrackCode,$A18,TrackFrom,\"<=\"&U$5,TrackTo,\">=\"&U$5))","v":0},{"$f":"IF(V$1=\"N\",0,COUNTIFS(TrackCode,$A18,TrackFrom,\"<=\"&V$5,TrackTo,\">=\"&V$5))","v":0},{"$f":"IF(W$1=\"N\",0,COUNTIFS(TrackCode,$A18,TrackFrom,\"<=\"&W$5,TrackTo,\">=\"&W$5))","v":0},{"$f":"IF(X$1=\"N\",0,COUNTIFS(TrackCode,$A18,TrackFrom,\"<=\"&X$5,TrackTo,\">=\"&X$5))","v":0},{"$f":"IF(Y$1=\"N\",0,COUNTIFS(TrackCode,$A18,TrackFrom,\"<=\"&Y$5,TrackTo,\">=\"&Y$5))","v":0},{"$f":"IF(Z$1=\"N\",0,COUNTIFS(TrackCode,$A18,TrackFrom,\"<=\"&Z$5,TrackTo,\">=\"&Z$5))","v":0},{"$f":"IF(AA$1=\"N\",0,COUNTIFS(TrackCode,$A18,TrackFrom,\"<=\"&AA$5,TrackTo,\">=\"&AA$5))","v":0},{"$f":"IF(AB$1=\"N\",0,COUNTIFS(TrackCode,$A18,TrackFrom,\"<=\"&AB$5,TrackTo,\">=\"&AB$5))","v":0},{"$f":"IF(AC$1=\"N\",0,COUNTIFS(TrackCode,$A18,TrackFrom,\"<=\"&AC$5,TrackTo,\">=\"&AC$5))","v":0},{"$f":"IF(AD$1=\"N\",0,COUNTIFS(TrackCode,$A18,TrackFrom,\"<=\"&AD$5,TrackTo,\">=\"&AD$5))","v":0},{"$f":"IF(AE$1=\"N\",0,COUNTIFS(TrackCode,$A18,TrackFrom,\"<=\"&AE$5,TrackTo,\">=\"&AE$5))","v":0},{"$f":"IF(AF$1=\"N\",0,COUNTIFS(TrackCode,$A18,TrackFrom,\"<=\"&AF$5,TrackTo,\">=\"&AF$5))","v":1},{"$f":"IF(AG$1=\"N\",0,COUNTIFS(TrackCode,$A18,TrackFrom,\"<=\"&AG$5,TrackTo,\">=\"&AG$5))","v":0},{"$f":"IF(AH$1=\"N\",0,COUNTIFS(TrackCode,$A18,TrackFrom,\"<=\"&AH$5,TrackTo,\">=\"&AH$5))","v":1},{"$f":"IF(AI$1=\"N\",0,COUNTIFS(TrackCode,$A18,TrackFrom,\"<=\"&AI$5,TrackTo,\">=\"&AI$5))","v":1},{"$f":"IF(AJ$1=\"N\",0,COUNTIFS(TrackCode,$A18,TrackFrom,\"<=\"&AJ$5,TrackTo,\">=\"&AJ$5))","v":1},{"$f":"IF(AK$1=\"N\",0,COUNTIFS(TrackCode,$A18,TrackFrom,\"<=\"&AK$5,TrackTo,\">=\"&AK$5))","v":0},{"$f":"IF(AL$1=\"N\",0,COUNTIFS(TrackCode,$A18,TrackFrom,\"<=\"&AL$5,TrackTo,\">=\"&AL$5))","v":0},{"$f":"IF(AM$1=\"N\",0,COUNTIFS(TrackCode,$A18,TrackFrom,\"<=\"&AM$5,TrackTo,\">=\"&AM$5))","v":0},{"$f":"IF(AN$1=\"N\",0,COUNTIFS(TrackCode,$A18,TrackFrom,\"<=\"&AN$5,TrackTo,\">=\"&AN$5))","v":0},{"$f":"IF(AO$1=\"N\",0,COUNTIFS(TrackCode,$A18,TrackFrom,\"<=\"&AO$5,TrackTo,\">=\"&AO$5))","v":0},{"$f":"IF(AP$1=\"N\",0,COUNTIFS(TrackCode,$A18,TrackFrom,\"<=\"&AP$5,TrackTo,\">=\"&AP$5))","v":0},{"$f":"IF(AQ$1=\"N\",0,COUNTIFS(TrackCode,$A18,TrackFrom,\"<=\"&AQ$5,TrackTo,\">=\"&AQ$5))","v":0},{"$f":"IF(AR$1=\"N\",0,COUNTIFS(TrackCode,$A18,TrackFrom,\"<=\"&AR$5,TrackTo,\">=\"&AR$5))","v":0},{"$f":"IF(AS$1=\"N\",0,COUNTIFS(TrackCode,$A18,TrackFrom,\"<=\"&AS$5,TrackTo,\">=\"&AS$5))","v":0},{"$f":"IF(AT$1=\"N\",0,COUNTIFS(TrackCode,$A18,TrackFrom,\"<=\"&AT$5,TrackTo,\">=\"&AT$5))","v":0},{"$f":"IF(AU$1=\"N\",0,COUNTIFS(TrackCode,$A18,TrackFrom,\"<=\"&AU$5,TrackTo,\">=\"&AU$5))","v":0},{"$f":"IF(AV$1=\"N\",0,COUNTIFS(TrackCode,$A18,TrackFrom,\"<=\"&AV$5,TrackTo,\">=\"&AV$5))","v":0},{"$f":"IF(AW$1=\"N\",0,COUNTIFS(TrackCode,$A18,TrackFrom,\"<=\"&AW$5,TrackTo,\">=\"&AW$5))","v":0},{"$f":"IF(AX$1=\"N\",0,COUNTIFS(TrackCode,$A18,TrackFrom,\"<=\"&AX$5,TrackTo,\">=\"&AX$5))","v":0},{"$f":"IF(AY$1=\"N\",0,COUNTIFS(TrackCode,$A18,TrackFrom,\"<=\"&AY$5,TrackTo,\">=\"&AY$5))","v":0},{"$f":"IF(AZ$1=\"N\",0,COUNTIFS(TrackCode,$A18,TrackFrom,\"<=\"&AZ$5,TrackTo,\">=\"&AZ$5))","v":0},{"$f":"IF(BA$1=\"N\",0,COUNTIFS(TrackCode,$A18,TrackFrom,\"<=\"&BA$5,TrackTo,\">=\"&BA$5))","v":0},{"$f":"IF(BB$1=\"N\",0,COUNTIFS(TrackCode,$A18,TrackFrom,\"<=\"&BB$5,TrackTo,\">=\"&BB$5))","v":0},{"$f":"IF(BC$1=\"N\",0,COUNTIFS(TrackCode,$A18,TrackFrom,\"<=\"&BC$5,TrackTo,\">=\"&BC$5))","v":0},{"$f":"IF(BD$1=\"N\",0,COUNTIFS(TrackCode,$A18,TrackFrom,\"<=\"&BD$5,TrackTo,\">=\"&BD$5))","v":0},{"$f":"IF(BE$1=\"N\",0,COUNTIFS(TrackCode,$A18,TrackFrom,\"<=\"&BE$5,TrackTo,\">=\"&BE$5))","v":0},{"$f":"IF(BF$1=\"N\",0,COUNTIFS(TrackCode,$A18,TrackFrom,\"<=\"&BF$5,TrackTo,\">=\"&BF$5))","v":0},{"$f":"IF(BG$1=\"N\",0,COUNTIFS(TrackCode,$A18,TrackFrom,\"<=\"&BG$5,TrackTo,\">=\"&BG$5))","v":0},{"$f":"IF(BH$1=\"N\",0,COUNTIFS(TrackCode,$A18,TrackFrom,\"<=\"&BH$5,TrackTo,\">=\"&BH$5))","v":0},{"$f":"IF(BI$1=\"N\",0,COUNTIFS(TrackCode,$A18,TrackFrom,\"<=\"&BI$5,TrackTo,\">=\"&BI$5))","v":0},{"$f":"IF(BJ$1=\"N\",0,COUNTIFS(TrackCode,$A18,TrackFrom,\"<=\"&BJ$5,TrackTo,\">=\"&BJ$5))","v":0},{"$f":"IF(BK$1=\"N\",0,COUNTIFS(TrackCode,$A18,TrackFrom,\"<=\"&BK$5,TrackTo,\">=\"&BK$5))","v":0}]

{"sheet":"Tracking","index":5,"n_rows":20,"n_cols":6,"rows_kept":20,"cut":false,"hidden":true,"merged":[[3,1,3,2]]}
["Leave Tracker"]
["Leave Dates"]
["© www.excel-skills.com"]
[null,"Leave Planner"]
["Employee Code","From Date","To Date","Employee Name","Work Days","Error Code"]
[1001,"2021-03-29","2021-04-01",{"$f":"IF(ISNA(VLOOKUP($A6,Summary[],2,0)),\"add!\",VLOOKUP($A6,Summary[],2,0))","v":"Employee 1"},{"$f":"COUNTIFS(SumDate,\">=\"&$B6,SumDate,\"<=\"&$C6,SumWDay,\"Y\")","v":4},{"$f":"IF($C6<$B6,\"E1\",IF(ISNA(VLOOKUP($A6,EmpCode,1,0)),\"E2\",\"-\"))","v":"-"}]
[1002,"2021-04-19","2021-04-26",{"$f":"IF(ISNA(VLOOKUP($A7,Summary[],2,0)),\"add!\",VLOOKUP($A7,Summary[],2,0))","v":"Employee 2"},6,"-"]
[1003,"2021-04-26","2021-04-30",{"$f":"IF(ISNA(VLOOKUP($A8,Summary[],2,0)),\"add!\",VLOOKUP($A8,Summary[],2,0))","v":"Employee 3"},4,"-"]
[1004,"2021-04-22","2021-04-26",{"$f":"IF(ISNA(VLOOKUP($A9,Summary[],2,0)),\"add!\",VLOOKUP($A9,Summary[],2,0))","v":"Employee 4"},3,"-"]
[1005,"2021-04-06","2021-04-09",{"$f":"IF(ISNA(VLOOKUP($A10,Summary[],2,0)),\"add!\",VLOOKUP($A10,Summary[],2,0))","v":"Employee 5"},4,"-"]
[1006,"2021-04-26","2021-04-26",{"$f":"IF(ISNA(VLOOKUP($A11,Summary[],2,0)),\"add!\",VLOOKUP($A11,Summary[],2,0))","v":"Employee 6"},1,"-"]
[1007,"2021-04-26","2021-04-30",{"$f":"IF(ISNA(VLOOKUP($A12,Summary[],2,0)),\"add!\",VLOOKUP($A12,Summary[],2,0))","v":"Employee 7"},4,"-"]
[1008,"2021-04-06","2021-04-09",{"$f":"IF(ISNA(VLOOKUP($A13,Summary[],2,0)),\"add!\",VLOOKUP($A13,Summary[],2,0))","v":"Employee 8"},4,"-"]
[1009,"2021-04-06","2021-04-09",{"$f":"IF(ISNA(VLOOKUP($A14,Summary[],2,0)),\"add!\",VLOOKUP($A14,Summary[],2,0))","v":"Employee 9"},4,"-"]
[1010,"2021-04-06","2021-04-09",{"$f":"IF(ISNA(VLOOKUP($A15,Summary[],2,0)),\"add!\",VLOOKUP($A15,Summary[],2,0))","v":"Employee 10"},4,"-"]
[1011,"2021-04-22","2021-04-30",{"$f":"IF(ISNA(VLOOKUP($A16,Summary[],2,0)),\"add!\",VLOOKUP($A16,Summary[],2,0))","v":"Employee 11"},6,"-"]
[1005,"2021-04-28","2021-04-30",{"$f":"IF(ISNA(VLOOKUP($A17,Summary[],2,0)),\"add!\",VLOOKUP($A17,Summary[],2,0))","v":"Employee 5"},3,"-"]
[1010,"2021-04-26","2021-04-30",{"$f":"IF(ISNA(VLOOKUP($A18,Summary[],2,0)),\"add!\",VLOOKUP($A18,Summary[],2,0))","v":"Employee 10"},4,"-"]
[1008,"2021-04-28","2021-04-30",{"$f":"IF(ISNA(VLOOKUP($A19,Summary[],2,0)),\"add!\",VLOOKUP($A19,Summary[],2,0))","v":"Employee 8"},3,"-"]
[1012,"2021-04-26","2021-04-30",{"$f":"IF(ISNA(VLOOKUP($A20,Summary[],2,0)),\"add!\",VLOOKUP($A20,Summary[],2,0))","v":"Employee 12"},4,"-"]